Workbook

Sheet Form
B2: =IF(AND(WSIZE>0,HSIZE>0),"Only Available At"&" "&WSIZE&" x "&HSIZE&IF(HCONTROL=1," / "&HSIZE2&" / "&HSIZE3&" / "&HSIZE4,""),"") ->  | H2: Select a Model | J2: =IF(ISERROR(OR(SHATERROR,SHATRADIUS,MINRADIUS,MAX_SHORT)),"",IF(SHATERROR=1,"Adjust CMR to Increase Egress Height",IF(SHATRADIUS<MINRADIUS,"Radius Must be Greater Than "&MINRADIUS,""))) -> 
B3: =IF(Model_Select="","Select a Model","(Model"&" "&ModelNo&")") -> (Model Select Model) | G3: Select Model | J3: ="Min. W:"&" "&MINW -> Min. W: 0 | N3: ="Max W:"&" "&MAXW -> Max W: 0
B4: =Description -> 0 | J4: ="Min. H:"&" "&MINH -> Min. H: 0 | N4: ="Max H:"&" "&MAXH -> Max H: 0 | P4: ="Max UI:"&" "&MAXUI -> Max UI: 0
B5: =IF(AND(W>0,H>0),(IF(ISERROR(VLOOKUP(1,Data!$A:$D,3,FALSE)),"",VLOOKUP(1,Data!$A:$D,3,FALSE))),"") ->  | H5: =IF(AND(W>0,H>0),(IF(ISERROR(VLOOKUP(1,Data!$A:$D,4,FALSE)),"",VLOOKUP(1,Data!$A:$D,4,FALSE))),"") ->  | N5: Exact Size | O5: =IF(AND(DIM_3=1,_DIM3=0),"Must Enter DIM3",IF(AND(DIM_4=1,_DIM4=0),"Must Enter DIM4","")) -> 
B6: =IF(AND(W>0,H>0),(IF(ISERROR(VLOOKUP(2,Data!$A:$D,3,FALSE)),"",VLOOKUP(2,Data!$A:$D,3,FALSE))),"") ->  | H6: =IF(AND(W>0,H>0),(IF(ISERROR(VLOOKUP(2,Data!$A:$D,4,FALSE)),"",VLOOKUP(2,Data!$A:$D,4,FALSE))),"") ->  | J6: Width: | N6: =IF(AND(RO=2,W>0),W-WCUTBACK,W) -> 0 | P6: =IF(DIM_3=1,"<< DIM3","") -> 
B7: =IF(AND(W>0,H>0),(IF(ISERROR(VLOOKUP(3,Data!$A:$D,3,FALSE)),"",VLOOKUP(3,Data!$A:$D,3,FALSE))),"") ->  | H7: =IF(AND(W>0,H>0),(IF(ISERROR(VLOOKUP(3,Data!$A:$D,4,FALSE)),"",VLOOKUP(3,Data!$A:$D,4,FALSE))),"") ->  | J7: Height: | N7: =IF(AND(RO=2,H>0),H-HCUTBACK,H) -> 0 | P7: =IF(DIM_4=1,"<< DIM4","") -> 
B8: =IF(AND(W>0,H>0),(IF(ISERROR(VLOOKUP(4,Data!$A:$D,3,FALSE)),"",VLOOKUP(4,Data!$A:$D,3,FALSE))),"") ->  | H8: =IF(AND(W>0,H>0),(IF(ISERROR(VLOOKUP(4,Data!$A:$D,4,FALSE)),"",VLOOKUP(4,Data!$A:$D,4,FALSE))),"") ->  | J8: =IF(OR(ModelNo="A140",ModelNo="A144",ModelNo="A146",ModelNo="A740",ModelNo="A744",ModelNo="A746",ModelNo="A840",ModelNo="A844",ModelNo="A846"),"Leg:","") ->  | N8: =LEG_MESSAGE -> 
B9: =IF(AND(W>0,H>0),(IF(ISERROR(VLOOKUP(5,Data!$A:$D,3,FALSE)),"",VLOOKUP(5,Data!$A:$D,3,FALSE))),"") ->  | H9: =IF(AND(W>0,H>0),(IF(ISERROR(VLOOKUP(5,Data!$A:$D,4,FALSE)),"",VLOOKUP(5,Data!$A:$D,4,FALSE))),"") ->  | J9: =IF(BTYPE="Custom","CMR:","") ->  | N9: =CMR_MESSAGE -> 
B10: =IF(AND(W>0,H>0),(IF(ISERROR(VLOOKUP(6,Data!$A:$D,3,FALSE)),"",VLOOKUP(6,Data!$A:$D,3,FALSE))),"") ->  | H10: =IF(AND(W>0,H>0),(IF(ISERROR(VLOOKUP(6,Data!$A:$D,4,FALSE)),"",VLOOKUP(6,Data!$A:$D,4,FALSE))),"") ->  | J10: =IF(SELECTEXT="Select Extrusion","Ext.",IF(SELECTEXT="Select Reinforcement","Reinforce:",IF(SELECTEXT="Operator Position","Operation:",""))) ->  | N10: =EXT_MESSAGE -> 
B11: =IF(AND(W>0,H>0),(IF(ISERROR(VLOOKUP(7,Data!$A:$D,3,FALSE)),"",VLOOKUP(7,Data!$A:$D,3,FALSE))),"") ->  | H11: =IF(AND(W>0,H>0),(IF(ISERROR(VLOOKUP(7,Data!$A:$D,4,FALSE)),"",VLOOKUP(7,Data!$A:$D,4,FALSE))),"") ->  | J11: Opening: | N11: =RO_OPTION -> 0
B12: =IF(AND(W>0,H>0),(IF(ISERROR(VLOOKUP(8,Data!$A:$D,3,FALSE)),"",VLOOKUP(8,Data!$A:$D,3,FALSE))),"") ->  | H12: =IF(AND(W>0,H>0),(IF(ISERROR(VLOOKUP(8,Data!$A:$D,4,FALSE)),"",VLOOKUP(8,Data!$A:$D,4,FALSE))),"") ->  | J12: Type:
B13: =IF(AND(W>0,H>0),(IF(ISERROR(VLOOKUP(9,Data!$A:$D,3,FALSE)),"",VLOOKUP(9,Data!$A:$D,3,FALSE))),"") ->  | H13: =IF(AND(W>0,H>0),(IF(ISERROR(VLOOKUP(9,Data!$A:$D,4,FALSE)),"",VLOOKUP(9,Data!$A:$D,4,FALSE))),"") ->  | J13: Screen:
B14: =IF(AND(W>0,H>0),(IF(ISERROR(VLOOKUP(10,Data!$A:$D,3,FALSE)),"",VLOOKUP(10,Data!$A:$D,3,FALSE))),"") ->  | H14: =IF(AND(W>0,H>0),(IF(ISERROR(VLOOKUP(10,Data!$A:$D,4,FALSE)),"",VLOOKUP(10,Data!$A:$D,4,FALSE))),"") ->  | J14: Glass:
B16: =IF(AND(W>0,H>0),(IF(ISERROR(VLOOKUP(11,Data!$A:$D,3,FALSE)),"",VLOOKUP(11,Data!$A:$D,3,FALSE))),"") ->  | H16: =IF(AND(W>0,H>0),(IF(ISERROR(VLOOKUP(11,Data!$A:$D,4,FALSE)),"",VLOOKUP(11,Data!$A:$D,4,FALSE))),"") ->  | M16: =IF(O19="<< AC Sash Width","A Designated AC Sash is Used to Replace BOTH Top and Bottom Sashes When AC is in the Window","") -> 
B17: =IF(AND(W>0,H>0),(IF(ISERROR(VLOOKUP(12,Data!$A:$D,3,FALSE)),"",VLOOKUP(12,Data!$A:$D,3,FALSE))),"") ->  | H17: =IF(AND(W>0,H>0),(IF(ISERROR(VLOOKUP(12,Data!$A:$D,4,FALSE)),"",VLOOKUP(12,Data!$A:$D,4,FALSE))),"") ->  | J17: =IF(AND(ACLINK=TRUE,OR(Model_Select="8PS3",Model_Select="8SP3",Model_Select="8SOP")),"AC sash not Available for this model","") -> 
B18: =IF(AND(W>0,H>0),(IF(ISERROR(VLOOKUP(13,Data!$A:$D,3,FALSE)),"",VLOOKUP(13,Data!$A:$D,3,FALSE))),"") ->  | H18: =IF(AND(W>0,H>0),(IF(ISERROR(VLOOKUP(13,Data!$A:$D,4,FALSE)),"",VLOOKUP(13,Data!$A:$D,4,FALSE))),"") -> 
B19: =IF(AND(W>0,H>0),(IF(ISERROR(VLOOKUP(14,Data!$A:$D,3,FALSE)),"",VLOOKUP(14,Data!$A:$D,3,FALSE))),"") ->  | H19: =IF(AND(W>0,H>0),(IF(ISERROR(VLOOKUP(14,Data!$A:$D,4,FALSE)),"",VLOOKUP(14,Data!$A:$D,4,FALSE))),"") ->  | J19: =IF(ACLINK=FALSE,"","AC Width:") ->  | N19: =IF(AND(W>0,H>0,ACWIDTH>0,ACHEIGHT>0,ACCMR>0,ACLINK=TRUE),ACCMR,IF(AND(W>0,H>0,ACWIDTH>0,ACSASHW>0,ACLINK=TRUE),ACSASHW,"")) ->  | O19: =IF(AND(W>0,H>0,ACWIDTH>0,ACHEIGHT>0,ACCMR>0,ACLINK=TRUE),"<< CMR",IF(AND(W>0,H>0,ACWIDTH>0,ACSASHW>0,ACLINK=TRUE),"<< AC Sash Width","")) -> 
B20: =IF(AND(W>0,H>0),(IF(ISERROR(VLOOKUP(15,Data!$A:$D,3,FALSE)),"",VLOOKUP(15,Data!$A:$D,3,FALSE))),"") ->  | H20: =IF(AND(W>0,H>0),(IF(ISERROR(VLOOKUP(15,Data!$A:$D,4,FALSE)),"",VLOOKUP(15,Data!$A:$D,4,FALSE))),"") ->  | J20: =IF(ACLINK=FALSE,"","AC Height:") ->  | N20: =IF(AND(W>0,H>0,ACHEIGHT>0,ACSASHH>0,ACLINK=TRUE),ACSASHH,"") ->  | O20: =IF(AND(ACCMR>0,ACLINK=TRUE),"",IF(AND(W>0,H>0,ACHEIGHT>0,ACSASHH>0,ACLINK=TRUE),"<< AC Sash Height","")) -> 
B21: =IF(AND(W>0,H>0),(IF(ISERROR(VLOOKUP(16,Data!$A:$D,3,FALSE)),"",VLOOKUP(16,Data!$A:$D,3,FALSE))),"") ->  | H21: =IF(AND(W>0,H>0),(IF(ISERROR(VLOOKUP(16,Data!$A:$D,4,FALSE)),"",VLOOKUP(16,Data!$A:$D,4,FALSE))),"") ->  | J21: =IF(ISERROR(TSW),"",IF(LIMIT1>"",LIMIT1&IF(LIMIT2>""," & "&LIMIT2),"")) -> 
B22: =IF(AND(W>0,H>0),(IF(ISERROR(VLOOKUP(17,Data!$A:$D,3,FALSE)),"",VLOOKUP(17,Data!$A:$D,3,FALSE))),"") ->  | H22: =IF(AND(W>0,H>0),(IF(ISERROR(VLOOKUP(17,Data!$A:$D,4,FALSE)),"",VLOOKUP(17,Data!$A:$D,4,FALSE))),"") -> 
B23: =IF(AND(W>0,H>0),(IF(ISERROR(VLOOKUP(18,Data!$A:$D,3,FALSE)),"",VLOOKUP(18,Data!$A:$D,3,FALSE))),"") ->  | H23: =IF(AND(W>0,H>0),(IF(ISERROR(VLOOKUP(18,Data!$A:$D,4,FALSE)),"",VLOOKUP(18,Data!$A:$D,4,FALSE))),"") -> 
B24: =IF(AND(W>0,H>0),(IF(ISERROR(VLOOKUP(19,Data!$A:$D,3,FALSE)),"",VLOOKUP(19,Data!$A:$D,3,FALSE))),"") ->  | H24: =IF(AND(W>0,H>0),(IF(ISERROR(VLOOKUP(19,Data!$A:$D,4,FALSE)),"",VLOOKUP(19,Data!$A:$D,4,FALSE))),"") -> 
B25: =IF(AND(W>0,H>0),(IF(ISERROR(VLOOKUP(20,Data!$A:$D,3,FALSE)),"",VLOOKUP(20,Data!$A:$D,3,FALSE))),"") ->  | H25: =IF(AND(W>0,H>0),(IF(ISERROR(VLOOKUP(20,Data!$A:$D,4,FALSE)),"",VLOOKUP(20,Data!$A:$D,4,FALSE))),"") -> 
B26: =IF(AND(W>0,H>0),(IF(ISERROR(VLOOKUP(21,Data!$A:$D,3,FALSE)),"",VLOOKUP(21,Data!$A:$D,3,FALSE))),"") ->  | H26: =IF(AND(W>0,H>0),(IF(ISERROR(VLOOKUP(21,Data!$A:$D,4,FALSE)),"",VLOOKUP(21,Data!$A:$D,4,FALSE))),"") -> 
B27: =IF(AND(W>0,H>0),(IF(ISERROR(VLOOKUP(22,Data!$A:$D,3,FALSE)),"",VLOOKUP(22,Data!$A:$D,3,FALSE))),"") ->  | H27: =IF(AND(W>0,H>0),(IF(ISERROR(VLOOKUP(22,Data!$A:$D,4,FALSE)),"",VLOOKUP(22,Data!$A:$D,4,FALSE))),"") -> 
B28: =IF(AND(W>0,H>0),(IF(ISERROR(VLOOKUP(23,Data!$A:$D,3,FALSE)),"",VLOOKUP(23,Data!$A:$D,3,FALSE))),"") ->  | H28: =IF(AND(W>0,H>0),(IF(ISERROR(VLOOKUP(23,Data!$A:$D,4,FALSE)),"",VLOOKUP(23,Data!$A:$D,4,FALSE))),"") -> 
B29: =IF(AND(W>0,H>0),(IF(ISERROR(VLOOKUP(24,Data!$A:$D,3,FALSE)),"",VLOOKUP(24,Data!$A:$D,3,FALSE))),"") ->  | H29: =IF(AND(W>0,H>0),(IF(ISERROR(VLOOKUP(24,Data!$A:$D,4,FALSE)),"",VLOOKUP(24,Data!$A:$D,4,FALSE))),"") -> 
B31: =IF(AND(W>0,H>0,ACWIDTH>ACSASHW,ACLINK=TRUE),"AC Width is Larger Than The Sash Width","") -> 

Sheet Balance (hidden)
AM1: West Coast Models BLOCK & TACKLE BALANCE CHART | BN1: East Coast Models BLOCK & TACKLE BALANCE CHART
B2: CFB | I2: Glass Strength | K2: Weight Calculation | X2: A201 Egress Calculation | AM2: TOP SASH | AR2: BOTTOM SASH | BN2: TOP SASH | BS2: BOTTOM SASH
B3: 4 | C3: 3 | D3: BN | F3: 1 | G3: S | H3: =1.157*2 -> 2.314 | I3: Single Strength (2.5 mm) | K3: Model | L3: CDIM | M3: Sash Width/Height | N3: Top Sash Height | O3: Bottom Sash Weight | P3: Top Sash Weight | Q3: Bal. Loc. | R3: Head + Sill + 4.5 | S3: Sill | T3: EW | U3: EH | V3: EO | X3: # of Coils | Y3: =IF(BTM_WGT>0,VLOOKUP(BTM_WGT,CFB_W,3,FALSE),0) ->  | AB3: A571 | AC3: Length | AD3: Weight/ft | AE3: Weight | AG3: A581 | AH3: Length | AI3: Weight/ft | AJ3: Weight | AM3: Sash Weight | AN3: Tube Length | AO3: Balance | AP3: Weight | AR3: Sash Weight | AS3: Tube Length | AT3: Balance | AU3: Weight | AY3: Standard | AZ3: Climatech | BA3: Climatech-2 | BB3: Climatech Plus | BC3: Climatech-10 | BG3: Tube Length | BN3: Sash Weight | BO3: Tube Length | BP3: Balance | BQ3: Weight | BS3: Sash Weight | BT3: Tube Length | BU3: Balance | BV3: Weight
B4: =B3+1 -> 5 | C4: 3 | D4: BN | F4: 2 | G4: D | H4: =1.6*2 -> 3.2 | I4: Double Strength (3 mm) | K4: =ModelNo -> Select Model | L4: =VLOOKUP(ModelNo,$K$5:$V$83,2,FALSE) ->  | M4: =VLOOKUP(ModelNo,$K$5:$V$83,3,FALSE) ->  | N4: =VLOOKUP(ModelNo,$K$5:$V$83,4,FALSE) ->  | O4: =VLOOKUP(ModelNo,$K$5:$V$83,5,FALSE) ->  | P4: =VLOOKUP(ModelNo,$K$5:$V$83,6,FALSE) ->  | Q4: =VLOOKUP(ModelNo,$K$5:$V$83,7,FALSE) ->  | R4: =VLOOKUP(ModelNo,$K$5:$V$83,8,FALSE) ->  | S4: =VLOOKUP(ModelNo,$K$5:$V$83,9,FALSE) ->  | T4: =VLOOKUP(ModelNo,$K$5:$V$83,10,FALSE) ->  | U4: =VLOOKUP(ModelNo,$K$5:$V$83,11,FALSE) ->  | V4: =ROUND(((EH*EW)/144),3) ->  | X4: Displacement | Y4: =IF($M$4>37.5,$M$4-36,0) ->  | AB4: Top Top Rail | AC4: 0 | AD4: 0 | AE4: =AC4*AD4 -> 0 | AG4: Top Top Rail | AH4: 0 | AI4: 0 | AJ4: =AH4*AI4 -> 0 | AM4: =TRUNC(TOP_WGT) ->  | AN4: =AM9 ->  | AO4: Number | AP4: Range | AR4: =TRUNC(BTM_WGT) ->  | AS4: =AR9 ->  | AT4: Number | AU4: Range | AX4: 0.75 | AZ4: Climatech-4 | BA4: Climatech-SC | BB4: Climatech-7 | BC4: Climatech TG2 | BG4: Model | BH4: Top | BI4: Bott | BN4: =TRUNC(TOP_WGT) ->  | BO4: =TOPTUBELENGTH ->  | BP4: Number | BQ4: Range | BS4: =TRUNC(BTM_WGT) ->  | BT4: =BOTTUBELENGTH ->  | BU4: Number | BV4: Range | BZ4: Model | CA4: GW | CB4: GH | CD4: Max Short
B5: 6 | C5: 3 | D5: BN | F5: 3 | G5: T | H5: =2.408*2 -> 4.816 | I5: Triple Strength (5 mm) | K5: A171 | X5: Coil Loc. From CMR | Y5: =IF(OR(ModelNo="A571",ModelNo="A581"),0,(($Y$3-1)*1.58)+$Y$4+$Q$4+1.5) ->  | AB5: Top Bottom Rail | AC5: 0 | AD5: 0 | AE5: =AC5*AD5 -> 0 | AG5: Top Bottom Rail | AH5: 0 | AI5: 0 | AJ5: =AH5*AI5 -> 0 | AM5: Balance Size | AN5: =IF(AND(AO5>0,AP5>0),AO5,0) ->  | AO5: =IF($AN$4<=7,7,0) ->  | AP5: =IF(AND(AO5=7,$AM$4>=2,$AM$4<=2.99),AO5&"-"&"1",0) ->  | AR5: Balance Size | AS5: =IF(AND(AT5>0,AU5>0),AT5,0) ->  | AT5: =IF($AS$4<=7,7,0) ->  | AU5: =IF(AND(AT5=7,$AR$4>=2,$AR$4<=2.99),AT5&"-"&"1",0) ->  | AW5: =IF(AY5>"",1,"") ->  | AX5: Outside Pane | AY5: =IF(AND(EXT_2=1,Thickness_Select=1),"Clear","") ->  | AZ5: =IF(AND(EXT_2=1,Thickness_Select=1),"SB60","") ->  | BA5: =IF(AND(EXT_2=1,Thickness_Select=1),"SB60","") ->  | BB5: =IF(AND(EXT_2=1,Thickness_Select=1),"SB60","") ->  | BE5: Standard | BG5: =IF(ModelNo="7SH2","7SH2",IF(ModelNo="7SH3","7SH3","A571")) -> A571 | BI5: =VLOOKUP($M$4,$BG$48:$BJ$67,4) ->  | BN5: Balance Size | BO5: =IF(AND(BP5>0,BQ5>0),BP5,0) ->  | BP5: =IF($BO$4<=6,6,0) ->  | BQ5: =IF(AND(BP5=6,$BN$4>=2,$BN$4<=5),BP5&"A",0) ->  | BS5: Balance Size | BT5: =IF(AND(BU5>0,BV5>0),BU5,0) ->  | BU5: =IF($BT$4<=6,6,0) ->  | BV5: =IF(AND(BU5=6,$BS$4>=2,$BS$4<=5),BU5&"A",0) ->  | BZ5: A270 | CA5: =Frame_Width-2.3125 -> -2.3125 | CB5: =Frame_Height-2.3125 -> -2.3125 | CC5: =MAX(CA5:CB5) -> -2.3125 | CD5: 86.25
B6: 7 | C6: 4 | D6: RD | F6: 4 | G6: STG | H6: =1.157*3 -> 3.471 | I6: Triple IG Single Strrength | K6: A172 | L6: =A172CDIM -> 0 | M6: =A172CDIM+1.0625 -> 1.0625 | T6: =Frame_Width-L6-4 -> -4 | U6: =Frame_Height-3 -> -3 | AB6: Top Stile | AC6: 0 | AD6: 0 | AE6: =(AC6*AD6)/12 -> 0 | AG6: Top Stile | AH6: 0 | AI6: 0 | AJ6: =(AH6*AI6)/12 -> 0 | AM6: =VLOOKUP((MAX(AN5:AN235)),AN5:AP235,3,FALSE) ->  | AP6: =IF(AND(AO6=7,$AM$4>=3,$AM$4<=3.99),AO6&"-"&"2",0) ->  | AR6: =VLOOKUP((MAX(AS5:AS235)),AS5:AU235,3,FALSE) ->  | AU6: =IF(AND(AT6=7,$AR$4>=3,$AR$4<=3.99),AT6&"-"&"2",0) ->  | AW6: =IF(AY6>"",2,"") ->  | AX6: Middle Pane | AY6: =IF(AND(EXT_2=1,Thickness_Select=1),"N/A","") ->  | AZ6: =IF(AND(EXT_2=1,Thickness_Select=1),"N/A","") ->  | BA6: =IF(AND(EXT_2=1,Thickness_Select=1),"N/A","") ->  | BB6: =IF(AND(EXT_2=1,Thickness_Select=1),"N/A","") ->  | BE6: SolarTherm | BG6: =IF(ModelNo="8SH2","8SH2",IF(ModelNo="8SH3","8SH3","A581")) -> A581 | BI6: =VLOOKUP($M$4,$BG$23:$BJ$42,4) ->  | BN6: =VLOOKUP((MAX(BO5:BO229)),BO5:BQ229,3,FALSE) ->  | BQ6: =IF(AND(BP6=6,$BN$4>=6,$BN$4<=9),BP6&"B",0) ->  | BS6: =VLOOKUP((MAX(BT5:BT229)),BT5:BV229,3,FALSE) ->  | BV6: =IF(AND(BU6=6,$BS$4>=6,$BS$4<=9),BU6&"B",0) ->  | BZ6: A504 | CA6: =Frame_Width-4.625 -> -4.625 | CB6: =Frame_Height-4.625 -> -4.625 | CC6: -4.625 | CD6: 86.5
B7: 8 | C7: 4 | D7: RD | F7: 5 | G7: DTG | H7: =1.6*3 -> 4.8 | I7: Triple IG Double Strength | K7: A173 | L7: =A173CDIM -> 0.3125 | M7: =A173CDIM+1.0625 -> 1.375 | T7: =Frame_Width-A173CDIM-M7-1.75 -> -3.4375 | U7: =Frame_Height-3 -> -3 | AB7: Top Rail Reinf. | AC7: 0 | AD7: 0 | AE7: 0 | AG7: Top Rail Reinf. | AH7: 0 | AI7: 0 | AJ7: 0 | AP7: =IF(AND(AO7=7,$AM$4>=4,$AM$4<=4.99),AO7&"-"&"3",0) ->  | AU7: =IF(AND(AT7=7,$AR$4>=4,$AR$4<=4.99),AT7&"-"&"3",0) ->  | AW7: =IF(AY7>"",3,"") ->  | AX7: Inside Pane | AY7: =IF(AND(EXT_2=1,Thickness_Select=1),"Clear","") ->  | AZ7: =IF(AND(EXT_2=1,Thickness_Select=1),"Clear","") ->  | BA7: =IF(AND(EXT_2=1,Thickness_Select=1),"SB60","") ->  | BB7: =IF(AND(EXT_2=1,Thickness_Select=1),"Clear","") ->  | BE7: SolarTherm-2 | BG7: 82SP | BQ7: =IF(AND(BP7=6,$BN$4>=10,$BN$4<=12),BP7&"C",0) ->  | BV7: =IF(AND(BU7=6,$BS$4>=10,$BS$4<=12),BU7&"C",0) ->  | BZ7: A570 | CA7: =Frame_Width-2.3125 -> -2.3125 | CB7: =Frame_Height-2.3125 -> -2.3125 | CC7: -2.3125 | CD7: 86.25
B8: 9 | C8: 5 | D8: BU | F8: 6 | G8: L | H8: =2.683*2 -> 5.366 | I8: Laminated | K8: A175 | L8: =A175CDIM -> 0.375 | M8: =A175CDIM+1.0625 -> 1.4375 | T8: =Frame_Width-(M8*2)-(2.9*2)-1.01 -> -9.685 | U8: =Frame_Height-3 -> -3 | AB8: Top Stile Reinf | AC8: 0 | AD8: 0 | AE8: 0 | AG8: Top Stile Reinf | AH8: 0 | AI8: 0 | AJ8: 0 | AM8: Top Tube length | AP8: =IF(AND(AO8=7,$AM$4>=5,$AM$4<=5.99),AO8&"-"&"4",0) ->  | AR8: Bott. Tube Length | AU8: =IF(AND(AT8=7,$AR$4>=5,$AR$4<=5.99),AT8&"-"&"4",0) ->  | AW8: =IF(AY8>"",4,"") ->  | AX8: Spacer | AY8: =IF(AND(EXT_2=1,Thickness_Select=1),"Intercept","") ->  | AZ8: =IF(AND(EXT_2=1,Thickness_Select=1),"Intercept","") ->  | BA8: =IF(AND(EXT_2=1,Thickness_Select=1),"Intercept","") ->  | BB8: =IF(AND(EXT_2=1,Thickness_Select=1),"SST","") ->  | BE8: SolarTherm Plus | BG8: 8SPS | BQ8: =IF(AND(BP8=6,$BN$4>=13,$BN$4<=15),BP8&"D",0) ->  | BV8: =IF(AND(BU8=6,$BS$4>=13,$BS$4<=15),BU8&"D",0) ->  | BZ8: A770 | CA8: =Frame_Width-2.3125 -> -2.3125 | CB8: =Frame_Height-2.3125 -> -2.3125 | CC8: -2.3125 | CD8: 86.25
B9: 10 | C9: 5 | D9: BU | I9: 1 | K9: A191 | AB9: Top Glass | AC9: 0 | AD9: 0 | AE9: 0 | AG9: Top Glass | AH9: 0 | AI9: 0 | AJ9: 0 | AM9: =TOPTUBELENGTH ->  | AP9: =IF(AND(AO9=7,$AM$4>=6,$AM$4<=7.99),AO9&"-"&"5",0) ->  | AR9: =BOTTUBELENGTH ->  | AU9: =IF(AND(AT9=7,$AR$4>=6,$AR$4<=7.99),AT9&"-"&"5",0) ->  | AW9: =IF(AY9>"",5,"") ->  | AX9: Gas | AY9: =IF(AND(EXT_2=1,Thickness_Select=1),"Air","") ->  | AZ9: =IF(AND(EXT_2=1,Thickness_Select=1),"Argon","") ->  | BA9: =IF(AND(EXT_2=1,Thickness_Select=1),"Argon","") ->  | BB9: =IF(AND(EXT_2=1,Thickness_Select=1),"Argon","") ->  | BE9: 2 | BG9: 8SPP | BQ9: =IF(AND(BP9=6,$BN$4>=16,$BN$4<=20),BP9&"E",0) ->  | BV9: =IF(AND(BU9=6,$BS$4>=16,$BS$4<=20),BU9&"E",0) ->  | BZ9: A280 | CA9: =Frame_Width-2.5625 -> -2.5625 | CB9: =Frame_Height-2.5625 -> -2.5625 | CC9: -2.5625 | CD9: 86.5
B10: 11 | C10: 6 | D10: YW | H10: =VLOOKUP(Glass,F3:H10,3,FALSE) -> 2.314 | I10: =VLOOKUP(Glass,F3:H10,2,FALSE) -> S | K10: A192 | L10: =A192CDIM -> 0 | M10: =A192CDIM-1.75 -> -1.75 | AB10: Top Spacer | AC10: 0 | AD10: 0 | AE10: 0 | AG10: Top Spacer | AH10: 0 | AI10: 0 | AJ10: 0 | AP10: =IF(AND(AO10=7,$AM$4>=8,$AM$4<=9.99),AO10&"-"&"9",0) ->  | AU10: =IF(AND(AT10=7,$AR$4>=8,$AR$4<=9.99),AT10&"-"&"9",0) ->  | AW10: =IF(AY10>"",6,"") ->  | AX10: R-Value | AY10: =IF(AND(EXT_2=1,Thickness_Select=1),"2.04","") ->  | AZ10: =IF(AND(EXT_2=1,Thickness_Select=1),4,"") ->  | BA10: =IF(AND(EXT_2=1,Thickness_Select=1),4.17,"") ->  | BB10: =IF(AND(EXT_2=1,Thickness_Select=1),4,"") ->  | BG10: 8POS | BQ10: =IF(AND(BP10=6,$BN$4>=21,$BN$4<=24),"Dbl."&BP10&"C",0) ->  | BV10: =IF(AND(BU10=6,$BS$4>=21,$BS$4<=24),"Dbl."&BU10&"C",0) ->  | BZ10: A580 | CA10: =Frame_Width-2.5625 -> -2.5625 | CB10: =Frame_Height-2.5625 -> -2.5625 | CC10: -2.5625 | CD10: 86.5
B11: 12 | C11: 6 | D11: YW | K11: A193 | X11: =IF(AND(OR(ModelNo="A140",ModelNo="A144",ModelNo="A146",ModelNo="A740",ModelNo="A744",ModelNo="A746",ModelNo="A840",ModelNo="A844",ModelNo="A846"),EH<6),1,0) ->  | Y11: SHATERROR | AB11: Top Hardware | AC11: 0 | AD11: 0 | AE11: 0 | AG11: Top Hardware | AH11: 0 | AI11: 0 | AJ11: 0 | AP11: =IF(AND(AO11=7,$AM$4>=10,$AM$4<=13.99),AO11&"-"&"11",0) ->  | AU11: =IF(AND(AT11=7,$AR$4>=10,$AR$4<=13.99),AT11&"-"&"11",0) ->  | AW11: =IF(AY11>"",7,"") ->  | AX11: U-Value | AY11: =IF(AND(EXT_2=1,Thickness_Select=1),"0.49","") ->  | AZ11: =IF(AND(EXT_2=1,Thickness_Select=1),0.25,"") ->  | BA11: =IF(AND(EXT_2=1,Thickness_Select=1),0.24,"") ->  | BB11: =IF(AND(EXT_2=1,Thickness_Select=1),0.24,"") ->  | BE11: Glass Thickness | BG11: 8SOP | BQ11: =IF(AND(BP11=6,$BN$4>=25,$BN$4<=30),"Dbl."&BP11&"D",0) ->  | BV11: =IF(AND(BU11=6,$BS$4>=25,$BS$4<=30),"Dbl."&BU11&"D",0) ->  | BZ11: A780 | CA11: =Frame_Width-2.5625 -> -2.5625 | CB11: =Frame_Height-2.5625 -> -2.5625 | CC11: -2.5625 | CD11: 86.5
B12: 13 | C12: 7 | D12: GN | I12: Extrusion | K12: A194 | X12: =IF(OR(ModelNo="A140",ModelNo="A144",ModelNo="A146"),A140RADIUS,IF(OR(ModelNo="A740",ModelNo="A744",ModelNo="A746"),A740RADIUS,IF(OR(ModelNo="A840",ModelNo="A844",ModelNo="A846"),A840RADIUS,0))) -> 0 | Y12: SHATRADIUS | AB12: Top Bead | AC12: 0 | AD12: 0 | AE12: 0 | AG12: Top Bead | AH12: 0 | AI12: 0 | AJ12: 0 | AP12: =IF(AND(AO12=7,$AM$4>=14,$AM$4<=18),AO12&"-"&"12",0) ->  | AU12: =IF(AND(AT12=7,$AR$4>=14,$AR$4<=18),AT12&"-"&"12",0) ->  | AW12: =IF(AY12>"",8,"") ->  | AX12: Visible Light Transmittance | AY12: =IF(AND(EXT_2=1,Thickness_Select=1),"81%","") ->  | AZ12: =IF(AND(EXT_2=1,Thickness_Select=1),"71%","") ->  | BA12: =IF(AND(EXT_2=1,Thickness_Select=1),"62%","") ->  | BB12: =IF(AND(EXT_2=1,Thickness_Select=1),"71%","") ->  | BE12: =IF(EXT_2=1,"3/4""",IF(EXT_2=4,"7/8""",IF(EXT_2=5,"1""","13/16"""))) -> 13/16" | BG12: 8PS3 | BH12: =VLOOKUP($N$4,$BG$23:$BJ$42,4) ->  | BQ12: =IF(AND(BP12=6,$BN$4>=31,$BN$4<=40),"Dbl."&BP12&"E",0) ->  | BV12: =IF(AND(BU12=6,$BS$4>=31,$BS$4<=40),"Dbl."&BU12&"E",0) ->  | BZ12: A390 | CA12: =Frame_Width-2.5625 -> -2.5625 | CB12: =Frame_Height-2.5625 -> -2.5625 | CC12: -2.5625 | CD12: 86.5
B13: 14 | C13: 7 | D13: GN | H13: 1 | I13: =IF(EXT_1=0,"",EXT_1) ->  | K13: A195 | X13: =VLOOKUP(EXTRUSION,X15:Y24,2,FALSE) ->  | Y13: MINRADIUS | AB13: Bottom Top Rail | AC13: =(Frame_Width-2.125)/12 -> -0.1770833333 | AD13: 0.243 | AE13: =AC13*AD13 -> -0.04303125 | AG13: Bottom Top Rail | AH13: =(Frame_Width-2.125)/12 -> -0.1770833333 | AI13: 0.355 | AJ13: =AH13*AI13 -> -0.06286458333 | AN13: =IF(AND(AO13>0,AP13>0),AO13,0) ->  | AO13: =IF(AND($AN$4<=9,$AN$4>7),9,0) ->  | AP13: =IF(AND(AO13=9,$AM$4>=3,$AM$4<=4.99),AO13&"-"&"1",0) ->  | AS13: =IF(AND(AT13>0,AU13>0),AT13,0) ->  | AT13: =IF(AND($AS$4<=9,$AS$4>7),9,0) ->  | AU13: =IF(AND(AT13=9,$AR$4>=3,$AR$4<=4.99),AT13&"-"&"1",0) ->  | AW13: =IF(AY13>"",9,"") ->  | AX13: Ultraviolet Light Transmittance | AY13: =IF(AND(EXT_2=1,Thickness_Select=1),"58%","") ->  | AZ13: =IF(AND(EXT_2=1,Thickness_Select=1),"16%","") ->  | BA13: =IF(AND(EXT_2=1,Thickness_Select=1),"5%","") ->  | BB13: =IF(AND(EXT_2=1,Thickness_Select=1),"16%","") ->  | BE13: =IF(EXT_2=1,"13/16""",IF(EXT_2=3,"1""","")) ->  | BG13: 8SP3 | BH13: =VLOOKUP($N$4,$BG$23:$BJ$42,4) ->  | BP13: =IF(AND($BO$4<=8,$BO$4>6),8,0) ->  | BQ13: =IF(AND(BP13=8,$BN$4>=2,$BN$4<=6),BP13&"A",0) ->  | BU13: =IF(AND($BT$4<=8,$BT$4>6),8,0) ->  | BV13: =IF(AND(BU13=8,$BS$4>=2,$BS$4<=6),BU13&"A",0) ->  | BZ13: A990 | CA13: =Frame_Width-2.5625 -> -2.5625 | CB13: =Frame_Height-2.5625 -> -2.5625 | CC13: -2.5625 | CD13: 86.5
B14: 15 | C14: 8 | D14: LG | H14: 2 | I14: =IF(EXT_2=0,"",EXT_2) ->  | K14: B191 | AB14: Bottom Bottom Rail | AC14: =(Frame_Width-2.125)/12 -> -0.1770833333 | AD14: 0.216 | AE14: -0.03825 | AG14: Bottom Bottom Rail | AH14: =(Frame_Width-2.8125)/12 -> -0.234375 | AI14: 0.355 | AJ14: -0.083203125 | AP14: =IF(AND(AO14=9,$AM$4>=5,$AM$4<=6.99),AO14&"-"&"2",0) ->  | AU14: =IF(AND(AT14=9,$AR$4>=5,$AR$4<=6.99),AT14&"-"&"2",0) ->  | AV14: x | AW14: =IF(AY14>"",10,"") ->  | AX14: Solar Heat Gain Coefficient | AY14: =IF(AND(EXT_2=1,Thickness_Select=1),"0.75","") ->  | AZ14: =IF(AND(EXT_2=1,Thickness_Select=1),0.38,"") ->  | BA14: =IF(AND(EXT_2=1,Thickness_Select=1),0.36,"") ->  | BB14: =IF(AND(EXT_2=1,Thickness_Select=1),0.38,"") ->  | BE14: 1 | BG14: A991 | BQ14: =IF(AND(BP14=8,$BN$4>=7,$BN$4<=10),BP14&"B",0) ->  | BV14: =IF(AND(BU14=8,$BS$4>=7,$BS$4<=10),BU14&"B",0) ->  | CA14: =Frame_Width-4.125 -> -4.125 | CB14: =Frame_Height-4.125 -> -4.125 | CC14: -4.125
B15: 16 | C15: 8 | D15: LG | H15: 3 | I15: =IF(EXT_3=0,"",EXT_3) ->  | K15: B192 | X15: Mezzo | Y15: 12.5 | AB15: Bottom Stile | AC15: =((A571CDIM-0.875)*2)/12 -> -0.1458333333 | AD15: 0.185 | AE15: -0.02697916667 | AG15: Bottom Stile | AH15: =((A581CDIM-1.5)*2)/12 -> -0.25 | AI15: 0.361 | AJ15: -0.09025 | AP15: =IF(AND(AO15=9,$AM$4>=7,$AM$4<=8.99),AO15&"-"&"3",0) ->  | AU15: =IF(AND(AT15=9,$AR$4>=7,$AR$4<=8.99),AT15&"-"&"3",0) ->  | AX15: 13/16 | BG15: A501 | BH15: =VLOOKUP($N$4,$BG$23:$BJ$42,4) ->  | BQ15: =IF(AND(BP15=8,$BN$4>=11,$BN$4<=13),BP15&"C",0) ->  | BV15: =IF(AND(BU15=8,$BS$4>=11,$BS$4<=13),BU15&"C",0) ->  | CA15: =Frame_Width-5.5625 -> -5.5625 | CB15: =Frame_Height-7.4375 -> -7.4375 | CC15: -5.5625
B16: 17 | C16: 9 | D16: NAT | H16: 4 | I16: =IF(EXT_4=0,"",EXT_4) ->  | K16: B193 | X16: Mezzo/N.F | Y16: 13 | AB16: Bottom Rail Reinf. | AC16: =((AC13*12)-3)/12 -> -0.4270833333 | AD16: 0.172 | AE16: -0.07345833333 | AG16: Bottom Rail Reinf. | AH16: =((AH13*12)-2.6875)/12 -> -0.4010416667 | AI16: 0.138 | AJ16: -0.05534375 | AP16: =IF(AND(AO16=9,$AM$4>=9,$AM$4<=10.99),AO16&"-"&"4",0) ->  | AU16: =IF(AND(AT16=9,$AR$4>=9,$AR$4<=10.99),AT16&"-"&"4",0) ->  | AW16: =IF(AY16>"",1,"") ->  | AX16: Outside Pane | AY16: =IF(OR(AND(EXT_2=1,Thickness_Select=2),AND(OR(EXT_2=2,EXT_2=3),Thickness_Select=1)),"Clear","") ->  | AZ16: =IF(OR(AND(EXT_2=1,Thickness_Select=2),AND(OR(EXT_2=2,EXT_2=3),Thickness_Select=1)),"SB60","") ->  | BA16: =IF(OR(AND(EXT_2=1,Thickness_Select=2),AND(OR(EXT_2=2,EXT_2=3),Thickness_Select=1)),"SB60","") ->  | BB16: =IF(OR(AND(EXT_2=1,Thickness_Select=2),AND(OR(EXT_2=2,EXT_2=3),Thickness_Select=1)),"SB60","") ->  | BG16: =ModelNo -> Select Model | BH16: =VLOOKUP($BG$16,$BG$5:$BI$15,2,FALSE) ->  | BI16: =VLOOKUP($BG$16,$BG$5:$BI$15,3,FALSE) ->  | BQ16: =IF(AND(BP16=8,$BN$4>=14,$BN$4<=15),BP16&"D",0) ->  | BV16: =IF(AND(BU16=8,$BS$4>=14,$BS$4<=15),BU16&"D",0) ->  | CA16: =Frame_Width-5.5625 -> -5.5625 | CB16: =Frame_Height-5.5625 -> -5.5625 | CC16: -5.5625
B17: 18 | C17: 9 | D17: NAT | H17: 5 | I17: =IF(EXT_5=0,"",EXT_5) ->  | K17: B194 | X17: Mezzo w/Stucco | Y17: 13.5 | AB17: Bottom Stile Reinf. | AE17: 0 | AG17: Bottom Stile Reinf. | AJ17: 0 | AP17: =IF(AND(AO17=9,$AM$4>=11,$AM$4<=11.99),AO17&"-"&"5",0) ->  | AU17: =IF(AND(AT17=9,$AR$4>=11,$AR$4<=11.99),AT17&"-"&"5",0) ->  | AW17: =IF(AY17>"",2,"") ->  | AX17: Middle Pane | AY17: =IF(OR(AND(EXT_2=1,Thickness_Select=2),AND(OR(EXT_2=2,EXT_2=3),Thickness_Select=1)),"N/A","") ->  | AZ17: =IF(OR(AND(EXT_2=1,Thickness_Select=2),AND(OR(EXT_2=2,EXT_2=3),Thickness_Select=1)),"N/A","") ->  | BA17: =IF(OR(AND(EXT_2=1,Thickness_Select=2),AND(OR(EXT_2=2,EXT_2=3),Thickness_Select=1)),"N/A","") ->  | BB17: =IF(OR(AND(EXT_2=1,Thickness_Select=2),AND(OR(EXT_2=2,EXT_2=3),Thickness_Select=1)),"N/A","") ->  | BQ17: =IF(AND(BP17=8,$BN$4>=16,$BN$4<=18),BP17&"E",0) ->  | BV17: =IF(AND(BU17=8,$BS$4>=16,$BS$4<=18),BU17&"E",0) ->  | BZ17: A680 | CC17: =MAX(CC14:CC16) -> -4.125 | CD17: 88
B18: 19 | C18: 10 | D18: PK | I18: 1 | J18: =VLOOKUP(EXTSELECT,H13:I17,2,FALSE) ->  | K18: B195 | X18: 70 Series 1-3/8" NFS | Y18: 11.75 | AB18: Bottom Glass | AC18: =((A571CDIM-3.0625)*(Frame_Width-4.3125))/144 -> 0.09171549479 | AD18: =$H$10 -> 2.314 | AE18: 0.2122296549 | AG18: Bottom Glass | AH18: =((A581CDIM-4)*(Frame_Width-5.3125))/144 -> 0.1475694444 | AI18: =$H$10 -> 2.314 | AJ18: 0.3414756944 | AP18: =IF(AND(AO18=9,$AM$4>=12,$AM$4<=12.99),AO18&"-"&"6",0) ->  | AU18: =IF(AND(AT18=9,$AR$4>=12,$AR$4<=12.99),AT18&"-"&"6",0) ->  | AW18: =IF(AY18>"",3,"") ->  | AX18: Inside Pane | AY18: =IF(OR(AND(EXT_2=1,Thickness_Select=2),AND(OR(EXT_2=2,EXT_2=3),Thickness_Select=1)),"Clear","") ->  | AZ18: =IF(OR(AND(EXT_2=1,Thickness_Select=2),AND(OR(EXT_2=2,EXT_2=3),Thickness_Select=1)),"Clear","") ->  | BA18: =IF(OR(AND(EXT_2=1,Thickness_Select=2),AND(OR(EXT_2=2,EXT_2=3),Thickness_Select=1)),"SB60","") ->  | BB18: =IF(OR(AND(EXT_2=1,Thickness_Select=2),AND(OR(EXT_2=2,EXT_2=3),Thickness_Select=1)),"Clear","") ->  | BQ18: =IF(AND(BP18=8,$BN$4>=19,$BN$4<=20),"Dbl."&BP18&"B",0) ->  | BV18: =IF(AND(BU18=8,$BS$4>=19,$BS$4<=20),"Dbl."&BU18&"B",0) ->  | CA18: =Frame_Width-4.125 -> -4.125 | CB18: =Frame_Height-4.125 -> -4.125 | CC18: =MAX(CA18:CB18) -> -4.125
B19: 20 | C19: 10 | D19: PK | I19: =VLOOKUP(EXTSELECT,H13:I17,2,FALSE) ->  | K19: A201 | L19: =A201CDIM -> 0 | M19: =A201CDIM-0.5625 -> -0.5625 | O19: =$AE$45 -> 0 | P19: =AE44 -> 0 | Q19: 1.3125 | R19: 7.3125 | S19: 1.75 | T19: =Frame_Width-4.406 -> -4.406 | U19: =IF(TRUNC((Frame_Height-M19-R19)*16+0.5)/16<(TRUNC((L19-$Y$5-S19)*16+0.5)/16),TRUNC((Frame_Height-M19-R19)*16+0.5)/16,TRUNC((L19-$Y$5-S19)*16+0.5)/16) ->  | X19: 80 Series 1-3/8" NFS | Y19: 11.75 | AB19: Bottom Spacer | AC19: =(((A571CDIM-3.0625)*2)+((Frame_Width-4.3125)*2))/12 -> -1.229166667 | AD19: 0.0536 | AE19: =AC19*AD19 -> -0.06588333333 | AG19: Bottom Spacer | AH19: =(((A581CDIM-4)*2)+((Frame_Width-5.3125)*2))/12 -> -1.552083333 | AI19: 0.0536 | AJ19: =AH19*AI19 -> -0.08319166667 | AP19: =IF(AND(AO19=9,$AM$4>=13,$AM$4<=14.99),AO19&"-"&"9",0) ->  | AU19: =IF(AND(AT19=9,$AR$4>=13,$AR$4<=14.99),AT19&"-"&"9",0) ->  | AW19: =IF(AY19>"",4,"") ->  | AX19: Spacer | AY19: =IF(OR(AND(EXT_2=1,Thickness_Select=2),AND(OR(EXT_2=2,EXT_2=3),Thickness_Select=1)),"Intercept","") ->  | AZ19: =IF(OR(AND(EXT_2=1,Thickness_Select=2),AND(OR(EXT_2=2,EXT_2=3),Thickness_Select=1)),"Intercept","") ->  | BA19: =IF(OR(AND(EXT_2=1,Thickness_Select=2),AND(OR(EXT_2=2,EXT_2=3),Thickness_Select=1)),"Intercept","") ->  | BB19: =IF(OR(AND(EXT_2=1,Thickness_Select=2),AND(OR(EXT_2=2,EXT_2=3),Thickness_Select=1)),"SST","") ->  | BQ19: =IF(AND(BP19=8,$BN$4>=21,$BN$4<=26),"Dbl."&BP19&"C",0) ->  | BV19: =IF(AND(BU19=8,$BS$4>=21,$BS$4<=26),"Dbl."&BU19&"C",0) ->  | CA19: =Frame_Width-5.5625 -> -5.5625 | CB19: =Frame_Height-7.4375 -> -7.4375 | CC19: =MAX(CA19:CB19) -> -5.5625
B20: 21 | C20: 56 | D20: BU | H20: Offset >> | I20: =Offset -> 0 | K20: A202 | L20: =A202CDIM -> 0 | M20: =A202CDIM-0.625 -> -0.625 | T20: =Frame_Width-(A202DDIM+4.875) -> -4.875 | U20: =Frame_Height-(2.177*2) -> -4.354 | X20: 70 Seires 7/8" NFS | Y20: 11.75 | AB20: Bottom Hardware | AC20: 1 | AD20: 0.36 | AE20: =AC20*AD20 -> 0.36 | AG20: Bottom Hardware | AH20: 1 | AI20: 0.36 | AJ20: =AH20*AI20 -> 0.36 | AP20: =IF(AND(AO20=9,$AM$4>=15,$AM$4<=17.99),AO20&"-"&"11",0) ->  | AU20: =IF(AND(AT20=9,$AR$4>=15,$AR$4<=17.99),AT20&"-"&"11",0) ->  | AW20: =IF(AY20>"",5,"") ->  | AX20: Gas | AY20: =IF(OR(AND(EXT_2=1,Thickness_Select=2),AND(OR(EXT_2=2,EXT_2=3),Thickness_Select=1)),"Air","") ->  | AZ20: =IF(OR(AND(EXT_2=1,Thickness_Select=2),AND(OR(EXT_2=2,EXT_2=3),Thickness_Select=1)),"Argon","") ->  | BA20: =IF(OR(AND(EXT_2=1,Thickness_Select=2),AND(OR(EXT_2=2,EXT_2=3),Thickness_Select=1)),"Argon","") ->  | BB20: =IF(OR(AND(EXT_2=1,Thickness_Select=2),AND(OR(EXT_2=2,EXT_2=3),Thickness_Select=1)),"Argon","") ->  | BG20: CALDWELL BALANCE CHART A581 | BQ20: =IF(AND(BP20=8,$BN$4>=27,$BN$4<=32),"Dbl."&BP20&"D",0) ->  | BV20: =IF(AND(BU20=8,$BS$4>=27,$BS$4<=32),"Dbl."&BU20&"D",0) ->  | CA20: =Frame_Width-5.5625 -> -5.5625 | CB20: =Frame_Height-5.5625 -> -5.5625 | CC20: =MAX(CA20:CB20) -> -5.5625
B21: 22 | C21: 56 | D21: BU | H21: EXT_MESSAGE >> | I21: =IF(AND(EXTSELECT=1,OR(SELECTEXT="Select Reinforcement",SELECTEXT="Select Extrusion",SELECTEXT="Operator Position")),"<< Must Select","") ->  | K21: A203 | L21: =A203CDIM -> 0.6875 | M21: =A203CDIM-0.4375 -> 0.25 | T21: =(Frame_Width-(A203DDIM+4.229))/2 -> -1.45825 | U21: =Frame_Height-(2.177*2) -> -4.354 | X21: 80 Series 1" NFS | Y21: 11.75 | AB21: Bottom Bead | AC21: =(((Frame_Width-4)*2)+((A571CDIM-2.75)*2))/12 -> -1.125 | AD21: 0.019 | AE21: =AC21*AD21 -> -0.021375 | AG21: Bottom Bead | AH21: =(((Frame_Width-5.0625)*2)+((A581CDIM-3.75)*2))/12 -> -1.46875 | AI21: 0.019 | AJ21: =AH21*AI21 -> -0.02790625 | AN21: =IF(AND(AO21>0,AP21>0),AO21,0) ->  | AP21: =IF(AND(AO21=9,$AM$4>=18,$AM$4<=22),AO21&"-"&"12",0) ->  | AU21: =IF(AND(AT21=9,$AR$4>=18,$AR$4<=22),AT21&"-"&"12",0) ->  | AW21: =IF(AY21>"",6,"") ->  | AX21: R-Value | AY21: =IF(OR(AND(EXT_2=1,Thickness_Select=2),AND(OR(EXT_2=2,EXT_2=3),Thickness_Select=1)),"2.04","") ->  | AZ21: =IF(OR(AND(EXT_2=1,Thickness_Select=2),AND(OR(EXT_2=2,EXT_2=3),Thickness_Select=1)),4.17,"") ->  | BA21: =IF(OR(AND(EXT_2=1,Thickness_Select=2),AND(OR(EXT_2=2,EXT_2=3),Thickness_Select=1)),4.17,"") ->  | BB21: =IF(OR(AND(EXT_2=1,Thickness_Select=2),AND(OR(EXT_2=2,EXT_2=3),Thickness_Select=1)),4.17,"") ->  | BG21: SASH HEIGHT | BJ21: Balance | BQ21: =IF(AND(BP21=8,$BN$4>=33,$BN$4<=36),"Dbl."&BP21&"E",0) ->  | BV21: =IF(AND(BU21=8,$BS$4>=33,$BS$4<=36),"Dbl."&BU21&"E",0) ->  | BZ21: A690 | CC21: =MAX(CC18:CC20) -> -4.125 | CD21: 88
B22: 23 | C22: 66 | D22: YW | H22: LEG_MESSAGE >> | I22: =IF(AND(EXT_CONTROL=0,W>0,H>0,LEG>0),"<< Not a Valid Entry",IF(AND(EXT_CONTROL=1,W>0,H>0,LEG=0),"<< Need Leg Height",IF(AND(OR(ModelNo="A140",ModelNo="A740",ModelNo="A840"),W>0,H>0,LEG<>(Frame_Height-(Frame_Width/2))),"<< Leg Should be"&" "&(Frame_Height-(Frame_Width/2)),""))) ->  | K22: A204 | X22: J-Channel | Y22: 11.75 | AD22: Top Sash | AE22: 0 | AI22: Top Sash | AJ22: 0 | AO22: =IF(AND($AN$4<=11,$AN$4>9),11,0) ->  | AP22: =IF(AND(AO22=11,$AM$4>=3,$AM$4<=4.99),AO22&"-"&"1",0) ->  | AT22: =IF(AND($AS$4<=11,$AS$4>9),11,0) ->  | AU22: =IF(AND(AT22=11,$AR$4>=3,$AR$4<=4.99),AT22&"-"&"1",0) ->  | AW22: =IF(AY22>"",7,"") ->  | AX22: U-Value | AY22: =IF(OR(AND(EXT_2=1,Thickness_Select=2),AND(OR(EXT_2=2,EXT_2=3),Thickness_Select=1)),"0.49","") ->  | AZ22: =IF(OR(AND(EXT_2=1,Thickness_Select=2),AND(OR(EXT_2=2,EXT_2=3),Thickness_Select=1)),0.24,"") ->  | BA22: =IF(OR(AND(EXT_2=1,Thickness_Select=2),AND(OR(EXT_2=2,EXT_2=3),Thickness_Select=1)),0.24,"") ->  | BB22: =IF(OR(AND(EXT_2=1,Thickness_Select=2),AND(OR(EXT_2=2,EXT_2=3),Thickness_Select=1)),0.24,"") ->  | BG22: RANGE | BJ22: Length | BP22: =IF(AND($BO$4<=10,$BO$4>8),10,0) ->  | BQ22: =IF(AND(BP22=10,$BN$4>=1,$BN$4<=6),BP22&"A",0) ->  | BU22: =IF(AND($BT$4<=10,$BT$4>8),10,0) ->  | BV22: =IF(AND(BU22=10,$BS$4>=1,$BS$4<=6),BU22&"A",0) ->  | BZ22: A17A | CA22: =Frame_Width-2 -> -2 | CB22: =Frame_Height-5.75 -> -5.75 | CC22: =MAX(CA22:CB22) -> -2 | CD22: 86
B23: 24 | C23: 66 | D23: YW | I23: Type | K23: A209 | L23: =A209CDIM -> 0.1875 | M23: =A209CDIM-0.4375 -> -0.25 | T23: =(Frame_Width-(A209DDIM+4.229))/2 -> -1.95825 | U23: =Frame_Height-(2.177*2) -> -4.354 | X23: 70 Series Flush Fin | Y23: 11.75 | AD23: Bottom Sash | AE23: =IF(OR(ModelNo="A571",ModelNo="A740",ModelNo="A744",ModelNo="A746"),TRUNC(SUM(AE13:AE21)),0) -> 0 | AI23: Bottom Sash | AJ23: =IF(OR(ModelNo="A581",ModelNo="A840",ModelNo="A844",ModelNo="A846"),TRUNC(SUM(AJ13:AJ21)),0) -> 0 | AP23: =IF(AND(AO23=11,$AM$4>=5,$AM$4<=6.99),AO23&"-"&"2",0) ->  | AU23: =IF(AND(AT23=11,$AR$4>=5,$AR$4<=6.99),AT23&"-"&"2",0) ->  | AW23: =IF(AY23>"",8,"") ->  | AX23: Visible Light Transmittance | AY23: =IF(OR(AND(EXT_2=1,Thickness_Select=2),AND(OR(EXT_2=2,EXT_2=3),Thickness_Select=1)),"81%","") ->  | AZ23: =IF(OR(AND(EXT_2=1,Thickness_Select=2),AND(OR(EXT_2=2,EXT_2=3),Thickness_Select=1)),"71%","") ->  | BA23: =IF(OR(AND(EXT_2=1,Thickness_Select=2),AND(OR(EXT_2=2,EXT_2=3),Thickness_Select=1)),"62%","") ->  | BB23: =IF(OR(AND(EXT_2=1,Thickness_Select=2),AND(OR(EXT_2=2,EXT_2=3),Thickness_Select=1)),"71%","") ->  | BG23: 9.75 | BH23: to | BI23: 11.749 | BJ23: 7 | BQ23: =IF(AND(BP23=10,$BN$4>=7,$BN$4<=10),BP23&"B",0) ->  | BV23: =IF(AND(BU23=10,$BS$4>=7,$BS$4<=10),BU23&"B",0) ->  | BZ23: 3A04 | CA23: =Frame_Width-4.1875 -> -4.1875 | CB23: =Frame_Height-4.1875 -> -4.1875 | CC23: =MAX(CA23:CB23) -> -4.1875 | CD23: 88
B24: 25 | C24: 67 | D24: GN | H24: 1 | I24: =IF(TYPE1>0,TYPE1,"") ->  | K24: A270 | X24: 80 Series Flush Fin | Y24: 11.75 | AP24: =IF(AND(AO24=11,$AM$4>=7,$AM$4<=8.99),AO24&"-"&"3",0) ->  | AU24: =IF(AND(AT24=11,$AR$4>=7,$AR$4<=8.99),AT24&"-"&"3",0) ->  | AV24: x | AW24: =IF(AY24>"",9,"") ->  | AX24: Ultraviolet Light Transmittance | AY24: =IF(OR(AND(EXT_2=1,Thickness_Select=2),AND(OR(EXT_2=2,EXT_2=3),Thickness_Select=1)),"58%","") ->  | AZ24: =IF(OR(AND(EXT_2=1,Thickness_Select=2),AND(OR(EXT_2=2,EXT_2=3),Thickness_Select=1)),"16%","") ->  | BA24: =IF(OR(AND(EXT_2=1,Thickness_Select=2),AND(OR(EXT_2=2,EXT_2=3),Thickness_Select=1)),"5%","") ->  | BB24: =IF(OR(AND(EXT_2=1,Thickness_Select=2),AND(OR(EXT_2=2,EXT_2=3),Thickness_Select=1)),"16%","") ->  | BG24: 11.75 | BH24: to | BI24: 13.749 | BJ24: 9 | BQ24: =IF(AND(BP24=10,$BN$4>=11,$BN$4<=13),BP24&"C",0) ->  | BV24: =IF(AND(BU24=10,$BS$4>=11,$BS$4<=13),BU24&"C",0) ->  | BZ24: 03S4 | CA24: =Frame_Width-4.1875 -> -4.1875 | CB24: =Frame_Height-4.1875 -> -4.1875 | CC24: =MAX(CA24:CB24) -> -4.1875 | CD24: 88
B25: 26 | C25: 67 | D25: GN | H25: 2 | I25: =IF(TYPE2>0,TYPE2,"") ->  | K25: A272 | L25: =A272CDIM -> 0 | M25: =A272CDIM-0.875 -> -0.875 | T25: =A272CDIM-2.875 -> -2.875 | U25: =Frame_Height-3.3125 -> -3.3125 | AB25: A201 | AC25: Length | AD25: Weight/ft | AE25: Weight | AG25: A991 | AH25: Length | AI25: Weight/ft | AJ25: Weight | AP25: =IF(AND(AO25=11,$AM$4>=9,$AM$4<=10.99),AO25&"-"&"4",0) ->  | AU25: =IF(AND(AT25=11,$AR$4>=9,$AR$4<=10.99),AT25&"-"&"4",0) ->  | AW25: =IF(AY25>"",10,"") ->  | AX25: Solar Heat Gain Coefficient | AY25: =IF(OR(AND(EXT_2=1,Thickness_Select=2),AND(OR(EXT_2=2,EXT_2=3),Thickness_Select=1)),"0.75","") ->  | AZ25: =IF(OR(AND(EXT_2=1,Thickness_Select=2),AND(OR(EXT_2=2,EXT_2=3),Thickness_Select=1)),0.38,"") ->  | BA25: =IF(OR(AND(EXT_2=1,Thickness_Select=2),AND(OR(EXT_2=2,EXT_2=3),Thickness_Select=1)),0.36,"") ->  | BB25: =IF(OR(AND(EXT_2=1,Thickness_Select=2),AND(OR(EXT_2=2,EXT_2=3),Thickness_Select=1)),0.38,"") ->  | BG25: 13.75 | BH25: to | BI25: 15.749 | BJ25: 11 | BQ25: =IF(AND(BP25=10,$BN$4>=14,$BN$4<=16),BP25&"D",0) ->  | BV25: =IF(AND(BU25=10,$BS$4>=14,$BS$4<=16),BU25&"D",0) ->  | BZ25: =Model_Select -> Select Model | CC25: =VLOOKUP(Model_Select,BZ5:CC24,4,FALSE) ->  | CD25: =VLOOKUP(Model_Select,BZ5:CD24,5,FALSE) -> 
B26: 27 | C26: 77 | D26: LG | H26: 3 | I26: =IF(TYPE3>0,TYPE3,"") ->  | K26: A273 | L26: =A273CDIM -> -0.1875 | M26: =A273CDIM-0.875 -> -1.0625 | T26: =A273CDIM-2.875 -> -3.0625 | U26: =Frame_Height-3.3125 -> -3.3125 | AB26: Top Top Rail | AC26: =(Frame_Width-3.25)/12 -> -0.2708333333 | AD26: 0.257 | AE26: =AC26*AD26 -> -0.06960416667 | AG26: Top Top Rail | AH26: 0 | AI26: 0 | AJ26: =AH26*AI26 -> 0 | AP26: =IF(AND(AO26=11,$AM$4>=11,$AM$4<=12.99),AO26&"-"&"5",0) ->  | AU26: =IF(AND(AT26=11,$AR$4>=11,$AR$4<=12.99),AT26&"-"&"5",0) ->  | AX26: 1" | BG26: 15.75 | BH26: to | BI26: 17.749 | BJ26: 13 | BQ26: =IF(AND(BP26=10,$BN$4>=17,$BN$4<=19),BP26&"E",0) ->  | BV26: =IF(AND(BU26=10,$BS$4>=17,$BS$4<=19),BU26&"E",0) ->  | CD26: =IF(CC25>CD25,1,0) ->  | CE26: =IF(CD26=1,"Max Short Glass Must be Less Than "&MAX_SG,"") -> 
B27: 28 | C27: 77 | D27: LG | H27: 4 | I27: =IF(TYPE4>0,TYPE4,"") ->  | K27: A280 | AB27: Top Bottom Rail | AC27: =(Frame_Width-3.25)/12 -> -0.2708333333 | AD27: 0.273 | AE27: -0.0739375 | AG27: Top Bottom Rail | AH27: 0 | AI27: 0 | AJ27: =AH27*AI27 -> 0 | AP27: =IF(AND(AO27=11,$AM$4>=13,$AM$4<=15.99),AO27&"-"&"6",0) ->  | AU27: =IF(AND(AT27=11,$AR$4>=13,$AR$4<=15.99),AT27&"-"&"6",0) ->  | AW27: =IF(AY27>"",1,"") ->  | AX27: Outside Pane | AY27: =IF(AND(EXT_2=3,Thickness_Select=2),"Clear",IF(AND(EXT_2=5,Thickness_Select=1),"Clear","")) ->  | AZ27: =IF(AND(EXT_2=3,Thickness_Select=2),"SB60",IF(AND(EXT_2=5,Thickness_Select=1),"SB60","")) ->  | BA27: =IF(AND(EXT_2=3,Thickness_Select=2),"SB60",IF(AND(EXT_2=5,Thickness_Select=1),"SB60","")) ->  | BB27: =IF(AND(EXT_2=3,Thickness_Select=2),"SB60",IF(AND(EXT_2=5,Thickness_Select=1),"SB60","")) ->  | BC27: =IF(AND(EXT_2=3,Thickness_Select=2),"SB60",IF(AND(EXT_2=5,Thickness_Select=1),"SB60","")) ->  | BG27: 17.75 | BH27: to | BI27: 19.749 | BJ27: 15 | BQ27: =IF(AND(BP27=10,$BN$4=20),"Dbl."&BP27&"B",0) ->  | BV27: =IF(AND(BU27=10,$BS$4=20),"Dbl."&BU27&"B",0) -> 
B28: 29 | C28: 78 | D28: OR | H28: 1 | I28: =VLOOKUP(TYPE,H24:I27,2,FALSE) ->  | K28: A282 | L28: =A282CDIM -> 0 | M28: =A282CDIM-1.5 -> -1.5 | R28: 3.125 | T28: =A282CDIM-3.25 -> -3.25 | U28: =Frame_Height-3.3125 -> -3.3125 | AB28: Top Stile | AC28: =(2*(A201DDIM-1.5625))/12 -> -0.2604166667 | AD28: 0.233 | AE28: -0.06067708333 | AG28: Top Stile | AH28: 0 | AI28: 0 | AJ28: =(AH28*AI28)/12 -> 0 | AP28: =IF(AND(AO28=11,$AM$4>=16,$AM$4<=19.99),AO28&"-"&"9",0) ->  | AU28: =IF(AND(AT28=11,$AR$4>=16,$AR$4<=19.99),AT28&"-"&"9",0) ->  | AW28: =IF(AY28>"",2,"") ->  | AX28: Middle Pane | AY28: =IF(AND(EXT_2=3,Thickness_Select=2),"N/A",IF(AND(EXT_2=5,Thickness_Select=1),"N/A","")) ->  | AZ28: =IF(AND(EXT_2=3,Thickness_Select=2),"N/A",IF(AND(EXT_2=5,Thickness_Select=1),"N/A","")) ->  | BA28: =IF(AND(EXT_2=3,Thickness_Select=2),"N/A",IF(AND(EXT_2=5,Thickness_Select=1),"N/A","")) ->  | BB28: =IF(AND(EXT_2=3,Thickness_Select=2),"N/A",IF(AND(EXT_2=5,Thickness_Select=1),"Clear","")) ->  | BC28: =IF(AND(EXT_2=3,Thickness_Select=2),"Clear",IF(AND(EXT_2=5,Thickness_Select=1),"Clear","")) ->  | BG28: 19.75 | BH28: to | BI28: 21.749 | BJ28: 17 | BQ28: =IF(AND(BP28=10,$BN$4>=21,$BN$4<=26),"Dbl."&BP28&"C",0) ->  | BV28: =IF(AND(BU28=10,$BS$4>=21,$BS$4<=26),"Dbl."&BU28&"C",0) -> 
B29: 30 | C29: 78 | D29: OR | K29: A283 | L29: =A283CDIM -> -0.1875 | M29: =A283CDIM-1.5 -> -1.6875 | T29: =A283CDIM-3.25 -> -3.4375 | U29: =Frame_Height-3.3125 -> -3.3125 | AB29: Top Rail Reinf. | AC29: =(TRUNC(((Frame_Width-3.25)-6)/2)*2)/12 -> -0.6666666667 | AD29: 0.299 | AE29: -0.1993333333 | AG29: Top Rail Reinf. | AH29: 0 | AI29: 0 | AJ29: 0 | AP29: =IF(AND(AO29=11,$AM$4>=20,$AM$4<=23.99),AO29&"-"&"11",0) ->  | AU29: =IF(AND(AT29=11,$AR$4>=20,$AR$4<=23.99),AT29&"-"&"11",0) ->  | AW29: =IF(AY29>"",3,"") ->  | AX29: Inside Pane | AY29: =IF(AND(EXT_2=3,Thickness_Select=2),"Clear",IF(AND(EXT_2=5,Thickness_Select=1),"Clear","")) ->  | AZ29: =IF(AND(EXT_2=3,Thickness_Select=2),"Clear",IF(AND(EXT_2=5,Thickness_Select=1),"Clear","")) ->  | BA29: =IF(AND(EXT_2=3,Thickness_Select=2),"SB60",IF(AND(EXT_2=5,Thickness_Select=1),"SB60","")) ->  | BB29: =IF(AND(EXT_2=3,Thickness_Select=2),"Clear",IF(AND(EXT_2=5,Thickness_Select=1),"SB60","")) ->  | BC29: =IF(AND(EXT_2=3,Thickness_Select=2),"SB60",IF(AND(EXT_2=5,Thickness_Select=1),"SB60","")) ->  | BG29: 21.75 | BH29: to | BI29: 23.749 | BJ29: 19 | BQ29: =IF(AND(BP29=10,$BN$4>=27,$BN$4<=32),"Dbl."&BP29&"D",0) ->  | BV29: =IF(AND(BU29=10,$BS$4>=27,$BS$4<=32),"Dbl."&BU29&"D",0) -> 
B30: 31 | C30: 88 | D30: WT | I30: Opening | K30: A390 | AB30: Top Stile Reinf | AC30: =IF(CMR!$E$15>26.6875,((TRUNC((A201DDIM-9.5)/2)*2)/12)*2,0) -> 0 | AD30: 0.299 | AE30: 0 | AG30: Top Stile Reinf | AH30: 0 | AI30: 0 | AJ30: 0 | AN30: =IF(AND(AO30>0,AP30>0),AO30,0) ->  | AP30: =IF(AND(AO30=11,$AM$4>=24,$AM$4<=27),AO30&"-"&"12",0) ->  | AU30: =IF(AND(AT30=11,$AR$4>=24,$AR$4<=27),AT30&"-"&"12",0) ->  | AW30: =IF(AY30>"",4,"") ->  | AX30: Spacer | AY30: =IF(AND(EXT_2=3,Thickness_Select=2),"Intercept",IF(AND(EXT_2=5,Thickness_Select=1),"Intercept","")) ->  | AZ30: =IF(AND(EXT_2=3,Thickness_Select=2),"Intercept",IF(AND(EXT_2=5,Thickness_Select=1),"Intercept","")) ->  | BA30: =IF(AND(EXT_2=3,Thickness_Select=2),"Intercept",IF(AND(EXT_2=5,Thickness_Select=1),"SST","")) ->  | BB30: =IF(AND(EXT_2=3,Thickness_Select=2),"SST",IF(AND(EXT_2=5,Thickness_Select=1),"SST","")) ->  | BC30: =IF(AND(EXT_2=3,Thickness_Select=2),"Intercept",IF(AND(EXT_2=5,Thickness_Select=1),"SST","")) ->  | BG30: 23.75 | BH30: to | BI30: 25.749 | BJ30: 21 | BQ30: =IF(AND(BP30=10,$BN$4>=33,$BN$4<=38),"Dbl."&BP30&"E",0) ->  | BV30: =IF(AND(BU30=10,$BS$4>=33,$BS$4<=38),"Dbl."&BU30&"E",0) -> 
B31: 32 | C31: 88 | D31: WT | H31: 1 | I31: Exact Size | K31: A392 | L31: =A392CDIM -> 0 | M31: =A392CDIM-1.5 -> -1.5 | T31: =A392CDIM-3.25 -> -3.25 | U31: =Frame_Height-3.3125 -> -3.3125 | AB31: Top Glass | AC31: =(CMR!$E$13*CMR!$E$15)/144 -> 0.1079101562 | AD31: =$H$10 -> 2.314 | AE31: 0.2497041016 | AG31: Top Glass | AH31: 0 | AI31: 0 | AJ31: 0 | AO31: =IF(AND($AN$4<=13,$AN$4>11),13,0) ->  | AP31: =IF(AND(AO31=13,$AM$4>=3,$AM$4<=4.99),AO31&"-"&"1",0) ->  | AT31: =IF(AND($AS$4<=13,$AS$4>11),13,0) ->  | AU31: =IF(AND(AT31=13,$AR$4>=3,$AR$4<=4.99),AT31&"-"&"1",0) ->  | AW31: =IF(AY31>"",5,"") ->  | AX31: Gas | AY31: =IF(AND(EXT_2=3,Thickness_Select=2),"Air",IF(AND(EXT_2=5,Thickness_Select=1),"Air","")) ->  | AZ31: =IF(AND(EXT_2=3,Thickness_Select=2),"Argon",IF(AND(EXT_2=5,Thickness_Select=1),"Argon","")) ->  | BA31: =IF(AND(EXT_2=3,Thickness_Select=2),"Argon",IF(AND(EXT_2=5,Thickness_Select=1),"Argon","")) ->  | BB31: =IF(AND(EXT_2=3,Thickness_Select=2),"Argon",IF(AND(EXT_2=5,Thickness_Select=1),"Argon","")) ->  | BC31: =IF(AND(EXT_2=3,Thickness_Select=2),"Argon",IF(AND(EXT_2=5,Thickness_Select=1),"Krypton","")) ->  | BG31: 25.75 | BH31: to | BI31: 27.749 | BJ31: 23 | BP31: =IF(AND($BO$4<=12,$BO$4>10),12,0) ->  | BQ31: =IF(AND(BP31=12,$BN$4>=3,$BN$4<=7),BP31&"A",0) ->  | BU31: =IF(AND($BT$4<=12,$BT$4>10),12,0) ->  | BV31: =IF(AND(BU31=12,$BS$4>=3,$BS$4<=7),BU31&"A",0) -> 
B32: 33 | C32: 89 | D32: NAT | H32: 2 | I32: Rough Opening | K32: A393 | L32: =A393CDIM -> -0.1875 | M32: =A393CDIM-1.5 -> -1.6875 | T32: =A393CDIM-3.25 -> -3.4375 | U32: =Frame_Height-3.3125 -> -3.3125 | AB32: Top Spacer | AC32: =((CMR!$E$13*2)+(CMR!$E$15*2))/12 -> -1.34375 | AD32: 0.0536 | AE32: -0.072025 | AG32: Top Spacer | AH32: 0 | AI32: 0 | AJ32: 0 | AP32: =IF(AND(AO32=13,$AM$4>=5,$AM$4<=7.99),AO32&"-"&"2",0) ->  | AU32: =IF(AND(AT32=13,$AR$4>=5,$AR$4<=7.99),AT32&"-"&"2",0) ->  | AW32: =IF(AY32>"",6,"") ->  | AX32: R-Value | AY32: =IF(AND(EXT_2=3,Thickness_Select=2),"2.0",IF(AND(EXT_2=5,Thickness_Select=1),"2.0","")) ->  | AZ32: =IF(AND(EXT_2=3,Thickness_Select=2),"3.85",IF(AND(EXT_2=5,Thickness_Select=1),"3.85","")) ->  | BA32: =IF(AND(EXT_2=3,Thickness_Select=2),"4.0",IF(AND(EXT_2=5,Thickness_Select=1),"4.0","")) ->  | BB32: =IF(AND(EXT_2=3,Thickness_Select=2),"3.85",IF(AND(EXT_2=5,Thickness_Select=1),"6.67","")) ->  | BC32: =IF(AND(EXT_2=3,Thickness_Select=2),"6.67",IF(AND(EXT_2=5,Thickness_Select=1),"10.0","")) ->  | BG32: 27.75 | BH32: to | BI32: 29.749 | BJ32: 25 | BQ32: =IF(AND(BP32=12,$BN$4>=8,$BN$4<=10),BP32&"B",0) ->  | BV32: =IF(AND(BU32=12,$BS$4>=8,$BS$4<=10),BU32&"B",0) -> 
B33: 34 | C33: 89 | D33: NAT | H33: 2 | I33: =VLOOKUP(RO,H31:I32,2,FALSE) -> Rough Opening | K33: A501 | L33: =A501CDIM -> 0 | M33: =TRUNC((A501CDIM-0.6875)*32+0.5)/32 -> -0.65625 | N33: =TRUNC((A501DDIM-1.6875)*32+0.5)/32 -> -1.65625 | O33: =AE69 -> 0 | P33: =AE68 -> 0 | T33: =Frame_Width-5.9375 -> -5.9375 | U33: =IF(TRUNC((Frame_Height-M33-R33)*16+0.5)/16<(TRUNC((L33-$Y$5-S33)*16+0.5)/16),TRUNC((Frame_Height-M33-R33)*16+0.5)/16,TRUNC((L33-$Y$5-S33)*16+0.5)/16) ->  | W33: =TRUNC((A501DDIM-1.6875)*32+0.5)/32 -> -1.65625 | X33: << Top Sash Height | AB33: Top Hardware | AC33: 1 | AD33: 0.2 | AE33: 0.2 | AG33: Top Hardware | AH33: 0 | AI33: 0 | AJ33: 0 | AP33: =IF(AND(AO33=13,$AM$4>=8,$AM$4<=9.99),AO33&"-"&"3",0) ->  | AU33: =IF(AND(AT33=13,$AR$4>=8,$AR$4<=9.99),AT33&"-"&"3",0) ->  | AW33: =IF(AY33>"",7,"") ->  | AX33: U-Value | AY33: =IF(AND(EXT_2=3,Thickness_Select=2),"0.50",IF(AND(EXT_2=5,Thickness_Select=1),"0.50","")) ->  | AZ33: =IF(AND(EXT_2=3,Thickness_Select=2),"0.26",IF(AND(EXT_2=5,Thickness_Select=1),"0.26","")) ->  | BA33: =IF(AND(EXT_2=3,Thickness_Select=2),"0.25",IF(AND(EXT_2=5,Thickness_Select=1),"0.25","")) ->  | BB33: =IF(AND(EXT_2=3,Thickness_Select=2),"0.26",IF(AND(EXT_2=5,Thickness_Select=1),"0.15","")) ->  | BC33: =IF(AND(EXT_2=3,Thickness_Select=2),"0.15",IF(AND(EXT_2=5,Thickness_Select=1),"0.10","")) ->  | BG33: 29.75 | BH33: to | BI33: 31.749 | BJ33: 27 | BQ33: =IF(AND(BP33=12,$BN$4>=11,$BN$4<=16),BP33&"C",0) ->  | BV33: =IF(AND(BU33=12,$BS$4>=11,$BS$4<=16),BU33&"C",0) -> 
B34: 35 | C34: 99 | D34: PU | K34: A570 | AB34: Top Bead | AC34: =(((Frame_Width-4.3125)*2)+((A201DDIM-2.625)*2))/12 -> -1.15625 | AD34: 0.028 | AE34: -0.032375 | AG34: Top Bead | AH34: 0 | AI34: 0 | AJ34: 0 | AP34: =IF(AND(AO34=13,$AM$4>=10,$AM$4<=12.99),AO34&"-"&"4",0) ->  | AU34: =IF(AND(AT34=13,$AR$4>=10,$AR$4<=12.99),AT34&"-"&"4",0) ->  | AW34: =IF(AY34>"",8,"") ->  | AX34: Visible Light Transmittance | AY34: =IF(AND(EXT_2=3,Thickness_Select=2),"82%",IF(AND(EXT_2=5,Thickness_Select=1),"82%","")) ->  | AZ34: =IF(AND(EXT_2=3,Thickness_Select=2),"72%",IF(AND(EXT_2=5,Thickness_Select=1),"72%","")) ->  | BA34: =IF(AND(EXT_2=3,Thickness_Select=2),"62%",IF(AND(EXT_2=5,Thickness_Select=1),"62%","")) ->  | BB34: =IF(AND(EXT_2=3,Thickness_Select=2),"72%",IF(AND(EXT_2=5,Thickness_Select=1),"57%","")) ->  | BC34: =IF(AND(EXT_2=3,Thickness_Select=2),"57%",IF(AND(EXT_2=5,Thickness_Select=1),"57%","")) ->  | BG34: 31.75 | BH34: to | BI34: 33.749 | BJ34: 29 | BQ34: =IF(AND(BP34=12,$BN$4>=17,$BN$4<=18),BP34&"D",0) ->  | BV34: =IF(AND(BU34=12,$BS$4>=17,$BS$4<=18),BU34&"D",0) -> 
B35: 36 | C35: 99 | D35: PU | H35: =IF(OR(ModelNo="0100",ModelNo="01HP",ModelNo="0102",ModelNo="0103",ModelNo="0104",ModelNo="0109",ModelNo="0151",ModelNo="0152",ModelNo="0153",ModelNo="0154",ModelNo="0155",ModelNo="0170",ModelNo="0171",ModelNo="0172",ModelNo="0173",ModelNo="S174",ModelNo="S175",ModelNo="0179",ModelNo="0301"),1,0) -> 0 | I35: Screen | K35: A571 | L35: =A571CDIM -> 0 | M35: =A571CDIM-0.875 -> -0.875 | O35: =AE23 -> 0 | T35: =Frame_Width-(1.625*2) -> -3.25 | U35: =A571CDIM-3.75 -> -3.75 | AB35: Bottom Top Rail | AC35: =(Frame_Width-2.25)/12 -> -0.1875 | AD35: 0.246 | AE35: =AC35*AD35 -> -0.046125 | AG35: Bottom Top Rail | AH35: =(Frame_Width-2.125)/12 -> -0.1770833333 | AI35: 0.355 | AJ35: =AH35*AI35 -> -0.06286458333 | AP35: =IF(AND(AO35=13,$AM$4>=13,$AM$4<=15.99),AO35&"-"&"5",0) ->  | AU35: =IF(AND(AT35=13,$AR$4>=13,$AR$4<=15.99),AT35&"-"&"5",0) ->  | AV35: x | AW35: =IF(AY35>"",9,"") ->  | AX35: Ultraviolet Light Transmittance | AY35: =IF(AND(EXT_2=3,Thickness_Select=2),"63%",IF(AND(EXT_2=5,Thickness_Select=1),"63%","")) ->  | AZ35: =IF(AND(EXT_2=3,Thickness_Select=2),"16%",IF(AND(EXT_2=5,Thickness_Select=1),"16%","")) ->  | BA35: =IF(AND(EXT_2=3,Thickness_Select=2),"5%",IF(AND(EXT_2=5,Thickness_Select=1),"5%","")) ->  | BB35: =IF(AND(EXT_2=3,Thickness_Select=2),"16%",IF(AND(EXT_2=5,Thickness_Select=1),"5%","")) ->  | BC35: =IF(AND(EXT_2=3,Thickness_Select=2),"5%",IF(AND(EXT_2=5,Thickness_Select=1),"5%","")) ->  | BG35: 33.75 | BH35: to | BI35: 35.749 | BJ35: 31 | BQ35: =IF(AND(BP35=12,$BN$4>=19,$BN$4<=21),BP35&"E",0) ->  | BV35: =IF(AND(BU35=12,$BS$4>=19,$BS$4<=21),BU35&"E",0) -> 
B36: 37 | C36: 766 | D36: BU | H36: 1 | I36: =IF(SCREEN1>"",SCREEN1,"") ->  | K36: A580 | AB36: Bottom Bottom Rail | AC36: =(Frame_Width-2.25)/12 -> -0.1875 | AD36: 0.257 | AE36: -0.0481875 | AG36: Bottom Bottom Rail | AH36: =(Frame_Width-2.8125)/12 -> -0.234375 | AI36: 0.355 | AJ36: -0.083203125 | AP36: =IF(AND(AO36=13,$AM$4>=16,$AM$4<=18.99),AO36&"-"&"6",0) ->  | AU36: =IF(AND(AT36=13,$AR$4>=16,$AR$4<=18.99),AT36&"-"&"6",0) ->  | AW36: =IF(AY36>"",10,"") ->  | AX36: Solar Heat Gain Coefficient | AY36: =IF(AND(EXT_2=3,Thickness_Select=2),"0.78",IF(AND(EXT_2=5,Thickness_Select=1),"0.78","")) ->  | AZ36: =IF(AND(EXT_2=3,Thickness_Select=2),"0.39",IF(AND(EXT_2=5,Thickness_Select=1),"0.39","")) ->  | BA36: =IF(AND(EXT_2=3,Thickness_Select=2),"0.36",IF(AND(EXT_2=5,Thickness_Select=1),"0.36","")) ->  | BB36: =IF(AND(EXT_2=3,Thickness_Select=2),"0.39",IF(AND(EXT_2=5,Thickness_Select=1),"0.33","")) ->  | BC36: =IF(AND(EXT_2=3,Thickness_Select=2),"0.33",IF(AND(EXT_2=5,Thickness_Select=1),"0.33","")) ->  | BG36: 35.75 | BH36: to | BI36: 37.749 | BJ36: 33 | BQ36: =IF(AND(BP36=12,$BN$4>=22,$BN$4<=32),"Dbl."&BP36&"C",0) ->  | BV36: =IF(AND(BU36=12,$BS$4>=22,$BS$4<=32),"Dbl."&BU36&"C",0) -> 
B37: 38 | C37: 766 | D37: BU | H37: 2 | I37: =IF(SCREEN2>"",SCREEN2,"") ->  | K37: A581 | L37: =A581CDIM -> 0 | M37: =A581CDIM-1.5 -> -1.5 | O37: =AJ23 -> 0 | P37: =AJ22 -> 0 | T37: =Frame_Width-(1.75*2) -> -3.5 | U37: =A581CDIM-3.5 -> -3.5 | AB37: Bottom Stile | AC37: =(2*(A201CDIM-0.5625))/12 -> -0.09375 | AD37: 0.233 | AE37: -0.02184375 | AG37: Bottom Stile | AH37: =((A991CDIM-1.5)*2)/12 -> -0.25 | AI37: 0.361 | AJ37: -0.09025 | AP37: =IF(AND(AO37=13,$AM$4>=19,$AM$4<=21.99),AO37&"-"&"9",0) ->  | AU37: =IF(AND(AT37=13,$AR$4>=19,$AR$4<=21.99),AT37&"-"&"9",0) ->  | AX37: 0.875 | BG37: 37.75 | BH37: to | BI37: 39.749 | BJ37: 35 | BQ37: =IF(AND(BP37=12,$BN$4>=33,$BN$4<=36),"Dbl."&BP37&"D",0) ->  | BV37: =IF(AND(BU37=12,$BS$4>=33,$BS$4<=36),"Dbl."&BU37&"D",0) -> 
B38: 39 | C38: 866 | D38: YW | H38: 3 | I38: =IF(SCREEN3>"",SCREEN3,"") ->  | K38: A680 | AB38: Bottom Rail Reinf. | AC38: =(TRUNC(((Frame_Width-2.25)-6)/2)*2)/12 -> -0.6666666667 | AD38: 0.37 | AE38: -0.2466666667 | AG38: Bottom Rail Reinf. | AH38: =((AH35*12)-2.6875)/12 -> -0.4010416667 | AI38: 0.138 | AJ38: -0.05534375 | AP38: =IF(AND(AO38=13,$AM$4>=22,$AM$4<=23.99),AO38&"-"&"11",0) ->  | AU38: =IF(AND(AT38=13,$AR$4>=22,$AR$4<=23.99),AT38&"-"&"11",0) ->  | AW38: =IF(AY38>"",1,"") ->  | AX38: Outside Pane | AY38: =IF(EXT_2=4,"Clear","") ->  | AZ38: =IF(EXT_2=4,"SB60","") ->  | BA38: =IF(EXT_2=4,"SB60","") ->  | BB38: =IF(EXT_2=4,"SB60","") ->  | BG38: 39.75 | BH38: to | BI38: 41.749 | BJ38: 37 | BQ38: =IF(AND(BP38=12,$BN$4>=37,$BN$4<=42),"Dbl."&BP38&"E",0) ->  | BV38: =IF(AND(BU38=12,$BS$4>=37,$BS$4<=42),"Dbl."&BU38&"E",0) -> 
B39: 40 | C39: 866 | D39: YW | H39: 1 | I39: =IF(Screen_Type=3,"L",IF(Screen_Type=2,"F","H")) -> H | K39: A681 | AB39: Bottom Stile Reinf. | AC39: =IF(CMR!$E$16>27.6875,((TRUNC((A201CDIM-4.5)/2)*2)/12)*2,0) -> 0 | AD39: 0.299 | AE39: 0 | AG39: Bottom Stile Reinf. | AJ39: 0 | AN39: =IF(AND(AO39>0,AP39>0),AO39,0) ->  | AP39: =IF(AND(AO39=13,$AM$4>=24,$AM$4<=26.99),AO39&"-"&"12",0) ->  | AU39: =IF(AND(AT39=13,$AR$4>=24,$AR$4<=26.99),AT39&"-"&"12",0) ->  | AW39: =IF(AY39>"",2,"") ->  | AX39: Middle Pane | AY39: =IF(EXT_2=4,"N/A","") ->  | AZ39: =IF(EXT_2=4,"N/A","") ->  | BA39: =IF(EXT_2=4,"N/A","") ->  | BB39: =IF(EXT_2=4,"N/A","") ->  | BG39: 41.75 | BH39: to | BI39: 43.749 | BJ39: 39 | BP39: =IF(AND($BO$4<=14,$BO$4>12),14,0) ->  | BQ39: =IF(AND(BP39=14,$BN$4>=3,$BN$4<=7),BP39&"A",0) ->  | BU39: =IF(AND($BT$4<=14,$BT$4>12),14,0) ->  | BV39: =IF(AND(BU39=14,$BS$4>=3,$BS$4<=7),BU39&"A",0) -> 
B40: 41 | C40: 777 | D40: GN | I40: 3HP & 3WP add-on | K40: A682 | T40: =Frame_Width-11.4375 -> -11.4375 | U40: =Frame_Height-5.125 -> -5.125 | AB40: Bottom Glass | AC40: =(CMR!$E$14*CMR!$E$16)/144 -> 0.05886501736 | AD40: =$H$10 -> 2.314 | AE40: 0.1362136502 | AG40: Bottom Glass | AH40: =((A991CDIM-4)*(Frame_Width-5.3125))/144 -> 0.1475694444 | AI40: =$H$10 -> 2.314 | AJ40: 0.3414756944 | AN40: =IF(AND(AO40>0,AP40>0),AO40,0) ->  | AP40: =IF(AND(AO40=13,$AM$4>=27,$AM$4<=29.99),AO40&"-"&"13",0) ->  | AU40: =IF(AND(AT40=13,$AR$4>=27,$AR$4<=29.99),AT40&"-"&"13",0) ->  | AW40: =IF(AY40>"",3,"") ->  | AX40: Inside Pane | AY40: =IF(EXT_2=4,"Clear","") ->  | AZ40: =IF(EXT_2=4,"Clear","") ->  | BA40: =IF(EXT_2=4,"SB60","") ->  | BB40: =IF(EXT_2=4,"Clear","") ->  | BG40: 43.75 | BH40: to | BI40: 45.749 | BJ40: 41 | BQ40: =IF(AND(BP40=14,$BN$4>=8,$BN$4<=10),BP40&"B",0) ->  | BV40: =IF(AND(BU40=14,$BS$4>=8,$BS$4<=10),BU40&"B",0) -> 
B41: 42 | C41: 777 | D41: GN | I41: =IF(AND(OR(ModelNo="73HP",ModelNo="73WP"),EXTSELECT=2),0.3125,IF(AND(OR(ModelNo="73HP",ModelNo="73WP"),EXTSELECT=3),0.4375,IF(AND(OR(ModelNo="83HP",ModelNo="83WP"),EXTSELECT=2),0.4375,IF(AND(OR(ModelNo="83HP",ModelNo="83WP"),EXTSELECT=3),0.5625,0)))) -> 0 | K41: 6COP | T41: =Frame_Width-11.4375 -> -11.4375 | U41: =Frame_Height-_DIM3-5.125 -> -5.125 | AB41: Bottom Spacer | AC41: =((CMR!$E$14*2)+(CMR!$E$16*2))/12 -> -1.010416667 | AD41: 0.0536 | AE41: -0.05415833333 | AG41: Bottom Spacer | AH41: =(((A991CDIM-4)*2)+((Frame_Width-5.3125)*2))/12 -> -1.552083333 | AI41: 0.0536 | AJ41: =AH41*AI41 -> -0.08319166667 | AN41: =IF(AND(AO41>0,AP41>0),AO41,0) ->  | AP41: =IF(AND(AO41=13,$AM$4>=30,$AM$4<=32.99),AO41&"-"&"14",0) ->  | AU41: =IF(AND(AT41=13,$AR$4>=30,$AR$4<=32.99),AT41&"-"&"14",0) ->  | AW41: =IF(AY41>"",4,"") ->  | AX41: Spacer | AY41: =IF(EXT_2=4,"Intercept","") ->  | AZ41: =IF(EXT_2=4,"Intercept","") ->  | BA41: =IF(EXT_2=4,"Intercept","") ->  | BB41: =IF(EXT_2=4,"SST","") ->  | BG41: 45.75 | BH41: to | BI41: 47.749 | BJ41: 43 | BQ41: =IF(AND(BP41=14,$BN$4>=11,$BN$4<=16),BP41&"C",0) ->  | BV41: =IF(AND(BU41=14,$BS$4>=11,$BS$4<=16),BU41&"C",0) -> 
B42: 43 | C42: 877 | D42: LG | K42: 62WC | T42: =IF(_DIM4=(W/2),_DIM4-11.4375,IF(_DIM4>(W/2),_DIM4-11.4375,IF(_DIM4<(W/2),Frame_Width-_DIM4-11.4375,0))) -> -11.4375 | U42: =Frame_Height-5.125 -> -5.125 | AB42: Bottom Hardware | AC42: 1 | AD42: 0.36 | AE42: 0.36 | AG42: Bottom Hardware | AH42: 1 | AI42: 0.36 | AJ42: =AH42*AI42 -> 0.36 | AN42: =IF(AND(AO42>0,AP42>0),AO42,0) ->  | AP42: =IF(AND(AO42=13,$AM$4>=33,$AM$4<=35),AO42&"-"&"15",0) ->  | AU42: =IF(AND(AT42=13,$AR$4>=33,$AR$4<=35),AT42&"-"&"15",0) ->  | AW42: =IF(AY42>"",5,"") ->  | AX42: Gas | AY42: =IF(EXT_2=4,"Air","") ->  | AZ42: =IF(EXT_2=4,"Argon","") ->  | BA42: =IF(EXT_2=4,"Argon","") ->  | BB42: =IF(EXT_2=4,"Argon","") ->  | BG42: 47.75 | BH42: to | BI42: 49.749 | BJ42: 45 | BQ42: =IF(AND(BP42=14,$BN$4>=17,$BN$4<=19),BP42&"D",0) ->  | BV42: =IF(AND(BU42=14,$BS$4>=17,$BS$4<=19),BU42&"D",0) -> 
B43: 44 | C43: 877 | D43: LG | K43: 62CP | T43: =IF(_DIM4=(W/2),_DIM4-11.4375,IF(_DIM4>(W/2),_DIM4-11.4375,IF(_DIM4<(W/2),Frame_Width-_DIM4-11.4375,0))) -> -11.4375 | U43: =Frame_Height-_DIM3-5.125 -> -5.125 | AB43: Bottom Bead | AC43: =(((Frame_Width-3.3125)*2)+((A201CDIM-1.625)*2))/12 -> -0.8229166667 | AD43: 0.028 | AE43: -0.02304166667 | AG43: Bottom Bead | AH43: =(((Frame_Width-5.0625)*2)+((A991CDIM-3.75)*2))/12 -> -1.46875 | AI43: 0.019 | AJ43: =AH43*AI43 -> -0.02790625 | AO43: =IF(AND($AN$4<=15,$AN$4>13),15,0) ->  | AP43: =IF(AND(AO43=15,$AM$4>=4,$AM$4<=5.99),AO43&"-"&"1",0) ->  | AT43: =IF(AND($AS$4<=15,$AS$4>13),15,0) ->  | AU43: =IF(AND(AT43=15,$AR$4>=4,$AR$4<=5.99),AT43&"-"&"1",0) ->  | AW43: =IF(AY43>"",6,"") ->  | AX43: R-Value | AY43: =IF(EXT_2=4,"2.09","") ->  | AZ43: =IF(EXT_2=4,"3.98","") ->  | BA43: =IF(EXT_2=4,"4.10","") ->  | BB43: =IF(EXT_2=4,"3.98","") ->  | BQ43: =IF(AND(BP43=14,$BN$4>=20,$BN$4<=22),BP43&"E",0) ->  | BV43: =IF(AND(BU43=14,$BS$4>=20,$BS$4<=22),BU43&"E",0) -> 
B44: 45 | C44: 878 | D44: OR | K44: 6P2C | T44: =IF(_DIM4=(W/2),_DIM4-11.4375,IF(_DIM4>(W/2),_DIM4-11.4375,IF(_DIM4<(W/2),Frame_Width-_DIM4-11.4375,0))) -> -11.4375 | U44: =_DIM3-5.125 -> -5.125 | AD44: Top Sash | AE44: =IF(ModelNo="A201",(TRUNC((SUM(AE26:AE34))))+5,0) -> 0 | AI44: Top Sash | AJ44: 0 | AP44: =IF(AND(AO44=15,$AM$4>=6,$AM$4<=8.99),AO44&"-"&"2",0) ->  | AU44: =IF(AND(AT44=15,$AR$4>=6,$AR$4<=8.99),AT44&"-"&"2",0) ->  | AW44: =IF(AY44>"",7,"") ->  | AX44: U-Value | AY44: =IF(EXT_2=4,"0.48","") ->  | AZ44: =IF(EXT_2=4,"0.25","") ->  | BA44: =IF(EXT_2=4,"0.244","") ->  | BB44: =IF(EXT_2=4,"0.25","") ->  | BQ44: =IF(AND(BP44=14,$BN$4>=23,$BN$4<=25),BP44&"F",0) ->  | BV44: =IF(AND(BU44=14,$BS$4>=23,$BS$4<=25),BU44&"F",0) -> 
B45: 46 | C45: 878 | D45: OR | K45: 68CP | T45: =Frame_Width-_DIM4-11.4375 -> -11.4375 | U45: =Frame_Height-5.125 -> -5.125 | AD45: Bottom Sash | AE45: =IF(ModelNo="A201",TRUNC((SUM(AE35:AE43))),0) -> 0 | AI45: Bottom Sash | AJ45: =IF(ModelNo="A991",TRUNC(SUM(AJ35:AJ43)),0) -> 0 | AP45: =IF(AND(AO45=15,$AM$4>=9,$AM$4<=11.99),AO45&"-"&"3",0) ->  | AU45: =IF(AND(AT45=15,$AR$4>=9,$AR$4<=11.99),AT45&"-"&"3",0) ->  | AW45: =IF(AY45>"",8,"") ->  | AX45: Visible Light Transmittance | AY45: =IF(EXT_2=4,"81%","") ->  | AZ45: =IF(EXT_2=4,"72%","") ->  | BA45: =IF(EXT_2=4,"64%","") ->  | BB45: =IF(EXT_2=4,"72%","") ->  | BG45: CALDWELL BALANCE CHART A571 | BQ45: =IF(AND(BP45=14,$BN$4>=26,$BN$4<=28),BP45&"G",0) ->  | BV45: =IF(AND(BU45=14,$BS$4>=26,$BS$4<=28),BU45&"G",0) -> 
B46: 47 | C46: 888 | D46: WT | K46: 6CPX | T46: =Frame_Width-_DIM4-11.4375 -> -11.4375 | U46: =Frame_Height-_DIM3-5.125 -> -5.125 | AP46: =IF(AND(AO46=15,$AM$4>=12,$AM$4<=15.99),AO46&"-"&"4",0) ->  | AU46: =IF(AND(AT46=15,$AR$4>=12,$AR$4<=15.99),AT46&"-"&"4",0) ->  | AW46: =IF(AY46>"",9,"") ->  | AX46: Ultraviolet Light Transmittance | AY46: =IF(EXT_2=4,"59%","") ->  | AZ46: =IF(EXT_2=4,"21%","") ->  | BA46: =IF(EXT_2=4,"8%","") ->  | BB46: =IF(EXT_2=4,"21%","") ->  | BG46: SASH HEIGHT | BJ46: Balance | BQ46: =IF(AND(BP46=14,$BN$4>=29,$BN$4<=31),BP46&"H",0) ->  | BV46: =IF(AND(BU46=14,$BS$4>=29,$BS$4<=31),BU46&"H",0) -> 
B47: 48 | C47: 888 | D47: WT | K47: 6CPC | T47: =_DIM4-11.4375 -> -11.4375 | U47: =Frame_Height-5.125 -> -5.125 | AP47: =IF(AND(AO47=15,$AM$4>=16,$AM$4<=18.99),AO47&"-"&"5",0) ->  | AU47: =IF(AND(AT47=15,$AR$4>=16,$AR$4<=18.99),AT47&"-"&"5",0) ->  | AV47: x | AW47: =IF(AY47>"",10,"") ->  | AX47: Solar Heat Gain Coefficient | AY47: =IF(EXT_2=4,"0.75","") ->  | AZ47: =IF(EXT_2=4,"0.384","") ->  | BA47: =IF(EXT_2=4,"0.361","") ->  | BB47: =IF(EXT_2=4,"0.384","") ->  | BG47: RANGE | BJ47: Length | BQ47: =IF(AND(BP47=14,$BN$4>=32,$BN$4<=34),BP47&"I",0) ->  | BV47: =IF(AND(BU47=14,$BS$4>=32,$BS$4<=34),BU47&"I",0) -> 
B48: 49 | C48: 889 | D48: BN | K48: 6CSP | T48: =_DIM4-11.4375 -> -11.4375 | U48: =Frame_Height-_DIM3-5.125 -> -5.125 | AB48: A501 | AC48: Length | AD48: Weight/ft | AE48: Weight | AG48: 02S0 | AH48: Length | AI48: Weight/ft | AJ48: Weight | AP48: =IF(AND(AO48=15,$AM$4>=19,$AM$4<=22.99),AO48&"-"&"6",0) ->  | AU48: =IF(AND(AT48=15,$AR$4>=19,$AR$4<=22.99),AT48&"-"&"6",0) ->  | BG48: 10.375 | BH48: to | BI48: 12.374 | BJ48: 7 | BQ48: =IF(AND(BP48=14,$BN$4>=35,$BN$4<=38),"Dbl."&BP48&"D",0) ->  | BV48: =IF(AND(BU48=14,$BS$4>=35,$BS$4<=38),"Dbl."&BU48&"D",0) -> 
B49: 50 | C49: 889 | D49: BN | K49: A690 | AB49: Top Top Rail | AC49: =(Frame_Width-4.875)/12 -> -0.40625 | AD49: 0.369 | AE49: =AC49*AD49 -> -0.14990625 | AG49: Top Top Rail | AH49: 0 | AI49: 0 | AJ49: =AH49*AI49 -> 0 | AP49: =IF(AND(AO49=15,$AM$4>=23,$AM$4<=25.99),AO49&"-"&"9",0) ->  | AU49: =IF(AND(AT49=15,$AR$4>=23,$AR$4<=25.99),AT49&"-"&"9",0) ->  | BG49: 12.375 | BH49: to | BI49: 14.374 | BJ49: 9 | BQ49: =IF(AND(BP49=14,$BN$4>=39,$BN$4<=44),"Dbl."&BP49&"E",0) ->  | BV49: =IF(AND(BU49=14,$BS$4>=39,$BS$4<=44),"Dbl."&BU49&"E",0) -> 
B50: 51 | C50: 899 | D50: RD | K50: A691 | AB50: Top Bottom Rail | AC50: =(Frame_Width-4.875)/12 -> -0.40625 | AD50: 0.369 | AE50: -0.14990625 | AG50: Top Bottom Rail | AH50: 0 | AI50: 0 | AJ50: =AH50*AI50 -> 0 | AP50: =IF(AND(AO50=15,$AM$4>=26,$AM$4<=26.99),AO50&"-"&"11",0) ->  | AU50: =IF(AND(AT50=15,$AR$4>=26,$AR$4<=26.99),AT50&"-"&"11",0) ->  | AY50: 1 | AZ50: 2 | BA50: 3 | BB50: 4 | BC50: 5 | BG50: 14.375 | BH50: to | BI50: 16.374 | BJ50: 11 | BQ50: =IF(AND(BP50=14,$BN$4>=45,$BN$4<=50),"Dbl."&BP50&"F",0) ->  | BV50: =IF(AND(BU50=14,$BS$4>=45,$BS$4<=50),"Dbl."&BU50&"F",0) -> 
B51: 52 | C51: 899 | D51: RD | K51: A692 | T51: =Frame_Width-11.4375 -> -11.4375 | U51: =Frame_Height-5.125 -> -5.125 | AB51: Top Stile | AC51: =(2*(A501DDIM-1.6875))/12 -> -0.28125 | AD51: 0.369 | AE51: -0.10378125 | AG51: Top Stile | AH51: 0 | AI51: 0 | AJ51: =(AH51*AI51)/12 -> 0 | AP51: =IF(AND(AO51=15,$AM$4>=27,$AM$4<=29.99),AO51&"-"&"12",0) ->  | AU51: =IF(AND(AT51=15,$AR$4>=27,$AR$4<=29.99),AT51&"-"&"12",0) ->  | AX51: Outside Pane | AY51: =VLOOKUP(1,$AW$5:$BC$47,3,FALSE) ->  | AZ51: =VLOOKUP(1,$AW$5:$BC$47,4,FALSE) ->  | BA51: =VLOOKUP(1,$AW$5:$BC$47,5,FALSE) ->  | BB51: =VLOOKUP(1,$AW$5:$BC$47,6,FALSE) ->  | BC51: =VLOOKUP(1,$AW$5:$BC$47,7,FALSE) ->  | BD51: =IF(Model_Select>1,HLOOKUP(Package_Select,$AY$50:$BC$60,2,FALSE),"") ->  | BG51: 16.375 | BH51: to | BI51: 18.374 | BJ51: 13 | BQ51: =IF(AND(BP51=14,$BN$4>=51,$BN$4<=56),"Dbl."&BP51&"G",0) ->  | BV51: =IF(AND(BU51=14,$BS$4>=51,$BS$4<=56),"Dbl."&BU51&"G",0) -> 
B52: 53 | C52: 999 | D52: NAT | K52: A770 | AB52: Top Rail Reinf. | AC52: =(TRUNC(((Frame_Width-4.875)-6)/2)*2)/12 -> -0.8333333333 | AD52: 0.264 | AE52: -0.22 | AG52: Top Rail Reinf. | AH52: 0 | AI52: 0 | AJ52: 0 | AP52: =IF(AND(AO52=15,$AM$4>=30,$AM$4<=32.99),AO52&"-"&"13",0) ->  | AU52: =IF(AND(AT52=15,$AR$4>=30,$AR$4<=32.99),AT52&"-"&"13",0) ->  | AX52: Middle Pane | AY52: =VLOOKUP(2,$AW$5:$BC$47,3,FALSE) ->  | AZ52: =VLOOKUP(2,$AW$5:$BC$47,4,FALSE) ->  | BA52: =VLOOKUP(2,$AW$5:$BC$47,5,FALSE) ->  | BB52: =VLOOKUP(2,$AW$5:$BC$47,6,FALSE) ->  | BC52: =VLOOKUP(2,$AW$5:$BC$47,7,FALSE) ->  | BD52: =IF(Model_Select>1,HLOOKUP(Package_Select,$AY$50:$BC$60,3,FALSE),"") ->  | BG52: 18.375 | BH52: to | BI52: 20.374 | BJ52: 15 | BQ52: =IF(AND(BP52=14,$BN$4>=57,$BN$4<=62),"Dbl."&BP52&"H",0) ->  | BV52: =IF(AND(BU52=14,$BS$4>=57,$BS$4<=62),"Dbl."&BU52&"H",0) -> 
B53: 54 | C53: 999 | D53: NAT | K53: A780 | AB53: Top Glass | AC53: =(CMR!L77*CMR!L79)/144 -> 0.1610921224 | AD53: =$H$10 -> 2.314 | AE53: 0.3727671712 | AG53: Top Stile Reinf | AH53: 0 | AI53: 0 | AJ53: 0 | AP53: =IF(AND(AO53=15,$AM$4>=33,$AM$4<=34.99),AO53&"-"&"14",0) ->  | AU53: =IF(AND(AT53=15,$AR$4>=33,$AR$4<=34.99),AT53&"-"&"14",0) ->  | AX53: Inside Pane | AY53: =VLOOKUP(3,$AW$5:$BC$47,3,FALSE) ->  | AZ53: =VLOOKUP(3,$AW$5:$BC$47,4,FALSE) ->  | BA53: =VLOOKUP(3,$AW$5:$BC$47,5,FALSE) ->  | BB53: =VLOOKUP(3,$AW$5:$BC$47,6,FALSE) ->  | BC53: =VLOOKUP(3,$AW$5:$BC$47,7,FALSE) ->  | BD53: =IF(Model_Select>1,HLOOKUP(Package_Select,$AY$50:$BC$60,4,FALSE),"") ->  | BG53: 20.375 | BH53: to | BI53: 22.374 | BJ53: 17 | BQ53: =IF(AND(BP53=14,$BN$4>=63,$BN$4<=68),"Dbl."&BP53&"I",0) ->  | BV53: =IF(AND(BU53=14,$BS$4>=63,$BS$4<=68),"Dbl."&BU53&"I",0) -> 
B54: 55 | C54: 6679 | D54: BU | K54: A890 | AB54: Top Spacer | AC54: =((CMR!$L$77*2)+(CMR!$L$79*2))/12 -> -1.692708333 | AD54: 0.0536 | AE54: -0.09072916667 | AG54: Top Glass | AH54: 0 | AI54: 0 | AJ54: 0 | AN54: =IF(AND(AO54>0,AP54>0),AO54,0) ->  | AP54: =IF(AND(AO54=15,$AM$4>=35,$AM$4<=37),AO54&"-"&"15",0) ->  | AU54: =IF(AND(AT54=15,$AR$4>=35,$AR$4<=37),AT54&"-"&"15",0) ->  | AX54: Spacer | AY54: =VLOOKUP(4,$AW$5:$BC$47,3,FALSE) ->  | AZ54: =VLOOKUP(4,$AW$5:$BC$47,4,FALSE) ->  | BA54: =VLOOKUP(4,$AW$5:$BC$47,5,FALSE) ->  | BB54: =VLOOKUP(4,$AW$5:$BC$47,6,FALSE) ->  | BC54: =VLOOKUP(4,$AW$5:$BC$47,7,FALSE) ->  | BD54: =IF(Model_Select>1,HLOOKUP(Package_Select,$AY$50:$BC$60,5,FALSE),"") ->  | BG54: 22.375 | BH54: to | BI54: 24.374 | BJ54: 19 | BP54: =IF(AND($BO$4<=16,$BO$4>14),16,0) ->  | BQ54: =IF(AND(BP54=16,$BN$4>=3,$BN$4<=7),BP54&"A",0) ->  | BU54: =IF(AND($BT$4<=16,$BT$4>14),16,0) ->  | BV54: =IF(AND(BU54=16,$BS$4>=3,$BS$4<=7),BU54&"A",0) -> 
B55: 56 | C55: 6679 | D55: BU | K55: A990 | AB55: Top Hardware | AC55: 1 | AD55: 0.2 | AE55: 0.2 | AG55: Top Spacer | AH55: 0 | AI55: 0 | AJ55: 0 | AO55: =IF(AND($AN$4<=17,$AN$4>15),17,0) ->  | AP55: =IF(AND(AO55=17,$AM$4>=4,$AM$4<=5.99),AO55&"-"&"1",0) ->  | AT55: =IF(AND($AS$4<=17,$AS$4>15),17,0) ->  | AU55: =IF(AND(AT55=17,$AR$4>=4,$AR$4<=5.99),AT55&"-"&"1",0) ->  | AX55: Gas | AY55: =VLOOKUP(5,$AW$5:$BC$47,3,FALSE) ->  | AZ55: =VLOOKUP(5,$AW$5:$BC$47,4,FALSE) ->  | BA55: =VLOOKUP(5,$AW$5:$BC$47,5,FALSE) ->  | BB55: =VLOOKUP(5,$AW$5:$BC$47,6,FALSE) ->  | BC55: =VLOOKUP(5,$AW$5:$BC$47,7,FALSE) ->  | BD55: =IF(Model_Select>1,HLOOKUP(Package_Select,$AY$50:$BC$60,6,FALSE),"") ->  | BG55: 24.375 | BH55: to | BI55: 26.374 | BJ55: 21 | BQ55: =IF(AND(BP55=16,$BN$4>=8,$BN$4<=10),BP55&"B",0) ->  | BV55: =IF(AND(BU55=16,$BS$4>=8,$BS$4<=10),BU55&"B",0) -> 
B56: 57 | C56: 6779 | D56: LG | K56: A991 | L56: =A991CDIM -> 0 | M56: =A991CDIM-1.5 -> -1.5 | N56: =A991CDIM-1.5 -> -1.5 | O56: =AJ45 -> 0 | P56: =AJ44 -> 0 | T56: =Frame_Width-(1.75*2) -> -3.5 | U56: =A991CDIM-4 -> -4 | AB56: Top Handle Bead | AC56: =(Frame_Width-6.5375)/12 -> -0.5447916667 | AD56: 0.104 | AE56: -0.05665833333 | AG56: Top Hardware | AH56: 0 | AI56: 0 | AJ56: 0 | AP56: =IF(AND(AO56=17,$AM$4>=6,$AM$4<=8.99),AO56&"-"&"2",0) ->  | AU56: =IF(AND(AT56=17,$AR$4>=6,$AR$4<=8.99),AT56&"-"&"2",0) ->  | AX56: R-Value | AY56: =VLOOKUP(6,$AW$5:$BC$47,3,FALSE) ->  | AZ56: =VLOOKUP(6,$AW$5:$BC$47,4,FALSE) ->  | BA56: =VLOOKUP(6,$AW$5:$BC$47,5,FALSE) ->  | BB56: =VLOOKUP(6,$AW$5:$BC$47,6,FALSE) ->  | BC56: =VLOOKUP(6,$AW$5:$BC$47,7,FALSE) ->  | BD56: =IF(Model_Select>1,HLOOKUP(Package_Select,$AY$50:$BC$60,7,FALSE),"") ->  | BG56: 26.375 | BH56: to | BI56: 28.374 | BJ56: 23 | BQ56: =IF(AND(BP56=16,$BN$4>=11,$BN$4<=16),BP56&"C",0) ->  | BV56: =IF(AND(BU56=16,$BS$4>=11,$BS$4<=16),BU56&"C",0) -> 
B57: 58 | C57: 6779 | D57: LG | K57: 02S0 | L57: =S0CDIM -> 0 | M57: =TRUNC((S0CDIM-0.75)*16+0.5)/16 -> -0.6875 | O57: =AJ68 -> 0 | Q57: 1.3125 | R57: 7.3125 | S57: 1.75 | T57: =Frame_Width-4.5 -> -4.5 | U57: =IF(TRUNC((Frame_Height-M57-R57)*16+0.5)/16<(TRUNC((L57-$Y$5-S57)*16+0.5)/16),TRUNC((Frame_Height-M57-R57)*16+0.5)/16,TRUNC((L57-$Y$5-S57)*16+0.5)/16) ->  | AB57: Top Bead | AC57: =((A501DDIM-4.5)*2+(Frame_Width-4.875))/12 -> -1.15625 | AD57: 0.074 | AE57: -0.0855625 | AG57: Top Bead | AH57: 0 | AI57: 0 | AJ57: 0 | AP57: =IF(AND(AO57=17,$AM$4>=9,$AM$4<=11.99),AO57&"-"&"3",0) ->  | AU57: =IF(AND(AT57=17,$AR$4>=9,$AR$4<=11.99),AT57&"-"&"3",0) ->  | AX57: U-Value | AY57: =VLOOKUP(7,$AW$5:$BC$47,3,FALSE) ->  | AZ57: =VLOOKUP(7,$AW$5:$BC$47,4,FALSE) ->  | BA57: =VLOOKUP(7,$AW$5:$BC$47,5,FALSE) ->  | BB57: =VLOOKUP(7,$AW$5:$BC$47,6,FALSE) ->  | BC57: =VLOOKUP(7,$AW$5:$BC$47,7,FALSE) ->  | BD57: =IF(Model_Select>1,HLOOKUP(Package_Select,$AY$50:$BC$60,8,FALSE),"") ->  | BG57: 28.375 | BH57: to | BI57: 30.374 | BJ57: 25 | BQ57: =IF(AND(BP57=16,$BN$4>=17,$BN$4<=19),BP57&"D",0) ->  | BV57: =IF(AND(BU57=16,$BS$4>=17,$BS$4<=19),BU57&"D",0) -> 
B58: 59 | C58: 7779 | D58: WT | K58: 02S2 | L58: =S2CDIM -> 0 | M58: =TRUNC((S2CDIM-0.403)*32+0.5)/32 -> -0.375 | T58: =S2CDIM-3.75 -> -3.75 | U58: =Frame_Height-4.5 -> -4.5 | AB58: Bottom Top Rail | AC58: =(Frame_Width-3.875)/12 -> -0.3229166667 | AD58: 0.473 | AE58: -0.1527395833 | AG58: Bottom Top Rail | AH58: =(Frame_Width-2.25)/12 -> -0.1875 | AI58: 0.241 | AJ58: =AH58*AI58 -> -0.0451875 | AP58: =IF(AND(AO58=17,$AM$4>=12,$AM$4<=15.99),AO58&"-"&"4",0) ->  | AU58: =IF(AND(AT58=17,$AR$4>=12,$AR$4<=15.99),AT58&"-"&"4",0) ->  | AX58: Visible Light Transmittance | AY58: =VLOOKUP(8,$AW$5:$BC$47,3,FALSE) ->  | AZ58: =VLOOKUP(8,$AW$5:$BC$47,4,FALSE) ->  | BA58: =VLOOKUP(8,$AW$5:$BC$47,5,FALSE) ->  | BB58: =VLOOKUP(8,$AW$5:$BC$47,6,FALSE) ->  | BC58: =VLOOKUP(8,$AW$5:$BC$47,7,FALSE) ->  | BD58: =IF(Model_Select>1,HLOOKUP(Package_Select,$AY$50:$BC$60,9,FALSE),"") ->  | BG58: 30.375 | BH58: to | BI58: 32.374 | BJ58: 27 | BQ58: =IF(AND(BP58=16,$BN$4>=20,$BN$4<=22),BP58&"E",0) ->  | BV58: =IF(AND(BU58=16,$BS$4>=20,$BS$4<=22),BU58&"E",0) -> 
B59: 60 | C59: 7779 | D59: WT | K59: 02S3 | L59: =S3CDIM -> 0.90625 | M59: =TRUNC((S3CDIM-0.1875)*32+0.5)/32 -> 0.71875 | T59: =S3CDIM-3.375 -> -2.46875 | U59: =Frame_Height-4.5 -> -4.5 | AB59: Bottom Bottom Rail | AC59: =(Frame_Width-3.875)/12 -> -0.3229166667 | AD59: 0.437 | AE59: -0.1411145833 | AG59: Bottom Bottom Rail | AH59: =(Frame_Width-2.25)/12 -> -0.1875 | AI59: 0.25 | AJ59: -0.046875 | AP59: =IF(AND(AO59=17,$AM$4>=16,$AM$4<=18.99),AO59&"-"&"5",0) ->  | AU59: =IF(AND(AT59=17,$AR$4>=16,$AR$4<=18.99),AT59&"-"&"5",0) ->  | AV59: x | AX59: Ultraviolet Light Transmittance | AY59: =VLOOKUP(9,$AW$5:$BC$47,3,FALSE) ->  | AZ59: =VLOOKUP(9,$AW$5:$BC$47,4,FALSE) ->  | BA59: =VLOOKUP(9,$AW$5:$BC$47,5,FALSE) ->  | BB59: =VLOOKUP(9,$AW$5:$BC$47,6,FALSE) ->  | BC59: =VLOOKUP(9,$AW$5:$BC$47,7,FALSE) ->  | BD59: =IF(Model_Select>1,HLOOKUP(Package_Select,$AY$50:$BC$60,10,FALSE),"") ->  | BG59: 32.375 | BH59: to | BI59: 34.374 | BJ59: 29 | BQ59: =IF(AND(BP59=16,$BN$4>=23,$BN$4<=24),BP59&"F",0) ->  | BV59: =IF(AND(BU59=16,$BS$4>=23,$BS$4<=24),BU59&"F",0) -> 
B60: 61 | C60: 6799 | D60: OR | K60: 02S4 | AB60: Bottom Stile | AC60: =(2*(A501CDIM-0.6875))/12 -> -0.1145833333 | AD60: 0.437 | AE60: -0.05007291667 | AG60: Bottom Stile | AH60: =((S0CDIM-0.75)*2)/12 -> -0.125 | AI60: 0.23 | AJ60: -0.02875 | AP60: =IF(AND(AO60=17,$AM$4>=19,$AM$4<=22.99),AO60&"-"&"6",0) ->  | AU60: =IF(AND(AT60=17,$AR$4>=19,$AR$4<=22.99),AT60&"-"&"6",0) ->  | AX60: Solar Heat Gain Coefficient | AY60: =VLOOKUP(10,$AW$5:$BC$47,3,FALSE) ->  | AZ60: =VLOOKUP(10,$AW$5:$BC$47,4,FALSE) ->  | BA60: =VLOOKUP(10,$AW$5:$BC$47,5,FALSE) ->  | BB60: =VLOOKUP(10,$AW$5:$BC$47,6,FALSE) ->  | BC60: =VLOOKUP(10,$AW$5:$BC$47,7,FALSE) ->  | BD60: =IF(Model_Select>1,HLOOKUP(Package_Select,$AY$50:$BC$60,11,FALSE),"") ->  | BG60: 34.375 | BH60: to | BI60: 36.374 | BJ60: 31 | BQ60: =IF(AND(BP60=16,$BN$4>=25,$BN$4<=28),BP60&"G",0) ->  | BV60: =IF(AND(BU60=16,$BS$4>=25,$BS$4<=28),BU60&"G",0) -> 
B61: 62 | C61: 6799 | D61: OR | K61: 02S9 | L61: =S9CDIM -> 0.25 | M61: =TRUNC((S9CDIM-0.1875)*32+0.5)/32 -> 0.0625 | T61: =S9CDIM-4.375 -> -4.125 | U61: =Frame_Height-4.5 -> -4.5 | AB61: Bottom Rail Reinf. | AC61: =(TRUNC(((Frame_Width-3.875)-6)/2)*2)/12 -> -0.6666666667 | AD61: 0.4344 | AE61: -0.2896 | AG61: Bottom Rail Reinf. | AH61: =(TRUNC(((AH58*12)-6)/2)*2)/12 -> -0.6666666667 | AI61: 0.328 | AJ61: -0.2186666667 | AP61: =IF(AND(AO61=17,$AM$4>=23,$AM$4<=25.99),AO61&"-"&"9",0) ->  | AU61: =IF(AND(AT61=17,$AR$4>=23,$AR$4<=25.99),AT61&"-"&"9",0) ->  | BG61: 36.375 | BH61: to | BI61: 38.374 | BJ61: 33 | BQ61: =IF(AND(BP61=16,$BN$4>=29,$BN$4<=31),BP61&"H",0) ->  | BV61: =IF(AND(BU61=16,$BS$4>=29,$BS$4<=31),BU61&"H",0) -> 
B62: 63 | C62: 7799 | D62: BN | K62: 3A01 | L62: =CDIM3A01 -> 0 | M62: =CDIM3A01-0.625 -> -0.625 | O62: =BSW3A01 -> 0 | P62: =TSW3A01 -> 0 | Q62: 1.3125 | R62: 7.875 | S62: 1.875 | T62: =Frame_Width-5.25 -> -5.25 | U62: =IF(TRUNC((Frame_Height-M62-R62)*16+0.5)/16<(TRUNC((L62-$Y$5-S62)*16+0.5)/16),TRUNC((Frame_Height-M62-R62)*16+0.5)/16,TRUNC((L62-$Y$5-S62)*16+0.5)/16) ->  | AB62: Bottom Stile Reinf. | AC62: 0 | AD62: 0 | AE62: 0 | AG62: Bottom Stile Reinf. | AH62: =IF(S0CDIM>=27.5,(((S0CDIM-4.5)/2)*2)/12,0) -> 0 | AI62: 0.238 | AJ62: 0 | AP62: =IF(AND(AO62=17,$AM$4>=26,$AM$4<=26.99),AO62&"-"&"11",0) ->  | AU62: =IF(AND(AT62=17,$AR$4>=26,$AR$4<=26.99),AT62&"-"&"11",0) ->  | BG62: 38.375 | BH62: to | BI62: 40.374 | BJ62: 35 | BQ62: =IF(AND(BP62=16,$BN$4>=32,$BN$4<=34),BP62&"I",0) ->  | BV62: =IF(AND(BU62=16,$BS$4>=32,$BS$4<=34),BU62&"I",0) -> 
B63: 64 | C63: 7799 | D63: BN | K63: 03S0 | L63: =CDIM03S0 -> 0 | M63: =CDIM03S0-1.125 -> -1.125 | O63: =BSW03S0 -> 0 | P63: 0 | Q63: 1.3125 | R63: 7.875 | S63: 1.875 | T63: =Frame_Width-5.8125 -> -5.8125 | U63: =IF(TRUNC((Frame_Height-M63-R63)*16+0.5)/16<(TRUNC((L63-$Y$5-S63)*16+0.5)/16),TRUNC((Frame_Height-M63-R63)*16+0.5)/16,TRUNC((L63-$Y$5-S63)*16+0.5)/16) ->  | AB63: Bottom Glass | AC63: =(CMR!$L$78*CMR!$L$80)/144 -> 0.1610921224 | AD63: =$H$10 -> 2.314 | AE63: 0.3727671712 | AG63: Bottom Glass | AH63: =(CMR!L30*CMR!L32)/144 -> 0.06391059028 | AI63: =$H$10 -> 2.314 | AJ63: 0.1478891059 | AP63: =IF(AND(AO63=17,$AM$4>=27,$AM$4<=29.99),AO63&"-"&"12",0) ->  | AU63: =IF(AND(AT63=17,$AR$4>=27,$AR$4<=29.99),AT63&"-"&"12",0) ->  | BG63: 40.375 | BH63: to | BI63: 42.374 | BJ63: 37 | BQ63: =IF(AND(BP63=16,$BN$4>=35,$BN$4<=36),"Dbl."&BP63&"D",0) ->  | BV63: =IF(AND(BU63=16,$BS$4>=35,$BS$4<=36),"Dbl."&BU63&"D",0) -> 
B64: 65 | C64: 7899 | D64: GN | K64: A140 | L64: =CDIMA140 -> 0 | M64: =Data!D663 -> -1.125 | O64: =BSW03S0 -> 0 | P64: 0 | Q64: 1.3125 | R64: 1.875 | S64: 1.875 | T64: =Frame_Width-5.8125 -> -5.8125 | U64: =TRUNC((LEG-M64-R64)*16+0.5)/16 -> -0.6875 | AB64: Bottom Spacer | AC64: =((CMR!$L$78*2)+(CMR!$L$80*2))/12 -> -1.692708333 | AD64: 0.0536 | AE64: -0.09072916667 | AG64: Bottom Spacer | AH64: =((CMR!L30*2)+(CMR!L32*2))/12 -> -1.041666667 | AI64: 0.0536 | AJ64: =AH64*AI64 -> -0.05583333333 | AP64: =IF(AND(AO64=17,$AM$4>=30,$AM$4<=32.99),AO64&"-"&"13",0) ->  | AU64: =IF(AND(AT64=17,$AR$4>=30,$AR$4<=32.99),AT64&"-"&"13",0) ->  | BG64: 42.375 | BH64: to | BI64: 44.374 | BJ64: 39 | BQ64: =IF(AND(BP64=16,$BN$4>=37,$BN$4<=44),"Dbl."&BP64&"E",0) ->  | BV64: =IF(AND(BU64=16,$BS$4>=37,$BS$4<=44),"Dbl."&BU64&"E",0) -> 
B65: 66 | C65: 7899 | D65: GN | K65: A144 | L65: =CDIMA140 -> 0 | M65: =Data!D663 -> -1.125 | O65: =BSW03S0 -> 0 | P65: 0 | Q65: 1.3125 | R65: 1.875 | S65: 1.875 | T65: =Frame_Width-5.8125 -> -5.8125 | U65: =TRUNC((LEG-M65-R65)*16+0.5)/16 -> -0.6875 | AB65: Bottom Hardware | AC65: 1 | AD65: 0.36 | AE65: 0.36 | AG65: Bottom Hardware | AH65: 1 | AI65: 0.36 | AJ65: =AH65*AI65 -> 0.36 | AP65: =IF(AND(AO65=17,$AM$4>=33,$AM$4<=34.99),AO65&"-"&"14",0) ->  | AU65: =IF(AND(AT65=17,$AR$4>=33,$AR$4<=34.99),AT65&"-"&"14",0) ->  | BG65: 44.375 | BH65: to | BI65: 46.374 | BJ65: 41 | BQ65: =IF(AND(BP65=16,$BN$4>=45,$BN$4<=48),"Dbl."&BP65&"F",0) ->  | BV65: =IF(AND(BU65=16,$BS$4>=45,$BS$4<=48),"Dbl."&BU65&"F",0) -> 
B66: 67 | C66: 8899 | D66: RD | K66: A146 | L66: =CDIMA140 -> 0 | M66: =Data!D663 -> -1.125 | O66: =BSW03S0 -> 0 | P66: 0 | Q66: 1.3125 | R66: 1.875 | S66: 1.875 | T66: =Frame_Width-5.8125 -> -5.8125 | U66: =TRUNC((LEG-M66-R66)*16+0.5)/16 -> -0.6875 | AB66: Bott. Handle Bead | AC66: =(Frame_Width-6.5375)/12 -> -0.5447916667 | AD66: 0.109 | AE66: -0.05938229167 | AG66: Bottom Bead | AH66: =(((Frame_Width-3.3125)*2)+((S0CDIM-1.8125)*2))/12 -> -0.8541666667 | AI66: 0.028 | AJ66: =AH66*AI66 -> -0.02391666667 | AN66: =IF(AND(AO66>0,AP66>0),AO66,0) ->  | AP66: =IF(AND(AO66=17,$AM$4>=35,$AM$4<=38),AO66&"-"&"15",0) ->  | AU66: =IF(AND(AT66=17,$AR$4>=35,$AR$4<=38),AT66&"-"&"15",0) ->  | BG66: 46.375 | BH66: to | BI66: 48.374 | BJ66: 43 | BQ66: =IF(AND(BP66=16,$BN$4>=49,$BN$4<=56),"Dbl."&BP66&"G",0) ->  | BV66: =IF(AND(BU66=16,$BS$4>=49,$BS$4<=56),"Dbl."&BU66&"G",0) -> 
B67: 68 | C67: 8899 | D67: RD | K67: A740 | L67: =CDIMA740 -> 0 | M67: =Data!D157 -> -0.875 | O67: =BSWA571 -> 0 | P67: 0 | S67: =1.4375+1.25 -> 2.6875 | T67: =Frame_Width-(1.625*2) -> -3.25 | U67: =IF((LEG-M67-1.625)<(CDIMA740-S67),LEG-M67-1.625,CDIMA740-S67) -> -2.6875 | AB67: Bottom Bead | AC67: =((A501CDIM-4.5)*2)/12 -> -0.75 | AD67: 0.074 | AE67: -0.0555 | AI67: Top Sash | AJ67: 0 | AO67: =IF(AND($AN$4<=19,$AN$4>17),19,0) ->  | AP67: =IF(AND(AO67=19,$AM$4>=4,$AM$4<=6.99),AO67&"-"&"1",0) ->  | AT67: =IF(AND($AS$4<=19,$AS$4>17),19,0) ->  | AU67: =IF(AND(AT67=19,$AR$4>=4,$AR$4<=6.99),AT67&"-"&"1",0) ->  | BG67: 48.375 | BH67: to | BI67: 50.374 | BJ67: 45 | BQ67: =IF(AND(BP67=16,$BN$4>=57,$BN$4<=62),"Dbl."&BP67&"H",0) ->  | BV67: =IF(AND(BU67=16,$BS$4>=57,$BS$4<=62),"Dbl."&BU67&"H",0) -> 
B68: 69 | C68: 8999 | D68: YW | K68: A744 | L68: =CDIMA740 -> 0 | M68: =Data!D157 -> -0.875 | O68: =BSWA571 -> 0 | P68: 0 | S68: =1.4375+1.25 -> 2.6875 | T68: =Frame_Width-(1.625*2) -> -3.25 | U68: =IF((LEG-M68-1.6255)<(CDIMA740-S68),LEG-M68-1.625,CDIMA740-S68) -> -2.6875 | AD68: Top Sash | AE68: =IF(ModelNo="A501",(TRUNC((SUM(AE49:AE57))))+5,0) -> 0 | AI68: Bottom Sash | AJ68: =IF(ModelNo="02S0",TRUNC(SUM(AJ58:AJ66)),0) -> 0 | AP68: =IF(AND(AO68=19,$AM$4>=7,$AM$4<=9.99),AO68&"-"&"2",0) ->  | AU68: =IF(AND(AT68=19,$AR$4>=7,$AR$4<=9.99),AT68&"-"&"2",0) ->  | BQ68: =IF(AND(BP68=16,$BN$4>=63,$BN$4<=68),"Dbl."&BP68&"I",0) ->  | BV68: =IF(AND(BU68=16,$BS$4>=63,$BS$4<=68),"Dbl."&BU68&"I",0) -> 
B69: 70 | C69: 8999 | D69: YW | K69: A746 | L69: =CDIMA740 -> 0 | M69: =Data!D157 -> -0.875 | O69: =BSWA571 -> 0 | P69: 0 | S69: =1.4375+1.25 -> 2.6875 | T69: =Frame_Width-(1.625*2) -> -3.25 | U69: =IF((LEG-M69-1.625)<(CDIMA740-S69),LEG-M69-1.625,CDIMA740-S69) -> -2.6875 | AD69: Bottom Sash | AE69: =IF(ModelNo="A501",TRUNC((SUM(AE58:AE67))),0) -> 0 | AP69: =IF(AND(AO69=19,$AM$4>=10,$AM$4<=13.99),AO69&"-"&"3",0) ->  | AU69: =IF(AND(AT69=19,$AR$4>=10,$AR$4<=13.99),AT69&"-"&"3",0) ->  | BO69: =IF(AND(BP69>0,BQ69>0),BP69,0) ->  | BP69: =IF(AND($BO$4<=18,$BO$4>16),18,0) ->  | BQ69: =IF(AND(BP69=18,$BN$4>=4,$BN$4<=9),BP69&"A",0) ->  | BT69: =IF(AND(BU69>0,BV69>0),BU69,0) ->  | BU69: =IF(AND($BT$4<=18,$BT$4>16),18,0) ->  | BV69: =IF(AND(BU69=18,$BS$4>=4,$BS$4<=9),BU69&"A",0) -> 
B70: 71 | C70: 9999 | D70: PU | K70: A840 | L70: =CDIMA840 -> 0 | M70: =Data!D175 -> -1.5 | O70: =BSWA581 -> 0 | P70: 0 | S70: =1.75+1.5 -> 3.25 | T70: =Frame_Width-(1.75*2) -> -3.5 | U70: =IF((LEG-M70-1.75)<(CDIMA840-S70),LEG-M70-1.75,CDIMA840-S70) -> -3.25 | AP70: =IF(AND(AO70=19,$AM$4>=14,$AM$4<=18.99),AO70&"-"&"4",0) ->  | AU70: =IF(AND(AT70=19,$AR$4>=14,$AR$4<=18.99),AT70&"-"&"4",0) ->  | AV70: x | BQ70: =IF(AND(BP70=18,$BN$4>=10,$BN$4<=13),BP70&"B",0) ->  | BV70: =IF(AND(BU70=18,$BS$4>=10,$BS$4<=13),BU70&"B",0) -> 
B71: 72 | C71: 9999 | D71: PU | K71: A844 | L71: =CDIMA840 -> 0 | M71: =Data!D175 -> -1.5 | O71: =BSWA581 -> 0 | P71: 0 | S71: =1.75+1.5 -> 3.25 | T71: =Frame_Width-(1.75*2) -> -3.5 | U71: =IF((LEG-M70-1.75)<(CDIMA840-S70),LEG-M70-1.75,CDIMA840-S70) -> -3.25 | AB71: 3A01 | AC71: Length | AD71: Weight/ft | AE71: Weight | AG71: 03S0 | AH71: Length | AI71: Weight/ft | AJ71: Weight | AP71: =IF(AND(AO71=19,$AM$4>=19,$AM$4<=23.99),AO71&"-"&"5",0) ->  | AU71: =IF(AND(AT71=19,$AR$4>=19,$AR$4<=23.99),AT71&"-"&"5",0) ->  | BQ71: =IF(AND(BP71=18,$BN$4>=14,$BN$4<=18),BP71&"C",0) ->  | BV71: =IF(AND(BU71=18,$BS$4>=14,$BS$4<=18),BU71&"C",0) -> 
K72: A846 | L72: =CDIMA840 -> 0 | M72: =Data!D175 -> -1.5 | O72: =BSWA581 -> 0 | P72: 0 | S72: =1.75+1.5 -> 3.25 | T72: =Frame_Width-(1.75*2) -> -3.5 | U72: =IF((LEG-M70-1.75)<(CDIMA840-S70),LEG-M70-1.75,CDIMA840-S70) -> -3.25 | AB72: Top Top Rail | AC72: =(Frame_Width-4.125)/12 -> -0.34375 | AD72: 0.297 | AE72: =AC72*AD72 -> -0.10209375 | AG72: Top Top Rail | AH72: 0 | AI72: 0 | AJ72: =AH72*AI72 -> 0 | AP72: =IF(AND(AO72=19,$AM$4>=24,$AM$4<=26.99),AO72&"-"&"6",0) ->  | AU72: =IF(AND(AT72=19,$AR$4>=24,$AR$4<=26.99),AT72&"-"&"6",0) ->  | BQ72: =IF(AND(BP72=18,$BN$4>=19,$BN$4<=21),BP72&"D",0) ->  | BV72: =IF(AND(BU72=18,$BS$4>=19,$BS$4<=21),BU72&"D",0) -> 
K73: 7SH2 | L73: =CDIM7SH2 -> 0 | M73: =CDIM7SH2-0.875 -> -0.875 | O73: =AE115 -> 0 | T73: =(Frame_Width/2)-(1.625*2) -> -3.25 | U73: =CDIM7SH2-3.75 -> -3.75 | AB73: Top Bottom Rail | AC73: =(Frame_Width-4.125)/12 -> -0.34375 | AD73: 0.289 | AE73: -0.09934375 | AG73: Top Bottom Rail | AH73: 0 | AI73: 0 | AJ73: =AH73*AI73 -> 0 | AP73: =IF(AND(AO73=19,$AM$4>=27,$AM$4<=29.99),AO73&"-"&"9",0) ->  | AU73: =IF(AND(AT73=19,$AR$4>=27,$AR$4<=29.99),AT73&"-"&"9",0) ->  | BQ73: =IF(AND(BP73=18,$BN$4>=22,$BN$4<=24),BP73&"E",0) ->  | BV73: =IF(AND(BU73=18,$BS$4>=22,$BS$4<=24),BU73&"E",0) -> 
B74: 4 | C74: 3 | D74: 1 | K74: 7SH3 | L74: =CDIM7SH3 -> 0 | M74: =CDIM7SH3-0.875 -> -0.875 | O74: =AE137 -> 0 | T74: =(Frame_Width/3)-(1.625*2) -> -3.25 | U74: =CDIM7SH3-3.75 -> -3.75 | AB74: Top Stile | AC74: =(2*(DDIM3A01-1.625))/12 -> -0.2708333333 | AD74: 0.218 | AE74: -0.05904166667 | AG74: Top Stile | AH74: 0 | AI74: 0 | AJ74: =(AH74*AI74)/12 -> 0 | AP74: =IF(AND(AO74=19,$AM$4>=30,$AM$4<=30.99),AO74&"-"&"11",0) ->  | AU74: =IF(AND(AT74=19,$AR$4>=30,$AR$4<=30.99),AT74&"-"&"11",0) ->  | BQ74: =IF(AND(BP74=18,$BN$4>=25,$BN$4<=26),BP74&"F",0) ->  | BV74: =IF(AND(BU74=18,$BS$4>=25,$BS$4<=26),BU74&"F",0) -> 
B75: =B74+1 -> 5 | C75: 3 | D75: 1 | K75: 8SH2 | L75: =CDIM8SH2 -> 0 | M75: =CDIM8SH2-0.875 -> -0.875 | O75: =AJ115 -> 0 | T75: =(Frame_Width/2)-(1.75*2) -> -3.5 | U75: =CDIM8SH2-3.5 -> -3.5 | AB75: Top Rail Reinf. | AC75: =(TRUNC(((Frame_Width-4.125)-6)/2)*2)/12 -> -0.8333333333 | AD75: =IF(OR(EXTSELECT=2,Frame_Width<48,Frame_Height<84),0.0516,IF(OR(EXTSELECT=3,Frame_Width>48,Frame_Height>84),0.3784,0)) -> 0.0516 | AE75: -0.043 | AG75: Top Rail Reinf. | AH75: 0 | AI75: 0 | AJ75: 0 | AP75: =IF(AND(AO75=19,$AM$4>=31,$AM$4<=33.99),AO75&"-"&"12",0) ->  | AU75: =IF(AND(AT75=19,$AR$4>=31,$AR$4<=33.99),AT75&"-"&"12",0) ->  | BQ75: =IF(AND(BP75=18,$BN$4>=27,$BN$4<=29),BP75&"G",0) ->  | BV75: =IF(AND(BU75=18,$BS$4>=27,$BS$4<=29),BU75&"G",0) -> 
B76: 6 | C76: 3 | D76: 1 | K76: 8SH3 | L76: =CDIM8SH3 -> 0 | M76: =CDIM7SH3-0.875 -> -0.875 | O76: =AJ137 -> 0 | T76: =(Frame_Width/3)-(1.75*2) -> -3.5 | U76: =CDIM8SH3-3.5 -> -3.5 | AB76: Top Stile Reinf | AC76: =IF(OR(Frame_Width>48,Frame_Height>84,EXTTYPE="Steel"),((TRUNC(((DDIM3A01-1.625)-8)/2)*2)/12)*2,0) -> 0 | AD76: 0.299 | AE76: 0 | AG76: Top Stile Reinf | AH76: 0 | AI76: 0 | AJ76: 0 | AP76: =IF(AND(AO76=19,$AM$4>=34,$AM$4<=36.99),AO76&"-"&"13",0) ->  | AU76: =IF(AND(AT76=19,$AR$4>=34,$AR$4<=36.99),AT76&"-"&"13",0) ->  | BQ76: =IF(AND(BP76=18,$BN$4>=30,$BN$4<=32),BP76&"H",0) ->  | BV76: =IF(AND(BU76=18,$BS$4>=30,$BS$4<=32),BU76&"H",0) -> 
B77: 7 | C77: 4 | D77: 1 | K77: 82SP | L77: =CDIM82SP -> 0.25 | M77: =CDIM82SP-0.875 -> -0.625 | O77: =AJ159 -> 0 | T77: =IF(EXTSELECT=3,(Frame_Width-_DIM4)-(1.75*2),_DIM4-(1.75*2)) -> -3.5 | U77: =CDIM82SP-3.5 -> -3.25 | AB77: Top Glass | AC77: =(CMR!$T$13*CMR!$T$15)/144 -> 0.1285264757 | AD77: =$H$10 -> 2.314 | AE77: 0.2974102648 | AG77: Top Glass | AH77: 0 | AI77: 0 | AJ77: 0 | AP77: =IF(AND(AO77=19,$AM$4>=37,$AM$4<=39.99),AO77&"-"&"14",0) ->  | AS77: =IF(AND(AT77>0,AU77>0),AT77,0) ->  | AU77: =IF(AND(AT77=19,$AR$4>=37,$AR$4<=39.99),AT77&"-"&"14",0) ->  | BQ77: =IF(AND(BP77=18,$BN$4>=33,$BN$4<=34),BP77&"I",0) ->  | BV77: =IF(AND(BU77=18,$BS$4>=33,$BS$4<=34),BU77&"I",0) -> 
B78: 8 | C78: 4 | D78: 1 | K78: 8SPS | L78: =CDIM8SPS -> 0.25 | M78: =CDIM8SPS-0.875 -> -0.625 | O78: =AE159 -> 0 | T78: =_DIM4-(1.75*2) -> -3.5 | U78: =CDIM8SPS-3.5 -> -3.25 | AB78: Top Spacer | AC78: =((CMR!$T$13*2)+(CMR!$T$15*2))/12 -> -1.494791667 | AD78: 0.0536 | AE78: -0.08012083333 | AG78: Top Spacer | AH78: 0 | AI78: 0 | AJ78: 0 | AN78: =IF(AND(AO78>0,AP78>0),AO78,0) ->  | AP78: =IF(AND(AO78=19,$AM$4>=40,$AM$4<=42),AO78&"-"&"15",0) ->  | AU78: =IF(AND(AT78=19,$AR$4>=40,$AR$4<=42),AT78&"-"&"15",0) ->  | BQ78: =IF(AND(BP78=18,$BN$4>=35,$BN$4<=36),"Dbl."&BP78&"C",0) ->  | BV78: =IF(AND(BU78=18,$BS$4>=35,$BS$4<=36),"Dbl."&BU78&"C",0) -> 
B79: 9 | C79: 5 | D79: 1 | K79: 8SPP | L79: =CDIM8SPP -> -0.21875 | M79: =CDIM8SPP-0.875 -> -1.09375 | O79: =AE181 -> 0 | T79: =_DIM4-(1.75*2) -> -3.5 | U79: =CDIM8SPP-3.5 -> -3.71875 | AB79: Top Hardware | AC79: 1 | AD79: 0.4 | AE79: 0.4 | AG79: Top Hardware | AH79: 0 | AI79: 0 | AJ79: 0 | AO79: =IF(AND($AN$4<=21,$AN$4>19),21,0) ->  | AP79: =IF(AND(AO79=21,$AM$4>=4,$AM$4<=6.99),AO79&"-"&"1",0) ->  | AT79: =IF(AND($AS$4<=21,$AS$4>19),21,0) ->  | AU79: =IF(AND(AT79=21,$AR$4>=4,$AR$4<=6.99),AT79&"-"&"1",0) ->  | BQ79: =IF(AND(BP79=18,$BN$4>=37,$BN$4<=42),"Dbl."&BP79&"D",0) ->  | BV79: =IF(AND(BU79=18,$BS$4>=37,$BS$4<=42),"Dbl."&BU79&"D",0) -> 
B80: 10 | C80: 5 | D80: 1 | K80: 8POS | L80: =CDIM8POS -> 0.46875 | M80: =CDIM8POS-0.875 -> -0.40625 | O80: =AJ181 -> 0 | T80: =Frame_Width-(1.75*2) -> -3.5 | U80: =CDIM8POS-3.5 -> -3.03125 | AB80: Top Bead | AC80: =(((Frame_Width-5.125)*2)+((DDIM3A01-4.3125)*2))/12 -> -1.572916667 | AD80: 0.072 | AE80: -0.11325 | AG80: Top Bead | AH80: 0 | AI80: 0 | AJ80: 0 | AP80: =IF(AND(AO80=21,$AM$4>=7,$AM$4<=9.99),AO80&"-"&"2",0) ->  | AU80: =IF(AND(AT80=21,$AR$4>=7,$AR$4<=9.99),AT80&"-"&"2",0) ->  | BQ80: =IF(AND(BP80=18,$BN$4>=43,$BN$4<=48),"Dbl."&BP80&"E",0) ->  | BV80: =IF(AND(BU80=18,$BS$4>=43,$BS$4<=48),"Dbl."&BU80&"E",0) -> 
B81: 11 | C81: 6 | D81: 1 | K81: 8SOP | L81: =CDIM8SOP -> -0.21875 | M81: =CDIM8SOP-0.875 -> -1.09375 | O81: =AJ203 -> 0 | T81: =Frame_Width-(1.75*2) -> -3.5 | U81: =CDIM8SOP-3.5 -> -3.71875 | AB81: Bottom Top Rail | AC81: =(Frame_Width-3.125)/12 -> -0.2604166667 | AD81: 0.297 | AE81: -0.07734375 | AG81: Bottom Top Rail | AH81: =(Frame_Width-3.125)/12 -> -0.2604166667 | AI81: 0.297 | AJ81: =AH81*AI81 -> -0.07734375 | AP81: =IF(AND(AO81=21,$AM$4>=10,$AM$4<=13.99),AO81&"-"&"3",0) ->  | AU81: =IF(AND(AT81=21,$AR$4>=10,$AR$4<=13.99),AT81&"-"&"3",0) ->  | BQ81: =IF(AND(BP81=18,$BN$4>=49,$BN$4<=52),"Dbl."&BP81&"F",0) ->  | BV81: =IF(AND(BU81=18,$BS$4>=49,$BS$4<=52),"Dbl."&BU81&"F",0) -> 
B82: 12 | C82: 6 | D82: 1 | K82: 8PS3 | L82: =CDIM8PS3 -> 0.46875 | M82: =CDIM8PS3-0.875 -> -0.40625 | N82: =CDIM8PS3-0.875 -> -0.40625 | O82: =AE203 -> 0 | P82: =AE202 -> 0 | T82: =IF(_DIM4=(W/2),(Frame_Width/2)-(1.75*2),IF(_DIM4<(W/2),(Frame_Width-_DIM4)-(1.75*2),IF(_DIM4>(W/2),_DIM4-(1.75*2),0))) -> -3.5 | U82: =CDIM8PS3-3.5 -> -3.03125 | AB82: Bottom Bottom Rail | AC82: =(Frame_Width-3.125)/12 -> -0.2604166667 | AD82: 0.232 | AE82: -0.06041666667 | AG82: Bottom Bottom Rail | AH82: =(Frame_Width-3.125)/12 -> -0.2604166667 | AI82: 0.232 | AJ82: -0.06041666667 | AP82: =IF(AND(AO82=21,$AM$4>=14,$AM$4<=18.99),AO82&"-"&"4",0) ->  | AU82: =IF(AND(AT82=21,$AR$4>=14,$AR$4<=18.99),AT82&"-"&"4",0) ->  | AV82: x | BQ82: =IF(AND(BP82=18,$BN$4>=53,$BN$4<=58),"Dbl."&BP82&"G",0) ->  | BV82: =IF(AND(BU82=18,$BS$4>=53,$BS$4<=58),"Dbl."&BU82&"G",0) -> 
B83: 13 | C83: 7 | D83: 1 | K83: 8SP3 | L83: =CDIM8SP3 -> -0.21875 | M83: =CDIM8SP3-0.875 -> -1.09375 | N83: =CDIM8SP3-0.875 -> -1.09375 | O83: =AE225 -> 0 | P83: =AE224 -> 0 | T83: =IF(_DIM4=(W/2),(Frame_Width/2)-(1.75*2),IF(_DIM4>(W/2),(Frame_Width-_DIM4)-(1.75*2),IF(_DIM4<(W/2),_DIM4-(1.75*2),0))) -> -3.5 | U83: =CDIM8SP3-3.5 -> -3.71875 | AB83: Bottom Stile | AC83: =(2*(CDIM3A01-0.625))/12 -> -0.1041666667 | AD83: 0.219 | AE83: -0.0228125 | AG83: Bottom Stile | AH83: =((CDIM03S0-1.125)*2)/12 -> -0.1875 | AI83: 0.219 | AJ83: -0.0410625 | AP83: =IF(AND(AO83=21,$AM$4>=19,$AM$4<=23.99),AO83&"-"&"5",0) ->  | AU83: =IF(AND(AT83=21,$AR$4>=19,$AR$4<=23.99),AT83&"-"&"5",0) ->  | BQ83: =IF(AND(BP83=18,$BN$4>=59,$BN$4<=64),"Dbl."&BP83&"H",0) ->  | BV83: =IF(AND(BU83=18,$BS$4>=59,$BS$4<=64),"Dbl."&BU83&"H",0) -> 
B84: 14 | C84: 7 | D84: 1 | AB84: Bottom Rail Reinf. | AC84: =(TRUNC(((Frame_Width-3.125)-6)/2)*2)/12 -> -0.6666666667 | AD84: =IF(OR(EXTSELECT=2,Frame_Width<48,Frame_Height<84),0.0516,IF(OR(EXTSELECT=3,Frame_Width>48,Frame_Height>84),0.57,0)) -> 0.0516 | AE84: -0.0344 | AG84: Bottom Rail Reinf. | AH84: =(TRUNC(((Frame_Width-3.125)-6)/2)*2)/12 -> -0.6666666667 | AI84: =IF(OR(EXTSELECT=2,Frame_Width<48,Frame_Height<84),0.0516,IF(OR(EXTSELECT=3,Frame_Width>48,Frame_Height>84),0.57,0)) -> 0.0516 | AJ84: -0.0344 | AP84: =IF(AND(AO84=21,$AM$4>=24,$AM$4<=26.99),AO84&"-"&"6",0) ->  | AU84: =IF(AND(AT84=21,$AR$4>=24,$AR$4<=26.99),AT84&"-"&"6",0) ->  | BQ84: =IF(AND(BP84=18,$BN$4>=65,$BN$4<=68),"Dbl."&BP84&"I",0) ->  | BV84: =IF(AND(BU84=18,$BS$4>=65,$BS$4<=68),"Dbl."&BU84&"I",0) -> 
B85: 15 | C85: 8 | D85: 1 | AB85: Bottom Stile Reinf. | AC85: =IF(OR(Frame_Width>48,Frame_Height>84,EXTTYPE="Steel"),((TRUNC((CDIM3A01-2)/2)*2)/12)*2,0) -> 0 | AD85: 0.456 | AE85: 0 | AG85: Bottom Stile Reinf. | AH85: =IF(OR(Frame_Width>48,Frame_Height>84,EXTTYPE="Steel"),((TRUNC(((CDIM03S0-1.125)-4)/2)*2)/12)*2,0) -> 0 | AI85: 0.456 | AJ85: 0 | AP85: =IF(AND(AO85=21,$AM$4>=27,$AM$4<=29.99),AO85&"-"&"9",0) ->  | AU85: =IF(AND(AT85=21,$AR$4>=27,$AR$4<=29.99),AT85&"-"&"9",0) ->  | BP85: =IF(AND($BO$4<=20,$BO$4>18),20,0) ->  | BQ85: =IF(AND(BP85=20,$BN$4>=5,$BN$4<=10),BP85&"A",0) ->  | BU85: =IF(AND($BT$4<=20,$BT$4>18),20,0) ->  | BV85: =IF(AND(BU85=20,$BS$4>=5,$BS$4<=10),BU85&"A",0) -> 
B86: 16 | C86: 8 | D86: 1 | AB86: Bottom Glass | AC86: =(CMR!$T$14*CMR!$T$16)/144 -> 0.07318793403 | AD86: =$H$10 -> 2.314 | AE86: 0.1693568793 | AG86: Bottom Glass | AH86: =(CMR!$T$30*CMR!$T$32)/144 -> 0.08968098958 | AI86: =$H$10 -> 2.314 | AJ86: 0.2075218099 | AP86: =IF(AND(AO86=21,$AM$4>=30,$AM$4<=30.99),AO86&"-"&"11",0) ->  | AU86: =IF(AND(AT86=21,$AR$4>=30,$AR$4<=30.99),AT86&"-"&"11",0) ->  | BQ86: =IF(AND(BP86=20,$BN$4>=11,$BN$4<=14),BP86&"B",0) ->  | BV86: =IF(AND(BU86=20,$BS$4>=11,$BS$4<=14),BU86&"B",0) -> 
B87: 17 | C87: 9 | D87: 1 | AB87: Bottom Spacer | AC87: =((CMR!$T$14*2)+(CMR!$T$16*2))/12 -> -1.161458333 | AD87: 0.0536 | AE87: -0.06225416667 | AG87: Bottom Spacer | AH87: =((CMR!$T$30*2)+(CMR!$T$32*2))/12 -> -1.244791667 | AI87: 0.0536 | AJ87: =AH87*AI87 -> -0.06672083333 | AP87: =IF(AND(AO87=21,$AM$4>=31,$AM$4<=33.99),AO87&"-"&"12",0) ->  | AU87: =IF(AND(AT87=21,$AR$4>=31,$AR$4<=33.99),AT87&"-"&"12",0) ->  | BQ87: =IF(AND(BP87=20,$BN$4>=15,$BN$4<=18),BP87&"C",0) ->  | BV87: =IF(AND(BU87=20,$BS$4>=15,$BS$4<=18),BU87&"C",0) -> 
B88: 18 | C88: 9 | D88: 1 | AB88: Bottom Hardware | AC88: 1 | AD88: 0.36 | AE88: 0.36 | AG88: Bottom Hardware | AH88: 1 | AI88: 0.36 | AJ88: =AH88*AI88 -> 0.36 | AP88: =IF(AND(AO88=21,$AM$4>=34,$AM$4<=36.99),AO88&"-"&"13",0) ->  | AU88: =IF(AND(AT88=21,$AR$4>=34,$AR$4<=36.99),AT88&"-"&"13",0) ->  | BQ88: =IF(AND(BP88=20,$BN$4>=19,$BN$4<=22),BP88&"D",0) ->  | BV88: =IF(AND(BU88=20,$BS$4>=19,$BS$4<=22),BU88&"D",0) -> 
B89: 19 | C89: 10 | D89: 1 | AB89: Bottom Bead | AC89: =(((Frame_Width-4.125)*2)+((CDIM3A01-3.3125)*2))/12 -> -1.239583333 | AD89: 0.072 | AE89: -0.08925 | AG89: Bottom Bead | AH89: =(((Frame_Width-4.125)*2)+((CDIM03S0-3.3125)*2))/12 -> -1.239583333 | AI89: 0.072 | AJ89: =AH89*AI89 -> -0.08925 | AP89: =IF(AND(AO89=21,$AM$4>=37,$AM$4<=39.99),AO89&"-"&"14",0) ->  | AU89: =IF(AND(AT89=21,$AR$4>=37,$AR$4<=39.99),AT89&"-"&"14",0) ->  | BQ89: =IF(AND(BP89=20,$BN$4>=23,$BN$4<=26),BP89&"E",0) ->  | BV89: =IF(AND(BU89=20,$BS$4>=23,$BS$4<=26),BU89&"E",0) -> 
B90: 20 | C90: 10 | D90: 1 | AD90: Top Sash | AE90: =IF(ModelNo="3A01",(TRUNC((SUM(AE72:AE80))))+5,0) -> 0 | AI90: Top Sash | AJ90: 0 | AN90: =IF(AND(AO90>0,AP90>0),AO90,0) ->  | AP90: =IF(AND(AO90=21,$AM$4>=40,$AM$4<=42),AO90&"-"&"15",0) ->  | AU90: =IF(AND(AT90=21,$AR$4>=40,$AR$4<=42),AT90&"-"&"15",0) ->  | BQ90: =IF(AND(BP90=20,$BN$4>=27,$BN$4<=30),BP90&"F",0) ->  | BV90: =IF(AND(BU90=20,$BS$4>=27,$BS$4<=30),BU90&"F",0) -> 
B91: 21 | C91: 56 | D91: 2 | AD91: Bottom Sash | AE91: =IF(ModelNo="3A01",TRUNC((SUM(AE81:AE89))),0) -> 0 | AI91: Bottom Sash | AJ91: =IF(OR(ModelNo="03S0",ModelNo="A140",ModelNo="A144",ModelNo="A146"),TRUNC(SUM(AJ81:AJ89)),0) -> 0 | AO91: =IF(AND($AN$4<=23,$AN$4>21),23,0) ->  | AP91: =IF(AND(AO91=23,$AM$4>=5,$AM$4<=7.99),AO91&"-"&"1",0) ->  | AT91: =IF(AND($AS$4<=23,$AS$4>21),23,0) ->  | AU91: =IF(AND(AT91=23,$AR$4>=5,$AR$4<=7.99),AT91&"-"&"1",0) ->  | BQ91: =IF(AND(BP91=20,$BN$4>=31,$BN$4<=34),BP91&"G",0) ->  | BV91: =IF(AND(BU91=20,$BS$4>=31,$BS$4<=34),BU91&"G",0) -> 
B92: 22 | C92: 56 | D92: 2 | AP92: =IF(AND(AO92=23,$AM$4>=8,$AM$4<=10.99),AO92&"-"&"2",0) ->  | AU92: =IF(AND(AT92=23,$AR$4>=8,$AR$4<=10.99),AT92&"-"&"2",0) ->  | BQ92: =IF(AND(BP92=20,$BN$4>=35,$BN$4<=37),BP92&"H",0) ->  | BV92: =IF(AND(BU92=20,$BS$4>=35,$BS$4<=37),BU92&"H",0) -> 
B93: 23 | C93: 66 | D93: 2 | AP93: =IF(AND(AO93=23,$AM$4>=11,$AM$4<=14.99),AO93&"-"&"3",0) ->  | AU93: =IF(AND(AT93=23,$AR$4>=11,$AR$4<=14.99),AT93&"-"&"3",0) ->  | BQ93: =IF(AND(BP93=20,$BN$4>=38,$BN$4<=40),BP93&"I",0) ->  | BV93: =IF(AND(BU93=20,$BS$4>=38,$BS$4<=40),BU93&"I",0) -> 
B94: 24 | C94: 66 | D94: 2 | AP94: =IF(AND(AO94=23,$AM$4>=15,$AM$4<=18.99),AO94&"-"&"4",0) ->  | AU94: =IF(AND(AT94=23,$AR$4>=15,$AR$4<=18.99),AT94&"-"&"4",0) ->  | AV94: x | BQ94: =IF(AND(BP94=20,$BN$4>=41,$BN$4<=44),"Dbl."&BP94&"D",0) ->  | BV94: =IF(AND(BU94=20,$BS$4>=41,$BS$4<=44),"Dbl."&BU94&"D",0) -> 
B95: 25 | C95: 67 | D95: 2 | AB95: 7SH2 | AC95: Length | AD95: Weight/ft | AE95: Weight | AG95: 8SH2 | AH95: Length | AI95: Weight/ft | AJ95: Weight | AP95: =IF(AND(AO95=23,$AM$4>=19,$AM$4<=23.99),AO95&"-"&"5",0) ->  | AU95: =IF(AND(AT95=23,$AR$4>=19,$AR$4<=23.99),AT95&"-"&"5",0) ->  | BQ95: =IF(AND(BP95=20,$BN$4>=45,$BN$4<=52),"Dbl."&BP95&"E",0) ->  | BV95: =IF(AND(BU95=20,$BS$4>=45,$BS$4<=52),"Dbl."&BU95&"E",0) -> 
B96: 26 | C96: 67 | D96: 2 | AB96: Top Top Rail | AC96: 0 | AD96: 0 | AE96: =AC96*AD96 -> 0 | AG96: Top Top Rail | AH96: 0 | AI96: 0 | AJ96: =AH96*AI96 -> 0 | AP96: =IF(AND(AO96=23,$AM$4>=24,$AM$4<=28.99),AO96&"-"&"6",0) ->  | AU96: =IF(AND(AT96=23,$AR$4>=24,$AR$4<=28.99),AT96&"-"&"6",0) ->  | BQ96: =IF(AND(BP96=20,$BN$4>=53,$BN$4<=60),"Dbl."&BP96&"F",0) ->  | BV96: =IF(AND(BU96=20,$BS$4>=53,$BS$4<=60),"Dbl."&BU96&"F",0) -> 
B97: 27 | C97: 77 | D97: 2 | AB97: Top Bottom Rail | AC97: 0 | AD97: 0 | AE97: =AC97*AD97 -> 0 | AG97: Top Bottom Rail | AH97: 0 | AI97: 0 | AJ97: =AH97*AI97 -> 0 | AP97: =IF(AND(AO97=23,$AM$4>=29,$AM$4<=31.99),AO97&"-"&"9",0) ->  | AU97: =IF(AND(AT97=23,$AR$4>=29,$AR$4<=31.99),AT97&"-"&"9",0) ->  | BQ97: =IF(AND(BP97=20,$BN$4>=61,$BN$4<=68),"Dbl."&BP97&"G",0) ->  | BV97: =IF(AND(BU97=20,$BS$4>=61,$BS$4<=68),"Dbl."&BU97&"G",0) -> 
B98: 28 | C98: 77 | D98: 2 | L98: FALSE | M98: AC SASH CALCULATOR | AB98: Top Stile | AC98: 0 | AD98: 0 | AE98: =(AC98*AD98)/12 -> 0 | AG98: Top Stile | AH98: 0 | AI98: 0 | AJ98: =(AH98*AI98)/12 -> 0 | AP98: =IF(AND(AO98=23,$AM$4>=32,$AM$4<=33.99),AO98&"-"&"12",0) ->  | AU98: =IF(AND(AT98=23,$AR$4>=32,$AR$4<=33.99),AT98&"-"&"12",0) ->  | BQ98: =IF(AND(BP98=20,$BN$4>=69,$BN$4<=74),"Dbl."&BP98&"H",0) ->  | BV98: =IF(AND(BU98=20,$BS$4>=69,$BS$4<=74),"Dbl."&BU98&"H",0) -> 
B99: 29 | C99: 78 | D99: 2 | L99: Model | M99: Head | N99: Sill | O99: Center of Astragal | P99: Sash Width | Q99: Sash Height | R99: CMR | AB99: Top Rail Reinf. | AC99: 0 | AD99: 0 | AE99: 0 | AG99: Top Rail Reinf. | AH99: 0 | AI99: 0 | AJ99: 0 | AP99: =IF(AND(AO99=23,$AM$4>=34,$AM$4<=36.99),AO99&"-"&"13",0) ->  | AU99: =IF(AND(AT99=23,$AR$4>=34,$AR$4<=36.99),AT99&"-"&"13",0) ->  | BQ99: =IF(AND(BP99=20,$BN$4>=75,$BN$4<=80),"Dbl."&BP99&"I",0) ->  | BV99: =IF(AND(BU99=20,$BS$4>=75,$BS$4<=80),"Dbl."&BU99&"I",0) -> 
B100: 30 | C100: 78 | D100: 2 | L100: =ModelNo -> Select Model | M100: =IF(ISERROR(VLOOKUP(ModelNo,ACTABLE,2,FALSE)),"",VLOOKUP(ModelNo,ACTABLE,2,FALSE)) ->  | N100: =IF(ISERROR(VLOOKUP(ModelNo,ACTABLE,3,FALSE)),"",VLOOKUP(ModelNo,ACTABLE,3,FALSE)) ->  | O100: =IF(ISERROR(VLOOKUP(ModelNo,ACTABLE,4,FALSE)),"",VLOOKUP(ModelNo,ACTABLE,4,FALSE)) ->  | P100: =IF(ISERROR(VLOOKUP(ModelNo,ACTABLE,5,FALSE)),"",VLOOKUP(ModelNo,ACTABLE,5,FALSE)) ->  | Q100: =IF(ISERROR(VLOOKUP(ModelNo,ACTABLE,6,FALSE)),"",VLOOKUP(ModelNo,ACTABLE,6,FALSE)) ->  | R100: =IF(ISERROR(VLOOKUP(ModelNo,ACTABLE,7,FALSE)),"",VLOOKUP(ModelNo,ACTABLE,7,FALSE)) ->  | AB100: Top Stile Reinf | AC100: 0 | AD100: 0 | AE100: 0 | AG100: Top Stile Reinf | AH100: 0 | AI100: 0 | AJ100: 0 | AP100: =IF(AND(AO100=23,$AM$4>=37,$AM$4<=39.99),AO100&"-"&"14",0) ->  | AU100: =IF(AND(AT100=23,$AR$4>=37,$AR$4<=39.99),AT100&"-"&"14",0) ->  | BP100: =IF(AND($BO$4<=22,$BO$4>20),22,0) ->  | BQ100: =IF(AND(BP100=22,$BN$4>=5,$BN$4<=10),BP100&"A",0) ->  | BU100: =IF(AND($BT$4<=22,$BT$4>20),22,0) ->  | BV100: =IF(AND(BU100=22,$BS$4>=5,$BS$4<=10),BU100&"A",0) -> 
B101: 31 | C101: 88 | D101: 2 | L101: A201 | M101: 1.718 | N101: 1.75 | P101: =Frame_Width-3.25 -> -3.25 | Q101: =INT((Frame_Height-(M101+N101+0.5+ACHEIGHT))*16+0.5)/16 -> -3.9375 | AB101: Top Glass | AC101: 0 | AD101: 0 | AE101: 0 | AG101: Top Glass | AH101: 0 | AI101: 0 | AJ101: 0 | AP101: =IF(AND(AO101=23,$AM$4>=40,$AM$4<=43),AO101&"-"&"15",0) ->  | AU101: =IF(AND(AT101=23,$AR$4>=40,$AR$4<=43),AT101&"-"&"15",0) ->  | BQ101: =IF(AND(BP101=22,$BN$4>=11,$BN$4<=16),BP101&"B",0) ->  | BV101: =IF(AND(BU101=22,$BS$4>=11,$BS$4<=16),BU101&"B",0) -> 
B102: 32 | C102: 88 | D102: 2 | L102: 3A01 | M102: 2.0625 | N102: 1.875 | P102: =Frame_Width-4.125 -> -4.125 | Q102: =INT((Frame_Height-(M102+N102+0.5+ACHEIGHT))*16+0.5)/16 -> -4.4375 | AB102: Top Spacer | AC102: 0 | AD102: 0 | AE102: 0 | AG102: Top Spacer | AH102: 0 | AI102: 0 | AJ102: 0 | AN102: =IF(AND(AO102>0,AP102>0),AO102,0) ->  | AO102: =IF(AND($AN$4<=25,$AN$4>23),25,0) ->  | AP102: =IF(AND(AO102=25,$AM$4>=5,$AM$4<=7.99),AO102&"-"&"1",0) ->  | AT102: =IF(AND($AS$4<=25,$AS$4>23),25,0) ->  | AU102: =IF(AND(AT102=25,$AR$4>=5,$AR$4<=7.99),AT102&"-"&"1",0) ->  | BQ102: =IF(AND(BP102=22,$BN$4>=17,$BN$4<=21),BP102&"C",0) ->  | BV102: =IF(AND(BU102=22,$BS$4>=17,$BS$4<=21),BU102&"C",0) -> 
B103: 33 | C103: 89 | D103: 2 | L103: 03S0 | N103: 1.875 | O103: 1.25 | P103: =Frame_Width-3.125 -> -3.125 | R103: =Frame_Height-(INT((Frame_Height-(N103+0.5+ACHEIGHT+O103))*16+0.5)/16) -> 3.625 | AB103: Top Hardware | AC103: 0 | AD103: 0 | AE103: 0 | AG103: Top Hardware | AH103: 0 | AI103: 0 | AJ103: 0 | AP103: =IF(AND(AO103=25,$AM$4>=8,$AM$4<=10.99),AO103&"-"&"2",0) ->  | AU103: =IF(AND(AT103=25,$AR$4>=8,$AR$4<=10.99),AT103&"-"&"2",0) ->  | BQ103: =IF(AND(BP103=22,$BN$4>=22,$BN$4<=24),BP103&"D",0) ->  | BV103: =IF(AND(BU103=22,$BS$4>=22,$BS$4<=24),BU103&"D",0) -> 
B104: 34 | C104: 89 | D104: 2 | L104: A571 | M104: 1.625 | N104: 1.625 | P104: =Frame_Width-2.125 -> -2.125 | R104: =Frame_Height-(INT((Frame_Height-(N104+0.5+ACHEIGHT+O104))*16+0.5)/16) -> 2.125 | AB104: Top Bead | AC104: 0 | AD104: 0 | AE104: 0 | AG104: Top Bead | AH104: 0 | AI104: 0 | AJ104: 0 | AP104: =IF(AND(AO104=25,$AM$4>=11,$AM$4<=14.99),AO104&"-"&"3",0) ->  | AU104: =IF(AND(AT104=25,$AR$4>=11,$AR$4<=14.99),AT104&"-"&"3",0) ->  | BQ104: =IF(AND(BP104=22,$BN$4>=25,$BN$4<=27),BP104&"E",0) ->  | BV104: =IF(AND(BU104=22,$BS$4>=25,$BS$4<=27),BU104&"E",0) -> 
B105: 35 | C105: 99 | D105: 2 | L105: A581 | M105: 1.75 | N105: 1.75 | O105: 0.3125 | P105: =Frame_Width-2.8125 -> -2.8125 | R105: =Frame_Height-(INT((Frame_Height-(N105+0.5+ACHEIGHT+O105))*16+0.5)/16) -> 2.5625 | AB105: Bottom Top Rail | AC105: =(TRUNC((Frame_Width/2+0.25-2.0625)*32+0.5)/32)/12 -> -0.1484375 | AD105: 0.243 | AE105: =AC105*AD105 -> -0.0360703125 | AG105: Bottom Top Rail | AH105: =(TRUNC((Frame_Width/2-2.3125)*32+0.5)/32)/12 -> -0.1901041667 | AI105: 0.243 | AJ105: =AH105*AI105 -> -0.0461953125 | AP105: =IF(AND(AO105=25,$AM$4>=15,$AM$4<=18.99),AO105&"-"&"4",0) ->  | AU105: =IF(AND(AT105=25,$AR$4>=15,$AR$4<=18.99),AT105&"-"&"4",0) ->  | BQ105: =IF(AND(BP105=22,$BN$4>=28,$BN$4<=30),BP105&"F",0) ->  | BV105: =IF(AND(BU105=22,$BS$4>=28,$BS$4<=30),BU105&"F",0) -> 
B106: 36 | C106: 99 | D106: 2 | L106: A991 | M106: 1.75 | N106: 1.75 | O106: 0.3125 | P106: =Frame_Width-2.8125 -> -2.8125 | R106: =Frame_Height-(INT((Frame_Height-(N106+0.5+ACHEIGHT+O106))*16+0.5)/16) -> 2.5625 | AB106: Bottom Bottom Rail | AC106: =(TRUNC((Frame_Width/2+0.25-2.0625)*32+0.5)/32)/12 -> -0.1484375 | AD106: 0.216 | AE106: -0.0320625 | AG106: Bottom Bottom Rail | AH106: =(TRUNC((Frame_Width/2-2.3125)*32+0.5)/32)/12 -> -0.1901041667 | AI106: 0.216 | AJ106: -0.0410625 | AP106: =IF(AND(AO106=25,$AM$4>=19,$AM$4<=23.99),AO106&"-"&"5",0) ->  | AU106: =IF(AND(AT106=25,$AR$4>=19,$AR$4<=23.99),AT106&"-"&"5",0) ->  | BQ106: =IF(AND(BP106=22,$BN$4>=31,$BN$4<=34),BP106&"G",0) ->  | BV106: =IF(AND(BU106=22,$BS$4>=31,$BS$4<=34),BU106&"G",0) -> 
B107: 37 | C107: 766 | D107: 3 | L107: A501 | M107: 2.125 | N107: 2.689 | P107: =Frame_Width-4.875 -> -4.875 | Q107: =INT((Frame_Height-(M107+N107+0.5+ACHEIGHT))*16+0.5)/16 -> -5.3125 | AB107: Bottom Stile | AC107: =((CDIM7SH2-0.875)*2)/12 -> -0.1458333333 | AD107: 0.185 | AE107: -0.02697916667 | AG107: Bottom Stile | AH107: =((CDIM8SH2-1.5)*2)/12 -> -0.25 | AI107: 0.185 | AJ107: -0.04625 | AP107: =IF(AND(AO107=25,$AM$4>=24,$AM$4<=28.99),AO107&"-"&"6",0) ->  | AU107: =IF(AND(AT107=25,$AR$4>=24,$AR$4<=28.99),AT107&"-"&"6",0) ->  | AV107: x | BQ107: =IF(AND(BP107=22,$BN$4>=35,$BN$4<=37),BP107&"H",0) ->  | BV107: =IF(AND(BU107=22,$BS$4>=35,$BS$4<=37),BU107&"H",0) -> 
B108: 38 | C108: 766 | D108: 3 | L108: 02S0 | N108: 1.75 | O108: 0.625 | P108: =Frame_Width-2.25 -> -2.25 | R108: =Frame_Height-(INT((Frame_Height-(N108+0.5+ACHEIGHT+O108))*16+0.5)/16) -> 2.875 | AB108: Bottom Rail Reinf. | AC108: =((AC105*12)-3)/12 -> -0.3984375 | AD108: 0.172 | AE108: -0.06853125 | AG108: Bottom Rail Reinf. | AH108: =((AH105*12)-2.6875)/12 -> -0.4140625 | AI108: 0.172 | AJ108: -0.07121875 | AP108: =IF(AND(AO108=25,$AM$4>=29,$AM$4<=33.99),AO108&"-"&"9",0) ->  | AU108: =IF(AND(AT108=25,$AR$4>=29,$AR$4<=33.99),AT108&"-"&"9",0) ->  | BQ108: =IF(AND(BP108=22,$BN$4>=38,$BN$4<=40),BP108&"I",0) ->  | BV108: =IF(AND(BU108=22,$BS$4>=38,$BS$4<=40),BU108&"I",0) -> 
B109: 39 | C109: 866 | D109: 3 | L109: A140 | N109: 1.875 | O109: 1.25 | P109: =Frame_Width-3.125 -> -3.125 | R109: =Frame_Height-(INT((Frame_Height-(N109+0.5+ACHEIGHT+O109))*16+0.5)/16) -> 3.625 | AB109: Bottom Stile Reinf. | AE109: 0 | AG109: Bottom Stile Reinf. | AJ109: 0 | AP109: =IF(AND(AO109=25,$AM$4>=34,$AM$4<=35.99),AO109&"-"&"11",0) ->  | AU109: =IF(AND(AT109=25,$AR$4>=34,$AR$4<=35.99),AT109&"-"&"11",0) ->  | BQ109: =IF(AND(BP109=22,$BN$4>=41,$BN$4<=42),"Dbl."&BP109&"C",0) ->  | BV109: =IF(AND(BU109=22,$BS$4>=41,$BS$4<=42),"Dbl."&BU109&"C",0) -> 
B110: 40 | C110: 866 | D110: 3 | L110: A144 | N110: 1.875 | O110: 1.25 | P110: =Frame_Width-3.125 -> -3.125 | R110: =Frame_Height-(INT((Frame_Height-(N110+0.5+ACHEIGHT+O110))*16+0.5)/16) -> 3.625 | AB110: Bottom Glass | AC110: =(((AC105*12)-2.1875)*((AC107*12)-2.1875))/144 -> 0.1085205078 | AD110: =$H$10 -> 2.314 | AE110: 0.2511164551 | AG110: Bottom Glass | AH110: =(((AH105*12)-2.5625)*((AH107*12)-2.5))/144 -> 0.1850043403 | AI110: =$H$10 -> 2.314 | AJ110: 0.4281000434 | AP110: =IF(AND(AO110=25,$AM$4>=36,$AM$4<=38.99),AO110&"-"&"12",0) ->  | AU110: =IF(AND(AT110=25,$AR$4>=36,$AR$4<=38.99),AT110&"-"&"12",0) ->  | BQ110: =IF(AND(BP110=22,$BN$4>=43,$BN$4<=48),"Dbl."&BP110&"D",0) ->  | BV110: =IF(AND(BU110=22,$BS$4>=43,$BS$4<=48),"Dbl."&BU110&"D",0) -> 
B111: 41 | C111: 777 | D111: 3 | L111: A146 | N111: 1.875 | O111: 1.25 | P111: =Frame_Width-3.125 -> -3.125 | R111: =Frame_Height-(INT((Frame_Height-(N111+0.5+ACHEIGHT+O111))*16+0.5)/16) -> 3.625 | AB111: Bottom Spacer | AC111: =(((AC105*12)*2)+((AC107*12)*2))/12 -> -0.5885416667 | AD111: 0.0536 | AE111: =AC111*AD111 -> -0.03154583333 | AG111: Bottom Spacer | AH111: =(((AH105*12)*2)+((AH107*12)*2))/12 -> -0.8802083333 | AI111: 0.0536 | AJ111: =AH111*AI111 -> -0.04717916667 | AP111: =IF(AND(AO111=25,$AM$4>=39,$AM$4<=41.99),AO111&"-"&"13",0) ->  | AU111: =IF(AND(AT111=25,$AR$4>=39,$AR$4<=41.99),AT111&"-"&"13",0) ->  | BQ111: =IF(AND(BP111=22,$BN$4>=49,$BN$4<=54),"Dbl."&BP111&"E",0) ->  | BV111: =IF(AND(BU111=22,$BS$4>=49,$BS$4<=54),"Dbl."&BU111&"E",0) -> 
B112: 42 | C112: 777 | D112: 3 | L112: A740 | N112: 1.4375 | O112: 1 | P112: =Frame_Width-2.125 -> -2.125 | R112: =LEG-(INT((LEG-(N112+0.5+ACHEIGHT+O112))*16+0.5)/16) -> 2.9375 | AB112: Bottom Hardware | AC112: 1 | AD112: 0.36 | AE112: =AC112*AD112 -> 0.36 | AG112: Bottom Hardware | AH112: 1 | AI112: 0.36 | AJ112: =AH112*AI112 -> 0.36 | AP112: =IF(AND(AO112=25,$AM$4>=42,$AM$4<=44.99),AO112&"-"&"14",0) ->  | AU112: =IF(AND(AT112=25,$AR$4>=42,$AR$4<=44.99),AT112&"-"&"14",0) ->  | BQ112: =IF(AND(BP112=22,$BN$4>=55,$BN$4<=60),"Dbl."&BP112&"F",0) ->  | BV112: =IF(AND(BU112=22,$BS$4>=55,$BS$4<=60),"Dbl."&BU112&"F",0) -> 
B113: 43 | C113: 877 | D113: 3 | L113: A744 | N113: 1.4375 | O113: 1 | P113: =Frame_Width-2.125 -> -2.125 | R113: 2.9375 | AB113: Bottom Bead | AC113: =((((AC105*12)-1.875)*2)+(((AC107*12)-1.875)*2))/12 -> -1.213541667 | AD113: 0.019 | AE113: =AC113*AD113 -> -0.02305729167 | AG113: Bottom Bead | AH113: =((((AH105*12)-2.25)*2)+(((AH107*12)-2.25)*2))/12 -> -1.630208333 | AI113: 0.019 | AJ113: =AH113*AI113 -> -0.03097395833 | AP113: =IF(AND(AO113=25,$AM$4>=45,$AM$4<=46.99),AO113&"-"&"15",0) ->  | AU113: =IF(AND(AT113=25,$AR$4>=45,$AR$4<=46.99),AT113&"-"&"15",0) ->  | BQ113: =IF(AND(BP113=22,$BN$4>=61,$BN$4<=68),"Dbl."&BP113&"G",0) ->  | BV113: =IF(AND(BU113=22,$BS$4>=61,$BS$4<=68),"Dbl."&BU113&"G",0) -> 
B114: 44 | C114: 877 | D114: 3 | L114: A746 | N114: 1.4375 | O114: 1 | P114: =Frame_Width-2.125 -> -2.125 | R114: 2.9375 | AD114: Top Sash | AE114: 0 | AI114: Top Sash | AJ114: 0 | AP114: =IF(AND(AO114=25,$AM$4>=47,$AM$4<=49),AO114&"-"&"16",0) ->  | AU114: =IF(AND(AT114=25,$AR$4>=47,$AR$4<=49),AT114&"-"&"16",0) ->  | BQ114: =IF(AND(BP114=22,$BN$4>=69,$BN$4<=74),"Dbl."&BP114&"H",0) ->  | BV114: =IF(AND(BU114=22,$BS$4>=69,$BS$4<=74),"Dbl."&BU114&"H",0) -> 
B115: 45 | C115: 878 | D115: 3 | L115: A840 | N115: 1.75 | O115: 1.25 | P115: =Frame_Width-2.8125 -> -2.8125 | R115: 3.5 | AD115: Bottom Sash | AE115: =IF(ModelNo="7SH2",TRUNC(SUM(AE105:AE113)),0) -> 0 | AI115: Bottom Sash | AJ115: =IF(ModelNo="8SH2",TRUNC(SUM(AJ105:AJ113)),0) -> 0 | AN115: =IF(AND(AO115>0,AP115>0),AO115,0) ->  | AO115: =IF(AND($AN$4<=27,$AN$4>25),27,0) ->  | AP115: =IF(AND(AO115=27,$AM$4>=5,$AM$4<=7.99),AO115&"-"&"1",0) ->  | AT115: =IF(AND($AS$4<=27,$AS$4>25),27,0) ->  | AU115: =IF(AND(AT115=27,$AR$4>=5,$AR$4<=7.99),AT115&"-"&"1",0) ->  | BQ115: =IF(AND(BP115=22,$BN$4>=75,$BN$4<=80),"Dbl."&BP115&"I",0) ->  | BV115: =IF(AND(BU115=22,$BS$4>=75,$BS$4<=80),"Dbl."&BU115&"I",0) -> 
B116: 46 | C116: 878 | D116: 3 | L116: A844 | N116: 1.75 | O116: 1.25 | P116: =Frame_Width-2.8125 -> -2.8125 | R116: 3.5 | AP116: =IF(AND(AO116=27,$AM$4>=8,$AM$4<=11.99),AO116&"-"&"2",0) ->  | AU116: =IF(AND(AT116=27,$AR$4>=8,$AR$4<=11.99),AT116&"-"&"2",0) ->  | BP116: =IF(AND($BO$4<=24,$BO$4>22),24,0) ->  | BQ116: =IF(AND(BP116=24,$BN$4>=6,$BN$4<=10),BP116&"A",0) ->  | BU116: =IF(AND($BT$4<=24,$BT$4>22),24,0) ->  | BV116: =IF(AND(BU116=24,$BS$4>=6,$BS$4<=10),BU116&"A",0) -> 
B117: 47 | C117: 888 | D117: 3 | L117: A846 | N117: 1.75 | O117: 1.25 | P117: =Frame_Width-2.8125 -> -2.8125 | R117: 3.5 | AB117: 7SH3 | AC117: Length | AD117: Weight/ft | AE117: Weight | AG117: 8SH3 | AH117: Length | AI117: Weight/ft | AJ117: Weight | AP117: =IF(AND(AO117=27,$AM$4>=12,$AM$4<=16.99),AO117&"-"&"3",0) ->  | AU117: =IF(AND(AT117=27,$AR$4>=12,$AR$4<=16.99),AT117&"-"&"3",0) ->  | BQ117: =IF(AND(BP117=24,$BN$4>=11,$BN$4<=17),BP117&"B",0) ->  | BV117: =IF(AND(BU117=24,$BS$4>=11,$BS$4<=17),BU117&"B",0) -> 
B118: 48 | C118: 888 | D118: 3 | L118: 7SH2 | M118: 1.625 | N118: 1.625 | P118: =TRUNC((Frame_Width/2+0.25-2.0625)*32+0.5)/32 -> -1.78125 | R118: =Frame_Height-(INT((Frame_Height-(N118+0.5+ACHEIGHT+O118))*16+0.5)/16) -> 2.125 | AB118: Top Top Rail | AC118: 0 | AD118: 0 | AE118: =AC118*AD118 -> 0 | AG118: Top Top Rail | AH118: 0 | AI118: 0 | AJ118: =AH118*AI118 -> 0 | AP118: =IF(AND(AO118=27,$AM$4>=17,$AM$4<=21.99),AO118&"-"&"4",0) ->  | AU118: =IF(AND(AT118=27,$AR$4>=17,$AR$4<=21.99),AT118&"-"&"4",0) ->  | BQ118: =IF(AND(BP118=24,$BN$4>=18,$BN$4<=22),BP118&"C",0) ->  | BV118: =IF(AND(BU118=24,$BS$4>=18,$BS$4<=22),BU118&"C",0) -> 
B119: 49 | C119: 889 | D119: 3 | L119: 7SH3 | M119: 1.625 | N119: 1.625 | P119: =TRUNC((((Frame_Width+0.5)-5.6875)/3)*32)/32 -> -1.71875 | R119: 2.125 | AB119: Top Bottom Rail | AC119: 0 | AD119: 0 | AE119: =AC119*AD119 -> 0 | AG119: Top Bottom Rail | AH119: 0 | AI119: 0 | AJ119: =AH119*AI119 -> 0 | AP119: =IF(AND(AO119=27,$AM$4>=22,$AM$4<=26.99),AO119&"-"&"5",0) ->  | AU119: =IF(AND(AT119=27,$AR$4>=22,$AR$4<=26.99),AT119&"-"&"5",0) ->  | BQ119: =IF(AND(BP119=24,$BN$4>=23,$BN$4<=25),BP119&"D",0) ->  | BV119: =IF(AND(BU119=24,$BS$4>=23,$BS$4<=25),BU119&"D",0) -> 
B120: 50 | C120: 889 | D120: 3 | L120: 8SH2 | M120: 1.75 | N120: 1.75 | P120: =TRUNC((Frame_Width/2-2.3125)*32+0.5)/32 -> -2.28125 | R120: 2.25 | AB120: Top Stile | AC120: 0 | AD120: 0 | AE120: =(AC120*AD120)/12 -> 0 | AG120: Top Stile | AH120: 0 | AI120: 0 | AJ120: =(AH120*AI120)/12 -> 0 | AP120: =IF(AND(AO120=27,$AM$4>=27,$AM$4<=30.99),AO120&"-"&"6",0) ->  | AU120: =IF(AND(AT120=27,$AR$4>=27,$AR$4<=30.99),AT120&"-"&"6",0) ->  | BQ120: =IF(AND(BP120=24,$BN$4>=26,$BN$4<=28),BP120&"E",0) ->  | BV120: =IF(AND(BU120=24,$BS$4>=26,$BS$4<=28),BU120&"E",0) -> 
B121: 51 | C121: 899 | D121: 3 | L121: 8SH3 | M121: 1.75 | N121: 1.75 | P121: =TRUNC(((Frame_Width/3)-2.779875+0.57)*32+0.5)/32 -> -2.1875 | R121: 2.25 | AB121: Top Rail Reinf. | AC121: 0 | AD121: 0 | AE121: 0 | AG121: Top Rail Reinf. | AH121: 0 | AI121: 0 | AJ121: 0 | AP121: =IF(AND(AO121=27,$AM$4>=31,$AM$4<=35.99),AO121&"-"&"9",0) ->  | AU121: =IF(AND(AT121=27,$AR$4>=31,$AR$4<=35.99),AT121&"-"&"9",0) ->  | AV121: x | BQ121: =IF(AND(BP121=24,$BN$4>=29,$BN$4<=30),BP121&"F",0) ->  | BV121: =IF(AND(BU121=24,$BS$4>=29,$BS$4<=30),BU121&"F",0) -> 
B122: 52 | C122: 899 | D122: 3 | L122: 82SP | M122: 1.75 | N122: 1.75 | P122: =Data!D800 -> -2.3125 | R122: 2.25 | AB122: Top Stile Reinf | AC122: 0 | AD122: 0 | AE122: 0 | AG122: Top Stile Reinf | AH122: 0 | AI122: 0 | AJ122: 0 | AP122: =IF(AND(AO122=27,$AM$4>=36,$AM$4<=36.99),AO122&"-"&"11",0) ->  | AU122: =IF(AND(AT122=27,$AR$4>=36,$AR$4<=36.99),AT122&"-"&"11",0) ->  | BQ122: =IF(AND(BP122=24,$BN$4>=31,$BN$4<=34),BP122&"G",0) ->  | BV122: =IF(AND(BU122=24,$BS$4>=31,$BS$4<=34),BU122&"G",0) -> 
B123: 53 | C123: 999 | D123: 3 | L123: 8SPS | M123: 1.75 | N123: 1.75 | P123: =Data!D816 -> -2.3125 | R123: 2.25 | AB123: Top Glass | AC123: 0 | AD123: 0 | AE123: 0 | AG123: Top Glass | AH123: 0 | AI123: 0 | AJ123: 0 | AP123: =IF(AND(AO123=27,$AM$4>=37,$AM$4<=39.99),AO123&"-"&"12",0) ->  | AU123: =IF(AND(AT123=27,$AR$4>=37,$AR$4<=39.99),AT123&"-"&"12",0) ->  | BQ123: =IF(AND(BP123=24,$BN$4>=35,$BN$4<=37),BP123&"H",0) ->  | BV123: =IF(AND(BU123=24,$BS$4>=35,$BS$4<=37),BU123&"H",0) -> 
B124: 54 | C124: 999 | D124: 3 | L124: 8SPP | M124: 1.75 | N124: 1.75 | P124: =Data!D832 -> -2.3125 | R124: 2.25 | AB124: Top Spacer | AC124: 0 | AD124: 0 | AE124: 0 | AG124: Top Spacer | AH124: 0 | AI124: 0 | AJ124: 0 | AP124: =IF(AND(AO124=27,$AM$4>=40,$AM$4<=42.99),AO124&"-"&"13",0) ->  | AU124: =IF(AND(AT124=27,$AR$4>=40,$AR$4<=42.99),AT124&"-"&"13",0) ->  | BQ124: =IF(AND(BP124=24,$BN$4>=38,$BN$4<=40),BP124&"I",0) ->  | BV124: =IF(AND(BU124=24,$BS$4>=38,$BS$4<=40),BU124&"I",0) -> 
B125: 55 | C125: 6679 | D125: 4 | L125: 8POS | M125: 1.75 | N125: 1.75 | P125: =Data!D850 -> -2.75 | R125: =Frame_Height-(INT((Frame_Height-(N125+0.5+ACHEIGHT+O125))*16+0.5)/16) -> 2.25 | AB125: Top Hardware | AC125: 0 | AD125: 0 | AE125: 0 | AG125: Top Hardware | AH125: 0 | AI125: 0 | AJ125: 0 | AP125: =IF(AND(AO125=27,$AM$4>=43,$AM$4<=44.99),AO125&"-"&"14",0) ->  | AU125: =IF(AND(AT125=27,$AR$4>=43,$AR$4<=44.99),AT125&"-"&"14",0) ->  | BQ125: =IF(AND(BP125=24,$BN$4>=41,$BN$4<=44),"Dbl."&BP125&"C",0) ->  | BV125: =IF(AND(BU125=24,$BS$4>=41,$BS$4<=44),"Dbl."&BU125&"C",0) -> 
B126: 56 | C126: 6679 | D126: 4 | L126: 8SOP | M126: 1.75 | N126: 1.75 | P126: =FLOOR(Frame_Width-2.8125,0.0625) -> -2.8125 | R126: =Frame_Height-(INT((Frame_Height-(N126+0.5+ACHEIGHT+O126))*16+0.5)/16) -> 2.25 | AB126: Top Bead | AC126: 0 | AD126: 0 | AE126: 0 | AG126: Top Bead | AH126: 0 | AI126: 0 | AJ126: 0 | AP126: =IF(AND(AO126=27,$AM$4>=45,$AM$4<=46.99),AO126&"-"&"15",0) ->  | AU126: =IF(AND(AT126=27,$AR$4>=45,$AR$4<=46.99),AT126&"-"&"15",0) ->  | BQ126: =IF(AND(BP126=24,$BN$4>=45,$BN$4<=50),"Dbl."&BP126&"D",0) ->  | BV126: =IF(AND(BU126=24,$BS$4>=45,$BS$4<=50),"Dbl."&BU126&"D",0) -> 
B127: 57 | C127: 6779 | D127: 4 | AB127: Bottom Top Rail | AC127: =(TRUNC((((Frame_Width+0.5)-5.6875)/3)*32)/32)/12 -> -0.1432291667 | AD127: 0.243 | AE127: =AC127*AD127 -> -0.0348046875 | AG127: Bottom Top Rail | AH127: =(TRUNC(((Frame_Width/3)-2.779875+0.57)*32+0.5)/32)/12 -> -0.1822916667 | AI127: 0.243 | AJ127: =AH127*AI127 -> -0.044296875 | AP127: =IF(AND(AO127=27,$AM$4>=47,$AM$4<=50),AO127&"-"&"16",0) ->  | AU127: =IF(AND(AT127=27,$AR$4>=47,$AR$4<=50),AT127&"-"&"16",0) ->  | BQ127: =IF(AND(BP127=24,$BN$4>=51,$BN$4<=56),"Dbl."&BP127&"E",0) ->  | BV127: =IF(AND(BU127=24,$BS$4>=51,$BS$4<=56),"Dbl."&BU127&"E",0) -> 
B128: 58 | C128: 6779 | D128: 4 | AB128: Bottom Bottom Rail | AC128: =(TRUNC((((Frame_Width+0.5)-5.6875)/3)*32)/32)/12 -> -0.1432291667 | AD128: 0.216 | AE128: -0.0309375 | AG128: Bottom Bottom Rail | AH128: =(TRUNC(((Frame_Width/3)-2.779875+0.57)*32+0.5)/32)/12 -> -0.1822916667 | AI128: 0.216 | AJ128: -0.039375 | AN128: =IF(AND(AO128>0,AP128>0),AO128,0) ->  | AO128: =IF(AND($AN$4<=29,$AN$4>27),29,0) ->  | AP128: =IF(AND(AO128=29,$AM$4>=6,$AM$4<=8.99),AO128&"-"&"1",0) ->  | AT128: =IF(AND($AS$4<=29,$AS$4>27),29,0) ->  | AU128: =IF(AND(AT128=29,$AR$4>=6,$AR$4<=8.99),AT128&"-"&"1",0) ->  | BQ128: =IF(AND(BP128=24,$BN$4>=57,$BN$4<=60),"Dbl."&BP128&"F",0) ->  | BV128: =IF(AND(BU128=24,$BS$4>=57,$BS$4<=60),"Dbl."&BU128&"F",0) -> 
B129: 59 | C129: 7779 | D129: 4 | AB129: Bottom Stile | AC129: =((CDIM7SH3-0.875)*2)/12 -> -0.1458333333 | AD129: 0.185 | AE129: -0.02697916667 | AG129: Bottom Stile | AH129: =((CDIM8SH3-1.5)*2)/12 -> -0.25 | AI129: 0.185 | AJ129: -0.04625 | AP129: =IF(AND(AO129=29,$AM$4>=9,$AM$4<=12.99),AO129&"-"&"2",0) ->  | AU129: =IF(AND(AT129=29,$AR$4>=9,$AR$4<=12.99),AT129&"-"&"2",0) ->  | BQ129: =IF(AND(BP129=24,$BN$4>=61,$BN$4<=68),"Dbl."&BP129&"G",0) ->  | BV129: =IF(AND(BU129=24,$BS$4>=61,$BS$4<=68),"Dbl."&BU129&"G",0) -> 
B130: 60 | C130: 7779 | D130: 4 | AB130: Bottom Rail Reinf. | AC130: =((AC127*12)-3)/12 -> -0.3932291667 | AD130: 0.172 | AE130: -0.06763541667 | AG130: Bottom Rail Reinf. | AH130: =((AH127*12)-2.6875)/12 -> -0.40625 | AI130: 0.172 | AJ130: -0.069875 | AP130: =IF(AND(AO130=29,$AM$4>=13,$AM$4<=17.99),AO130&"-"&"3",0) ->  | AU130: =IF(AND(AT130=29,$AR$4>=13,$AR$4<=17.99),AT130&"-"&"3",0) ->  | BQ130: =IF(AND(BP130=24,$BN$4>=69,$BN$4<=74),"Dbl."&BP130&"H",0) ->  | BV130: =IF(AND(BU130=24,$BS$4>=69,$BS$4<=74),"Dbl."&BU130&"H",0) -> 
B131: 61 | C131: 6799 | D131: 4 | AB131: Bottom Stile Reinf. | AE131: 0 | AG131: Bottom Stile Reinf. | AJ131: 0 | AP131: =IF(AND(AO131=29,$AM$4>=18,$AM$4<=23.99),AO131&"-"&"4",0) ->  | AU131: =IF(AND(AT131=29,$AR$4>=18,$AR$4<=23.99),AT131&"-"&"4",0) ->  | BQ131: =IF(AND(BP131=24,$BN$4>=75,$BN$4<=80),"Dbl."&BP131&"I",0) ->  | BV131: =IF(AND(BU131=24,$BS$4>=75,$BS$4<=80),"Dbl."&BU131&"I",0) -> 
B132: 62 | C132: 6799 | D132: 4 | AB132: Bottom Glass | AC132: =(((AC127*12)-2.1875)*((AC129*12)-2.1875))/144 -> 0.1068115234 | AD132: =$H$10 -> 2.314 | AE132: 0.2471618652 | AG132: Bottom Glass | AH132: =(((AH127*12)-2.5)*((AH129*12)-2.5))/144 -> 0.1790364583 | AI132: =$H$10 -> 2.314 | AJ132: 0.4142903646 | AP132: =IF(AND(AO132=29,$AM$4>=24,$AM$4<=29.99),AO132&"-"&"5",0) ->  | AU132: =IF(AND(AT132=29,$AR$4>=24,$AR$4<=29.99),AT132&"-"&"5",0) ->  | BP132: =IF(AND($BO$4<=26,$BO$4>24),26,0) ->  | BQ132: =IF(AND(BP132=26,$BN$4>=6,$BN$4<=11),BP132&"A",0) ->  | BU132: =IF(AND($BT$4<=26,$BT$4>24),26,0) ->  | BV132: =IF(AND(BU132=26,$BS$4>=6,$BS$4<=11),BU132&"A",0) -> 
B133: 63 | C133: 7799 | D133: 4 | AB133: Bottom Spacer | AC133: =(((AC127*12)*2)+((AC129*12)*2))/12 -> -0.578125 | AD133: 0.0536 | AE133: =AC133*AD133 -> -0.0309875 | AG133: Bottom Spacer | AH133: =(((AH127*12)*2)+((AH129*12)*2))/12 -> -0.8645833333 | AI133: 0.0536 | AJ133: =AH133*AI133 -> -0.04634166667 | AP133: =IF(AND(AO133=29,$AM$4>=30,$AM$4<=34.99),AO133&"-"&"6",0) ->  | AU133: =IF(AND(AT133=29,$AR$4>=30,$AR$4<=34.99),AT133&"-"&"6",0) ->  | BO133: =IF(AND(BP133>0,BQ133>0),BP133,0) ->  | BQ133: =IF(AND(BP133=26,$BN$4>=12,$BN$4<=17),BP133&"B",0) ->  | BT133: =IF(AND(BU133>0,BV133>0),BU133,0) ->  | BV133: =IF(AND(BU133=26,$BS$4>=12,$BS$4<=17),BU133&"B",0) -> 
B134: 64 | C134: 7799 | D134: 4 | AB134: Bottom Hardware | AC134: 1 | AD134: 0.36 | AE134: =AC134*AD134 -> 0.36 | AG134: Bottom Hardware | AH134: 1 | AI134: 0.36 | AJ134: =AH134*AI134 -> 0.36 | AP134: =IF(AND(AO134=29,$AM$4>=35,$AM$4<=37.99),AO134&"-"&"9",0) ->  | AU134: =IF(AND(AT134=29,$AR$4>=35,$AR$4<=37.99),AT134&"-"&"9",0) ->  | BQ134: =IF(AND(BP134=26,$BN$4>=18,$BN$4<=22),BP134&"C",0) ->  | BV134: =IF(AND(BU134=26,$BS$4>=18,$BS$4<=22),BU134&"C",0) -> 
B135: 65 | C135: 7899 | D135: 4 | AB135: Bottom Bead | AC135: =((((AC127*12)-1.875)*2)+(((AC129*12)-1.875)*2))/12 -> -1.203125 | AD135: 0.019 | AE135: =AC135*AD135 -> -0.022859375 | AG135: Bottom Bead | AH135: =((((AH127*12)-2.25)*2)+(((AH129*12)-2.25)*2))/12 -> -1.614583333 | AI135: 0.019 | AJ135: =AH135*AI135 -> -0.03067708333 | AP135: =IF(AND(AO135=29,$AM$4>=38,$AM$4<=40.99),AO135&"-"&"12",0) ->  | AU135: =IF(AND(AT135=29,$AR$4>=38,$AR$4<=40.99),AT135&"-"&"12",0) ->  | AV135: x | BQ135: =IF(AND(BP135=26,$BN$4>=23,$BN$4<=26),BP135&"D",0) ->  | BV135: =IF(AND(BU135=26,$BS$4>=23,$BS$4<=26),BU135&"D",0) -> 
B136: 66 | C136: 7899 | D136: 4 | AD136: Top Sash | AE136: 0 | AI136: Top Sash | AJ136: 0 | AP136: =IF(AND(AO136=29,$AM$4>=41,$AM$4<=42.99),AO136&"-"&"13",0) ->  | AU136: =IF(AND(AT136=29,$AR$4>=41,$AR$4<=42.99),AT136&"-"&"13",0) ->  | BQ136: =IF(AND(BP136=26,$BN$4>=27,$BN$4<=30),BP136&"E",0) ->  | BV136: =IF(AND(BU136=26,$BS$4>=27,$BS$4<=30),BU136&"E",0) -> 
B137: 67 | C137: 8899 | D137: 4 | AD137: Bottom Sash | AE137: =IF(ModelNo="7SH3",TRUNC(SUM(AE127:AE135)),0) -> 0 | AI137: Bottom Sash | AJ137: =IF(ModelNo="8SH3",TRUNC(SUM(AJ127:AJ135)),0) -> 0 | AP137: =IF(AND(AO137=29,$AM$4>=43,$AM$4<=44.99),AO137&"-"&"14",0) ->  | AU137: =IF(AND(AT137=29,$AR$4>=43,$AR$4<=44.99),AT137&"-"&"14",0) ->  | BQ137: =IF(AND(BP137=26,$BN$4>=31,$BN$4<=34),BP137&"F",0) ->  | BV137: =IF(AND(BU137=26,$BS$4>=31,$BS$4<=34),BU137&"F",0) -> 
B138: 68 | C138: 8899 | D138: 4 | AP138: =IF(AND(AO138=29,$AM$4>=45,$AM$4<=46.99),AO138&"-"&"15",0) ->  | AU138: =IF(AND(AT138=29,$AR$4>=45,$AR$4<=46.99),AT138&"-"&"15",0) ->  | BQ138: =IF(AND(BP138=26,$BN$4>=35,$BN$4<=38),BP138&"G",0) ->  | BV138: =IF(AND(BU138=26,$BS$4>=35,$BS$4<=38),BU138&"G",0) -> 
B139: 69 | C139: 8999 | D139: 4 | AB139: 8SPS | AC139: Length | AD139: Weight/ft | AE139: Weight | AG139: 82SP | AH139: Length | AI139: Weight/ft | AJ139: Weight | AP139: =IF(AND(AO139=29,$AM$4>=47,$AM$4<=49.99),AO139&"-"&"16",0) ->  | AU139: =IF(AND(AT139=29,$AR$4>=47,$AR$4<=49.99),AT139&"-"&"16",0) ->  | BQ139: =IF(AND(BP139=26,$BN$4>=39,$BN$4<=42),BP139&"H",0) ->  | BV139: =IF(AND(BU139=26,$BS$4>=39,$BS$4<=42),BU139&"H",0) -> 
B140: 70 | C140: 8999 | D140: 4 | AB140: Top Top Rail | AC140: 0 | AD140: 0 | AE140: =AC140*AD140 -> 0 | AG140: Top Top Rail | AH140: 0 | AI140: 0 | AJ140: =AH140*AI140 -> 0 | AP140: =IF(AND(AO140=29,$AM$4>=50,$AM$4<=52),AO140&"-"&"17",0) ->  | AU140: =IF(AND(AT140=29,$AR$4>=50,$AR$4<=52),AT140&"-"&"17",0) ->  | BQ140: =IF(AND(BP140=26,$BN$4>=43,$BN$4<=45),BP140&"I",0) ->  | BV140: =IF(AND(BU140=26,$BS$4>=43,$BS$4<=45),BU140&"I",0) -> 
B141: 71 | C141: 9999 | D141: 4 | AB141: Top Bottom Rail | AC141: 0 | AD141: 0 | AE141: =AC141*AD141 -> 0 | AG141: Top Bottom Rail | AH141: 0 | AI141: 0 | AJ141: =AH141*AI141 -> 0 | AN141: =IF(AND(AO141>0,AP141>0),AO141,0) ->  | AO141: =IF(AND($AN$4<=31,$AN$4>29),31,0) ->  | AP141: =IF(AND(AO141=31,$AM$4>=6,$AM$4<=8.99),AO141&"-"&"1",0) ->  | AS141: =IF(AND(AT141>0,AU141>0),AT141,0) ->  | AT141: =IF(AND($AS$4<=31,$AS$4>29),31,0) ->  | AU141: =IF(AND(AT141=31,$AR$4>=6,$AR$4<=8.99),AT141&"-"&"1",0) ->  | BQ141: =IF(AND(BP141=26,$BN$4>=46,$BN$4<=52),"Dbl."&BP141&"D",0) ->  | BV141: =IF(AND(BU141=26,$BS$4>=46,$BS$4<=52),"Dbl."&BU141&"D",0) -> 
B142: 72 | C142: 9999 | D142: 4 | AB142: Top Stile | AC142: 0 | AD142: 0 | AE142: =(AC142*AD142)/12 -> 0 | AG142: Top Stile | AH142: 0 | AI142: 0 | AJ142: =(AH142*AI142)/12 -> 0 | AP142: =IF(AND(AO142=31,$AM$4>=9,$AM$4<=12.99),AO142&"-"&"2",0) ->  | AU142: =IF(AND(AT142=31,$AR$4>=9,$AR$4<=12.99),AT142&"-"&"2",0) ->  | BQ142: =IF(AND(BP142=26,$BN$4>=53,$BN$4<=60),"Dbl."&BP142&"E",0) ->  | BV142: =IF(AND(BU142=26,$BS$4>=53,$BS$4<=60),"Dbl."&BU142&"E",0) -> 
AB143: Top Rail Reinf. | AC143: 0 | AD143: 0 | AE143: 0 | AG143: Top Rail Reinf. | AH143: 0 | AI143: 0 | AJ143: 0 | AP143: =IF(AND(AO143=31,$AM$4>=13,$AM$4<=17.99),AO143&"-"&"3",0) ->  | AU143: =IF(AND(AT143=31,$AR$4>=13,$AR$4<=17.99),AT143&"-"&"3",0) ->  | BQ143: =IF(AND(BP143=26,$BN$4>=61,$BN$4<=68),"Dbl."&BP143&"F",0) ->  | BV143: =IF(AND(BU143=26,$BS$4>=61,$BS$4<=68),"Dbl."&BU143&"F",0) -> 
AB144: Top Stile Reinf | AC144: 0 | AD144: 0 | AE144: 0 | AG144: Top Stile Reinf | AH144: 0 | AI144: 0 | AJ144: 0 | AP144: =IF(AND(AO144=31,$AM$4>=18,$AM$4<=23.99),AO144&"-"&"4",0) ->  | AU144: =IF(AND(AT144=31,$AR$4>=18,$AR$4<=23.99),AT144&"-"&"4",0) ->  | BQ144: =IF(AND(BP144=26,$BN$4>=69,$BN$4<=76),"Dbl."&BP144&"G",0) ->  | BV144: =IF(AND(BU144=26,$BS$4>=69,$BS$4<=76),"Dbl."&BU144&"G",0) -> 
AB145: Top Glass | AC145: 0 | AD145: 0 | AE145: 0 | AG145: Top Glass | AH145: 0 | AI145: 0 | AJ145: 0 | AP145: =IF(AND(AO145=31,$AM$4>=24,$AM$4<=29.99),AO145&"-"&"5",0) ->  | AU145: =IF(AND(AT145=31,$AR$4>=24,$AR$4<=29.99),AT145&"-"&"5",0) ->  | BQ145: =IF(AND(BP145=26,$BN$4>=77,$BN$4<=80),"Dbl."&BP145&"H",0) ->  | BV145: =IF(AND(BU145=26,$BS$4>=77,$BS$4<=80),"Dbl."&BU145&"H",0) -> 
AB146: Top Spacer | AC146: 0 | AD146: 0 | AE146: 0 | AG146: Top Spacer | AH146: 0 | AI146: 0 | AJ146: 0 | AP146: =IF(AND(AO146=31,$AM$4>=30,$AM$4<=34.99),AO146&"-"&"6",0) ->  | AU146: =IF(AND(AT146=31,$AR$4>=30,$AR$4<=34.99),AT146&"-"&"6",0) ->  | BP146: =IF(AND($BO$4<=28,$BO$4>26),28,0) ->  | BQ146: =IF(AND(BP146=28,$BN$4>=7,$BN$4<=12),BP146&"A",0) ->  | BU146: =IF(AND($BT$4<=28,$BT$4>26),28,0) ->  | BV146: =IF(AND(BU146=28,$BS$4>=7,$BS$4<=12),BU146&"A",0) -> 
AB147: Top Hardware | AC147: 0 | AD147: 0 | AE147: 0 | AG147: Top Hardware | AH147: 0 | AI147: 0 | AJ147: 0 | AP147: =IF(AND(AO147=31,$AM$4>=35,$AM$4<=37.99),AO147&"-"&"9",0) ->  | AU147: =IF(AND(AT147=31,$AR$4>=35,$AR$4<=37.99),AT147&"-"&"9",0) ->  | BQ147: =IF(AND(BP147=28,$BN$4>=13,$BN$4<=18),BP147&"B",0) ->  | BV147: =IF(AND(BU147=28,$BS$4>=13,$BS$4<=18),BU147&"B",0) -> 
AB148: Top Bead | AC148: 0 | AD148: 0 | AE148: 0 | AG148: Top Bead | AH148: 0 | AI148: 0 | AJ148: 0 | AP148: =IF(AND(AO148=31,$AM$4>=38,$AM$4<=40.99),AO148&"-"&"12",0) ->  | AU148: =IF(AND(AT148=31,$AR$4>=38,$AR$4<=40.99),AT148&"-"&"12",0) ->  | BQ148: =IF(AND(BP148=28,$BN$4>=19,$BN$4<=23),BP148&"C",0) ->  | BV148: =IF(AND(BU148=28,$BS$4>=19,$BS$4<=23),BU148&"C",0) -> 
AB149: Bottom Top Rail | AC149: =Data!D816/12 -> -0.1927083333 | AD149: 0.243 | AE149: =AC149*AD149 -> -0.046828125 | AG149: Bottom Top Rail | AH149: =Data!D800/12 -> -0.1927083333 | AI149: 0.243 | AJ149: =AH149*AI149 -> -0.046828125 | AP149: =IF(AND(AO149=31,$AM$4>=41,$AM$4<=42.99),AO149&"-"&"13",0) ->  | AU149: =IF(AND(AT149=31,$AR$4>=41,$AR$4<=42.99),AT149&"-"&"13",0) ->  | AV149: x | BQ149: =IF(AND(BP149=28,$BN$4>=24,$BN$4<=28),BP149&"D",0) ->  | BV149: =IF(AND(BU149=28,$BS$4>=24,$BS$4<=28),BU149&"D",0) -> 
AB150: Bottom Bottom Rail | AC150: =Data!D816/12 -> -0.1927083333 | AD150: 0.216 | AE150: -0.041625 | AG150: Bottom Bottom Rail | AH150: =Data!D800/12 -> -0.1927083333 | AI150: 0.216 | AJ150: -0.041625 | AP150: =IF(AND(AO150=31,$AM$4>=43,$AM$4<=44.99),AO150&"-"&"14",0) ->  | AU150: =IF(AND(AT150=31,$AR$4>=43,$AR$4<=44.99),AT150&"-"&"14",0) ->  | BQ150: =IF(AND(BP150=28,$BN$4>=29,$BN$4<=32),BP150&"E",0) ->  | BV150: =IF(AND(BU150=28,$BS$4>=29,$BS$4<=32),BU150&"E",0) -> 
AB151: Bottom Stile | AC151: =(Data!D817/12)*2 -> -0.2395833333 | AD151: 0.185 | AE151: -0.04432291667 | AG151: Bottom Stile | AH151: =(Data!D801/12)*2 -> -0.2395833333 | AI151: 0.185 | AJ151: -0.04432291667 | AP151: =IF(AND(AO151=31,$AM$4>=45,$AM$4<=47.99),AO151&"-"&"15",0) ->  | AU151: =IF(AND(AT151=31,$AR$4>=45,$AR$4<=47.99),AT151&"-"&"15",0) ->  | BQ151: =IF(AND(BP151=28,$BN$4>=33,$BN$4<=36),BP151&"F",0) ->  | BV151: =IF(AND(BU151=28,$BS$4>=33,$BS$4<=36),BU151&"F",0) -> 
AB152: Bottom Rail Reinf. | AC152: =((AC149*12)-2.6875)/12 -> -0.4166666667 | AD152: 0.172 | AE152: -0.07166666667 | AG152: Bottom Rail Reinf. | AH152: =((AH149*12)-2.6875)/12 -> -0.4166666667 | AI152: 0.172 | AJ152: -0.07166666667 | AP152: =IF(AND(AO152=31,$AM$4>=48,$AM$4<=49.99),AO152&"-"&"16",0) ->  | AU152: =IF(AND(AT152=31,$AR$4>=48,$AR$4<=49.99),AT152&"-"&"16",0) ->  | BQ152: =IF(AND(BP152=28,$BN$4>=37,$BN$4<=40),BP152&"G",0) ->  | BV152: =IF(AND(BU152=28,$BS$4>=37,$BS$4<=40),BU152&"G",0) -> 
AB153: Bottom Stile Reinf. | AE153: 0 | AG153: Bottom Stile Reinf. | AJ153: 0 | AP153: =IF(AND(AO153=31,$AM$4>=50,$AM$4<=52),AO153&"-"&"17",0) ->  | AU153: =IF(AND(AT153=31,$AR$4>=50,$AR$4<=52),AT153&"-"&"17",0) ->  | BQ153: =IF(AND(BP153=28,$BN$4>=41,$BN$4<=43),BP153&"H",0) ->  | BV153: =IF(AND(BU153=28,$BS$4>=41,$BS$4<=43),BU153&"H",0) -> 
AB154: Bottom Glass | AC154: =(((AC149*12)-2.5625)*((AC151*12)-2.5))/144 -> 0.1819661458 | AD154: =$H$10 -> 2.314 | AE154: 0.4210696615 | AG154: Bottom Glass | AH154: =(((AH149*12)-2.5625)*((AH151*12)-2.5))/144 -> 0.1819661458 | AI154: =$H$10 -> 2.314 | AJ154: 0.4210696615 | AN154: =IF(AND(AO154>0,AP154>0),AO154,0) ->  | AO154: =IF(AND($AN$4<=33,$AN$4>31),33,0) ->  | AP154: =IF(AND(AO154=33,$AM$4>=6,$AM$4<=8.99),AO154&"-"&"1",0) ->  | AT154: =IF(AND($AS$4<=33,$AS$4>31),33,0) ->  | AU154: =IF(AND(AT154=33,$AR$4>=6,$AR$4<=8.99),AT154&"-"&"1",0) ->  | BQ154: =IF(AND(BP154=28,$BN$4>=44,$BN$4<=45),BP154&"I",0) ->  | BV154: =IF(AND(BU154=28,$BS$4>=44,$BS$4<=45),BU154&"I",0) -> 
AB155: Bottom Spacer | AC155: =(((AC149*12)*2)+((AC151*12)*2))/12 -> -0.8645833333 | AD155: 0.0536 | AE155: =AC155*AD155 -> -0.04634166667 | AG155: Bottom Spacer | AH155: =(((AH149*12)*2)+((AH151*12)*2))/12 -> -0.8645833333 | AI155: 0.0536 | AJ155: =AH155*AI155 -> -0.04634166667 | AP155: =IF(AND(AO155=33,$AM$4>=9,$AM$4<=12.99),AO155&"-"&"2",0) ->  | AU155: =IF(AND(AT155=33,$AR$4>=9,$AR$4<=12.99),AT155&"-"&"2",0) ->  | BQ155: =IF(AND(BP155=28,$BN$4=46),"Dbl."&BP155&"C",0) ->  | BV155: =IF(AND(BU155=28,$BS$4=46),"Dbl."&BU155&"C",0) -> 
AB156: Bottom Hardware | AC156: 1 | AD156: 0.36 | AE156: =AC156*AD156 -> 0.36 | AG156: Bottom Hardware | AH156: 1 | AI156: 0.36 | AJ156: =AH156*AI156 -> 0.36 | AP156: =IF(AND(AO156=33,$AM$4>=13,$AM$4<=17.99),AO156&"-"&"3",0) ->  | AU156: =IF(AND(AT156=33,$AR$4>=13,$AR$4<=17.99),AT156&"-"&"3",0) ->  | BQ156: =IF(AND(BP156=28,$BN$4>=47,$BN$4<=56),"Dbl."&BP156&"D",0) ->  | BV156: =IF(AND(BU156=28,$BS$4>=47,$BS$4<=56),"Dbl."&BU156&"D",0) -> 
AB157: Bottom Bead | AC157: =((((AC149*12)-2.25)*2)+(((AC151*12)-2.25)*2))/12 -> -1.614583333 | AD157: 0.019 | AE157: =AC157*AD157 -> -0.03067708333 | AG157: Bottom Bead | AH157: =((((AH149*12)-2.25)*2)+(((AH151*12)-2.25)*2))/12 -> -1.614583333 | AI157: 0.019 | AJ157: =AH157*AI157 -> -0.03067708333 | AP157: =IF(AND(AO157=33,$AM$4>=18,$AM$4<=23.99),AO157&"-"&"4",0) ->  | AU157: =IF(AND(AT157=33,$AR$4>=18,$AR$4<=23.99),AT157&"-"&"4",0) ->  | BQ157: =IF(AND(BP157=28,$BN$4>=57,$BN$4<=64),"Dbl."&BP157&"E",0) ->  | BV157: =IF(AND(BU157=28,$BS$4>=57,$BS$4<=64),"Dbl."&BU157&"E",0) -> 
AD158: Top Sash | AE158: 0 | AI158: Top Sash | AJ158: 0 | AP158: =IF(AND(AO158=33,$AM$4>=24,$AM$4<=29.99),AO158&"-"&"5",0) ->  | AU158: =IF(AND(AT158=33,$AR$4>=24,$AR$4<=29.99),AT158&"-"&"5",0) ->  | BQ158: =IF(AND(BP158=28,$BN$4>=65,$BN$4<=72),"Dbl."&BP158&"F",0) ->  | BV158: =IF(AND(BU158=28,$BS$4>=65,$BS$4<=72),"Dbl."&BU158&"F",0) -> 
AD159: Bottom Sash | AE159: =IF(ModelNo="8SPS",TRUNC(SUM(AE149:AE157)),0) -> 0 | AI159: Bottom Sash | AJ159: =IF(ModelNo="82SP",TRUNC(SUM(AJ149:AJ157)),0) -> 0 | AP159: =IF(AND(AO159=33,$AM$4>=30,$AM$4<=34.99),AO159&"-"&"6",0) ->  | AU159: =IF(AND(AT159=33,$AR$4>=30,$AR$4<=34.99),AT159&"-"&"6",0) ->  | BQ159: =IF(AND(BP159=28,$BN$4>=73,$BN$4<=80),"Dbl."&BP159&"G",0) ->  | BV159: =IF(AND(BU159=28,$BS$4>=73,$BS$4<=80),"Dbl."&BU159&"G",0) -> 
AP160: =IF(AND(AO160=33,$AM$4>=35,$AM$4<=37.99),AO160&"-"&"9",0) ->  | AU160: =IF(AND(AT160=33,$AR$4>=35,$AR$4<=37.99),AT160&"-"&"9",0) ->  | BP160: =IF(AND($BO$4<=30,$BO$4>28),30,0) ->  | BQ160: =IF(AND(BP160=30,$BN$4>=8,$BN$4<=13),BP160&"A",0) ->  | BU160: =IF(AND($BT$4<=30,$BT$4>28),30,0) ->  | BV160: =IF(AND(BU160=30,$BS$4>=8,$BS$4<=13),BU160&"A",0) -> 
AB161: 8SPP | AC161: Length | AD161: Weight/ft | AE161: Weight | AG161: 8POS | AH161: Length | AI161: Weight/ft | AJ161: Weight | AP161: =IF(AND(AO161=33,$AM$4>=38,$AM$4<=40.99),AO161&"-"&"12",0) ->  | AU161: =IF(AND(AT161=33,$AR$4>=38,$AR$4<=40.99),AT161&"-"&"12",0) ->  | BQ161: =IF(AND(BP161=30,$BN$4>=14,$BN$4<=19),BP161&"B",0) ->  | BV161: =IF(AND(BU161=30,$BS$4>=14,$BS$4<=19),BU161&"B",0) -> 
AB162: Top Top Rail | AC162: 0 | AD162: 0 | AE162: =AC162*AD162 -> 0 | AG162: Top Top Rail | AH162: 0 | AI162: 0 | AJ162: =AH162*AI162 -> 0 | AP162: =IF(AND(AO162=33,$AM$4>=41,$AM$4<=42.99),AO162&"-"&"13",0) ->  | AU162: =IF(AND(AT162=33,$AR$4>=41,$AR$4<=42.99),AT162&"-"&"13",0) ->  | BQ162: =IF(AND(BP162=30,$BN$4>=20,$BN$4<=24),BP162&"C",0) ->  | BV162: =IF(AND(BU162=30,$BS$4>=20,$BS$4<=24),BU162&"C",0) -> 
AB163: Top Bottom Rail | AC163: 0 | AD163: 0 | AE163: =AC163*AD163 -> 0 | AG163: Top Bottom Rail | AH163: 0 | AI163: 0 | AJ163: =AH163*AI163 -> 0 | AP163: =IF(AND(AO163=33,$AM$4>=43,$AM$4<=44.99),AO163&"-"&"14",0) ->  | AU163: =IF(AND(AT163=33,$AR$4>=43,$AR$4<=44.99),AT163&"-"&"14",0) ->  | AV163: x | BQ163: =IF(AND(BP163=30,$BN$4>=25,$BN$4<=29),BP163&"D",0) ->  | BV163: =IF(AND(BU163=30,$BS$4>=25,$BS$4<=29),BU163&"D",0) -> 
AB164: Top Stile | AC164: 0 | AD164: 0 | AE164: =(AC164*AD164)/12 -> 0 | AG164: Top Stile | AH164: 0 | AI164: 0 | AJ164: =(AH164*AI164)/12 -> 0 | AP164: =IF(AND(AO164=33,$AM$4>=45,$AM$4<=47.99),AO164&"-"&"15",0) ->  | AU164: =IF(AND(AT164=33,$AR$4>=45,$AR$4<=47.99),AT164&"-"&"15",0) ->  | BQ164: =IF(AND(BP164=30,$BN$4>=30,$BN$4<=33),BP164&"E",0) ->  | BV164: =IF(AND(BU164=30,$BS$4>=30,$BS$4<=33),BU164&"E",0) -> 
AB165: Top Rail Reinf. | AC165: 0 | AD165: 0 | AE165: 0 | AG165: Top Rail Reinf. | AH165: 0 | AI165: 0 | AJ165: 0 | AP165: =IF(AND(AO165=33,$AM$4>=48,$AM$4<=49.99),AO165&"-"&"16",0) ->  | AU165: =IF(AND(AT165=33,$AR$4>=48,$AR$4<=49.99),AT165&"-"&"16",0) ->  | BQ165: =IF(AND(BP165=30,$BN$4>=34,$BN$4<=37),BP165&"F",0) ->  | BV165: =IF(AND(BU165=30,$BS$4>=34,$BS$4<=37),BU165&"F",0) -> 
AB166: Top Stile Reinf | AC166: 0 | AD166: 0 | AE166: 0 | AG166: Top Stile Reinf | AH166: 0 | AI166: 0 | AJ166: 0 | AP166: =IF(AND(AO166=33,$AM$4>=50,$AM$4<=52),AO166&"-"&"17",0) ->  | AU166: =IF(AND(AT166=33,$AR$4>=50,$AR$4<=52),AT166&"-"&"17",0) ->  | BQ166: =IF(AND(BP166=30,$BN$4>=38,$BN$4<=40),BP166&"G",0) ->  | BV166: =IF(AND(BU166=30,$BS$4>=38,$BS$4<=40),BU166&"G",0) -> 
AB167: Top Glass | AC167: 0 | AD167: 0 | AE167: 0 | AG167: Top Glass | AH167: 0 | AI167: 0 | AJ167: 0 | AN167: =IF(AND(AO167>0,AP167>0),AO167,0) ->  | AO167: =IF(AND($AN$4<=35,$AN$4>33),35,0) ->  | AP167: =IF(AND(AO167=35,$AM$4>=8,$AM$4<=11.99),AO167&"-"&"1",0) ->  | AT167: =IF(AND($AS$4<=35,$AS$4>33),35,0) ->  | AU167: =IF(AND(AT167=35,$AR$4>=8,$AR$4<=11.99),AT167&"-"&"1",0) ->  | BQ167: =IF(AND(BP167=30,$BN$4>=41,$BN$4<=43),BP167&"H",0) ->  | BV167: =IF(AND(BU167=30,$BS$4>=41,$BS$4<=43),BU167&"H",0) -> 
AB168: Top Spacer | AC168: 0 | AD168: 0 | AE168: 0 | AG168: Top Spacer | AH168: 0 | AI168: 0 | AJ168: 0 | AP168: =IF(AND(AO168=35,$AM$4>=12,$AM$4<=16.99),AO168&"-"&"2",0) ->  | AU168: =IF(AND(AT168=35,$AR$4>=12,$AR$4<=16.99),AT168&"-"&"2",0) ->  | BQ168: =IF(AND(BP168=30,$BN$4>=44,$BN$4<=45),BP168&"I",0) ->  | BV168: =IF(AND(BU168=30,$BS$4>=44,$BS$4<=45),BU168&"I",0) -> 
AB169: Top Hardware | AC169: 0 | AD169: 0 | AE169: 0 | AG169: Top Hardware | AH169: 0 | AI169: 0 | AJ169: 0 | AP169: =IF(AND(AO169=35,$AM$4>=17,$AM$4<=22.99),AO169&"-"&"3",0) ->  | AU169: =IF(AND(AT169=35,$AR$4>=17,$AR$4<=22.99),AT169&"-"&"3",0) ->  | BQ169: =IF(AND(BP169=30,$BN$4>=46,$BN$4<=48),"Dbl."&BP169&"C",0) ->  | BV169: =IF(AND(BU169=30,$BS$4>=46,$BS$4<=48),"Dbl."&BU169&"C",0) -> 
AB170: Top Bead | AC170: 0 | AD170: 0 | AE170: 0 | AG170: Top Bead | AH170: 0 | AI170: 0 | AJ170: 0 | AP170: =IF(AND(AO170=35,$AM$4>=23,$AM$4<=28.99),AO170&"-"&"4",0) ->  | AU170: =IF(AND(AT170=35,$AR$4>=23,$AR$4<=28.99),AT170&"-"&"4",0) ->  | BQ170: =IF(AND(BP170=30,$BN$4>=49,$BN$4<=58),"Dbl."&BP170&"D",0) ->  | BV170: =IF(AND(BU170=30,$BS$4>=49,$BS$4<=58),"Dbl."&BU170&"D",0) -> 
AB171: Bottom Top Rail | AC171: =Data!D832/12 -> -0.1927083333 | AD171: 0.243 | AE171: =AC171*AD171 -> -0.046828125 | AG171: Bottom Top Rail | AH171: =Data!D850/12 -> -0.2291666667 | AI171: 0.243 | AJ171: =AH171*AI171 -> -0.0556875 | AP171: =IF(AND(AO171=35,$AM$4>=29,$AM$4<=33.99),AO171&"-"&"5",0) ->  | AU171: =IF(AND(AT171=35,$AR$4>=29,$AR$4<=33.99),AT171&"-"&"5",0) ->  | BQ171: =IF(AND(BP171=30,$BN$4>=59,$BN$4<=66),"Dbl."&BP171&"E",0) ->  | BV171: =IF(AND(BU171=30,$BS$4>=59,$BS$4<=66),"Dbl."&BU171&"E",0) -> 
AB172: Bottom Bottom Rail | AC172: =Data!D832/12 -> -0.1927083333 | AD172: 0.216 | AE172: -0.041625 | AG172: Bottom Bottom Rail | AH172: =Data!D851/12 -> -0.1041666667 | AI172: 0.216 | AJ172: -0.0225 | AP172: =IF(AND(AO172=35,$AM$4>=34,$AM$4<=37.99),AO172&"-"&"6",0) ->  | AU172: =IF(AND(AT172=35,$AR$4>=34,$AR$4<=37.99),AT172&"-"&"6",0) ->  | BQ172: =IF(AND(BP172=30,$BN$4>=67,$BN$4<=74),"Dbl."&BP172&"F",0) ->  | BV172: =IF(AND(BU172=30,$BS$4>=67,$BS$4<=74),"Dbl."&BU172&"F",0) -> 
AB173: Bottom Stile | AC173: =(Data!D833/12)*2 -> -0.2083333333 | AD173: 0.185 | AE173: -0.03854166667 | AG173: Bottom Stile | AH173: =(Data!D851/12)*2 -> -0.2083333333 | AI173: 0.185 | AJ173: -0.03854166667 | AP173: =IF(AND(AO173=35,$AM$4>=38,$AM$4<=39.99),AO173&"-"&"9",0) ->  | AU173: =IF(AND(AT173=35,$AR$4>=38,$AR$4<=39.99),AT173&"-"&"9",0) ->  | BQ173: =IF(AND(BP173=30,$BN$4>=75,$BN$4<=80),"Dbl."&BP173&"G",0) ->  | BV173: =IF(AND(BU173=30,$BS$4>=75,$BS$4<=80),"Dbl."&BU173&"G",0) -> 
AB174: Bottom Rail Reinf. | AC174: =((AC171*12)-2.6875)/12 -> -0.4166666667 | AD174: 0.172 | AE174: -0.07166666667 | AG174: Bottom Rail Reinf. | AH174: =((AH171*12)-2.6875)/12 -> -0.453125 | AI174: 0.172 | AJ174: -0.0779375 | AP174: =IF(AND(AO174=35,$AM$4>=40,$AM$4<=42.99),AO174&"-"&"12",0) ->  | AU174: =IF(AND(AT174=35,$AR$4>=40,$AR$4<=42.99),AT174&"-"&"12",0) ->  | BP174: =IF(AND($BO$4<=32,$BO$4>30),32,0) ->  | BQ174: =IF(AND(BP174=32,$BN$4>=8,$BN$4<=14),BP174&"A",0) ->  | BU174: =IF(AND($BT$4<=32,$BT$4>30),32,0) ->  | BV174: =IF(AND(BU174=32,$BS$4>=8,$BS$4<=14),BU174&"A",0) -> 
AB175: Bottom Stile Reinf. | AE175: 0 | AG175: Bottom Stile Reinf. | AJ175: 0 | AP175: =IF(AND(AO175=35,$AM$4>=43,$AM$4<=44.99),AO175&"-"&"13",0) ->  | AU175: =IF(AND(AT175=35,$AR$4>=43,$AR$4<=44.99),AT175&"-"&"13",0) ->  | AV175: x | BQ175: =IF(AND(BP175=32,$BN$4>=15,$BN$4<=20),BP175&"B",0) ->  | BV175: =IF(AND(BU175=32,$BS$4>=15,$BS$4<=20),BU175&"B",0) -> 
AB176: Bottom Glass | AC176: =(((AC171*12)-2.5625)*((AC173*12)-2.5))/144 -> 0.1692708333 | AD176: =$H$10 -> 2.314 | AE176: 0.3916927083 | AG176: Bottom Glass | AH176: =(((AH171*12)-2.5625)*((AH173*12)-2.5))/144 -> 0.1844618056 | AI176: =$H$10 -> 2.314 | AJ176: 0.4268446181 | AP176: =IF(AND(AO176=35,$AM$4>=45,$AM$4<=47.99),AO176&"-"&"14",0) ->  | AU176: =IF(AND(AT176=35,$AR$4>=45,$AR$4<=47.99),AT176&"-"&"14",0) ->  | BQ176: =IF(AND(BP176=32,$BN$4>=21,$BN$4<=25),BP176&"C",0) ->  | BV176: =IF(AND(BU176=32,$BS$4>=21,$BS$4<=25),BU176&"C",0) -> 
AB177: Bottom Spacer | AC177: =(((AC171*12)*2)+((AC173*12)*2))/12 -> -0.8020833333 | AD177: 0.0536 | AE177: =AC177*AD177 -> -0.04299166667 | AG177: Bottom Spacer | AH177: =(((AH171*12)*2)+((AH173*12)*2))/12 -> -0.875 | AI177: 0.0536 | AJ177: =AH177*AI177 -> -0.0469 | AP177: =IF(AND(AO177=35,$AM$4>=48,$AM$4<=50.99),AO177&"-"&"15",0) ->  | AU177: =IF(AND(AT177=35,$AR$4>=48,$AR$4<=50.99),AT177&"-"&"15",0) ->  | BQ177: =IF(AND(BP177=32,$BN$4>=26,$BN$4<=30),BP177&"D",0) ->  | BV177: =IF(AND(BU177=32,$BS$4>=26,$BS$4<=30),BU177&"D",0) -> 
AB178: Bottom Hardware | AC178: 1 | AD178: 0.36 | AE178: =AC178*AD178 -> 0.36 | AG178: Bottom Hardware | AH178: 1 | AI178: 0.36 | AJ178: =AH178*AI178 -> 0.36 | AP178: =IF(AND(AO178=35,$AM$4>=51,$AM$4<=53),AO178&"-"&"16",0) ->  | AU178: =IF(AND(AT178=35,$AR$4>=51,$AR$4<=53),AT178&"-"&"16",0) ->  | BQ178: =IF(AND(BP178=32,$BN$4>=31,$BN$4<=34),BP178&"E",0) ->  | BV178: =IF(AND(BU178=32,$BS$4>=31,$BS$4<=34),BU178&"E",0) -> 
AB179: Bottom Bead | AC179: =((((AC171*12)-2.25)*2)+(((AC173*12)-2.25)*2))/12 -> -1.552083333 | AD179: 0.019 | AE179: =AC179*AD179 -> -0.02948958333 | AG179: Bottom Bead | AH179: =((((AH171*12)-2.25)*2)+(((AH173*12)-2.25)*2))/12 -> -1.625 | AI179: 0.019 | AJ179: =AH179*AI179 -> -0.030875 | AN179: =IF(AND(AO179>0,AP179>0),AO179,0) ->  | AO179: =IF(AND($AN$4<=37,$AN$4>35),37,0) ->  | AP179: =IF(AND(AO179=37,$AM$4>=8,$AM$4<=11.99),AO179&"-"&"1",0) ->  | AT179: =IF(AND($AS$4<=37,$AS$4>35),37,0) ->  | AU179: =IF(AND(AT179=37,$AR$4>=8,$AR$4<=11.99),AT179&"-"&"1",0) ->  | BQ179: =IF(AND(BP179=32,$BN$4>=35,$BN$4<=37),BP179&"F",0) ->  | BV179: =IF(AND(BU179=32,$BS$4>=35,$BS$4<=37),BU179&"F",0) -> 
AD180: Top Sash | AE180: 0 | AI180: Top Sash | AJ180: 0 | AP180: =IF(AND(AO180=37,$AM$4>=12,$AM$4<=16.99),AO180&"-"&"2",0) ->  | AU180: =IF(AND(AT180=37,$AR$4>=12,$AR$4<=16.99),AT180&"-"&"2",0) ->  | BQ180: =IF(AND(BP180=32,$BN$4>=38,$BN$4<=40),BP180&"G",0) ->  | BV180: =IF(AND(BU180=32,$BS$4>=38,$BS$4<=40),BU180&"G",0) -> 
AD181: Bottom Sash | AE181: =IF(ModelNo="8SPP",TRUNC(SUM(AE171:AE179)),0) -> 0 | AI181: Bottom Sash | AJ181: =IF(ModelNo="8POS",TRUNC(SUM(AJ171:AJ179)),0) -> 0 | AP181: =IF(AND(AO181=37,$AM$4>=17,$AM$4<=22.99),AO181&"-"&"3",0) ->  | AU181: =IF(AND(AT181=37,$AR$4>=17,$AR$4<=22.99),AT181&"-"&"3",0) ->  | BQ181: =IF(AND(BP181=32,$BN$4>=41,$BN$4<=43),BP181&"H",0) ->  | BV181: =IF(AND(BU181=32,$BS$4>=41,$BS$4<=43),BU181&"H",0) -> 
AP182: =IF(AND(AO182=37,$AM$4>=23,$AM$4<=28.99),AO182&"-"&"4",0) ->  | AU182: =IF(AND(AT182=37,$AR$4>=23,$AR$4<=28.99),AT182&"-"&"4",0) ->  | BQ182: =IF(AND(BP182=32,$BN$4>=44,$BN$4<=45),BP182&"I",0) ->  | BV182: =IF(AND(BU182=32,$BS$4>=44,$BS$4<=45),BU182&"I",0) -> 
AB183: 8PS3 | AC183: Length | AD183: Weight/ft | AE183: Weight | AG183: 8SOP | AH183: Length | AI183: Weight/ft | AJ183: Weight | AP183: =IF(AND(AO183=37,$AM$4>=29,$AM$4<=33.99),AO183&"-"&"5",0) ->  | AU183: =IF(AND(AT183=37,$AR$4>=29,$AR$4<=33.99),AT183&"-"&"5",0) ->  | BQ183: =IF(AND(BP183=32,$BN$4>=46,$BN$4<=50),"Dbl."&BP183&"C",0) ->  | BV183: =IF(AND(BU183=32,$BS$4>=46,$BS$4<=50),"Dbl."&BU183&"C",0) -> 
AB184: Right Top Rail | AC184: =Data!D883/12 -> -0.1927083333 | AD184: 0.243 | AE184: =AC184*AD184 -> -0.046828125 | AG184: Top Top Rail | AH184: 0 | AI184: 0 | AJ184: =AH184*AI184 -> 0 | AP184: =IF(AND(AO184=37,$AM$4>=34,$AM$4<=37.99),AO184&"-"&"6",0) ->  | AU184: =IF(AND(AT184=37,$AR$4>=34,$AR$4<=37.99),AT184&"-"&"6",0) ->  | BQ184: =IF(AND(BP184=32,$BN$4>=51,$BN$4<=60),"Dbl."&BP184&"D",0) ->  | BV184: =IF(AND(BU184=32,$BS$4>=51,$BS$4<=60),"Dbl."&BU184&"D",0) -> 
AB185: Right Bottom Rail | AC185: =Data!D883/12 -> -0.1927083333 | AD185: 0.216 | AE185: =AC185*AD185 -> -0.041625 | AG185: Top Bottom Rail | AH185: 0 | AI185: 0 | AJ185: =AH185*AI185 -> 0 | AP185: =IF(AND(AO185=37,$AM$4>=38,$AM$4<=39.99),AO185&"-"&"9",0) ->  | AU185: =IF(AND(AT185=37,$AR$4>=38,$AR$4<=39.99),AT185&"-"&"9",0) ->  | BQ185: =IF(AND(BP185=32,$BN$4>=61,$BN$4<=68),"Dbl."&BP185&"E",0) ->  | BV185: =IF(AND(BU185=32,$BS$4>=61,$BS$4<=68),"Dbl."&BU185&"E",0) -> 
AB186: Right Stile | AC186: =(Data!D884/12)*2 -> -0.2083333333 | AD186: 0.185 | AE186: =AC186*AD186 -> -0.03854166667 | AG186: Top Stile | AH186: 0 | AI186: 0 | AJ186: =(AH186*AI186)/12 -> 0 | AP186: =IF(AND(AO186=37,$AM$4>=40,$AM$4<=42.99),AO186&"-"&"12",0) ->  | AU186: =IF(AND(AT186=37,$AR$4>=40,$AR$4<=42.99),AT186&"-"&"12",0) ->  | BQ186: =IF(AND(BP186=32,$BN$4>=69,$BN$4<=74),"Dbl."&BP186&"F",0) ->  | BV186: =IF(AND(BU186=32,$BS$4>=69,$BS$4<=74),"Dbl."&BU186&"F",0) -> 
AB187: Right Rail Reinf. | AC187: =((AC184*12)-2.6875)/12 -> -0.4166666667 | AD187: 0.172 | AE187: =AC187*AD187 -> -0.07166666667 | AG187: Top Rail Reinf. | AH187: 0 | AI187: 0 | AJ187: 0 | AP187: =IF(AND(AO187=37,$AM$4>=43,$AM$4<=44.99),AO187&"-"&"13",0) ->  | AU187: =IF(AND(AT187=37,$AR$4>=43,$AR$4<=44.99),AT187&"-"&"13",0) ->  | AV187: x | BQ187: =IF(AND(BP187=32,$BN$4>=75,$BN$4<=80),"Dbl."&BP187&"G",0) ->  | BV187: =IF(AND(BU187=32,$BS$4>=75,$BS$4<=80),"Dbl."&BU187&"G",0) -> 
AB188: Right Stile Reinf | AG188: Top Stile Reinf | AH188: 0 | AI188: 0 | AJ188: 0 | AP188: =IF(AND(AO188=37,$AM$4>=45,$AM$4<=47.99),AO188&"-"&"14",0) ->  | AU188: =IF(AND(AT188=37,$AR$4>=45,$AR$4<=47.99),AT188&"-"&"14",0) ->  | BP188: =IF(AND($BO$4<=34,$BO$4>32),34,0) ->  | BQ188: =IF(AND(BP188=34,$BN$4>=11,$BN$4<=16),BP188&"A",0) ->  | BU188: =IF(AND($BT$4<=34,$BT$4>32),34,0) ->  | BV188: =IF(AND(BU188=34,$BS$4>=11,$BS$4<=16),BU188&"A",0) -> 
AB189: Right Glass | AC189: =(((AC184*12)-2.5625)*((AC186*12)-2.5625))/144 -> 0.1713867188 | AD189: =$H$10 -> 2.314 | AE189: =AC189*AD189 -> 0.3965888672 | AG189: Top Glass | AH189: 0 | AI189: 0 | AJ189: 0 | AP189: =IF(AND(AO189=37,$AM$4>=48,$AM$4<=50.99),AO189&"-"&"15",0) ->  | AU189: =IF(AND(AT189=37,$AR$4>=48,$AR$4<=50.99),AT189&"-"&"15",0) ->  | BQ189: =IF(AND(BP189=34,$BN$4>=17,$BN$4<=22),BP189&"B",0) ->  | BV189: =IF(AND(BU189=34,$BS$4>=17,$BS$4<=22),BU189&"B",0) -> 
AB190: Right Spacer | AC190: =(((AC184*12)*2)+((AC186*12)*2))/12 -> -0.8020833333 | AD190: 0.0536 | AE190: =AC190*AD190 -> -0.04299166667 | AG190: Top Spacer | AH190: 0 | AI190: 0 | AJ190: 0 | AP190: =IF(AND(AO190=37,$AM$4>=51,$AM$4<=53),AO190&"-"&"16",0) ->  | AU190: =IF(AND(AT190=37,$AR$4>=51,$AR$4<=53),AT190&"-"&"16",0) ->  | BQ190: =IF(AND(BP190=34,$BN$4>=23,$BN$4<=27),BP190&"C",0) ->  | BV190: =IF(AND(BU190=34,$BS$4>=23,$BS$4<=27),BU190&"C",0) -> 
AB191: Right Hardware | AC191: 1 | AD191: 0.36 | AE191: =AC191*AD191 -> 0.36 | AG191: Top Hardware | AH191: 0 | AI191: 0 | AJ191: 0 | AN191: =IF(AND(AO191>0,AP191>0),AO191,0) ->  | AO191: =IF(AND($AN$4<=39,$AN$4>37),39,0) ->  | AP191: =IF(AND(AO191=39,$AM$4>=8,$AM$4<=11.99),AO191&"-"&"1",0) ->  | AT191: =IF(AND($AS$4<=39,$AS$4>37),39,0) ->  | AU191: =IF(AND(AT191=39,$AR$4>=8,$AR$4<=11.99),AT191&"-"&"1",0) ->  | BQ191: =IF(AND(BP191=34,$BN$4>=28,$BN$4<=32),BP191&"D",0) ->  | BV191: =IF(AND(BU191=34,$BS$4>=28,$BS$4<=32),BU191&"D",0) -> 
AB192: Right Bead | AC192: =((((AC184*12)-2.25)*2)+(((AC186*12)-2.25)*2))/12 -> -1.552083333 | AD192: 0.019 | AE192: =AC192*AD192 -> -0.02948958333 | AG192: Top Bead | AH192: 0 | AI192: 0 | AJ192: 0 | AP192: =IF(AND(AO192=39,$AM$4>=12,$AM$4<=16.99),AO192&"-"&"2",0) ->  | AU192: =IF(AND(AT192=39,$AR$4>=12,$AR$4<=16.99),AT192&"-"&"2",0) ->  | BQ192: =IF(AND(BP192=34,$BN$4>=33,$BN$4<=34),BP192&"E",0) ->  | BV192: =IF(AND(BU192=34,$BS$4>=33,$BS$4<=34),BU192&"E",0) -> 
AB193: Left Top Rail | AC193: =Data!D882/12 -> -0.1927083333 | AD193: 0.243 | AE193: =AC193*AD193 -> -0.046828125 | AG193: Bottom Top Rail | AH193: =Data!D866/12 -> -0.2291666667 | AI193: 0.243 | AJ193: =AH193*AI193 -> -0.0556875 | AP193: =IF(AND(AO193=39,$AM$4>=17,$AM$4<=22.99),AO193&"-"&"3",0) ->  | AU193: =IF(AND(AT193=39,$AR$4>=17,$AR$4<=22.99),AT193&"-"&"3",0) ->  | BQ193: =IF(AND(BP193=34,$BN$4>=35,$BN$4<=37),BP193&"F",0) ->  | BV193: =IF(AND(BU193=34,$BS$4>=35,$BS$4<=37),BU193&"F",0) -> 
AB194: Left Bottom Rail | AC194: =Data!D882/12 -> -0.1927083333 | AD194: 0.216 | AE194: -0.041625 | AG194: Bottom Bottom Rail | AH194: =Data!D866/12 -> -0.2291666667 | AI194: 0.216 | AJ194: -0.0495 | AP194: =IF(AND(AO194=39,$AM$4>=23,$AM$4<=28.99),AO194&"-"&"4",0) ->  | AU194: =IF(AND(AT194=39,$AR$4>=23,$AR$4<=28.99),AT194&"-"&"4",0) ->  | BQ194: =IF(AND(BP194=34,$BN$4>=38,$BN$4<=40),BP194&"G",0) ->  | BV194: =IF(AND(BU194=34,$BS$4>=38,$BS$4<=40),BU194&"G",0) -> 
AB195: Left Stile | AC195: =(Data!D884/12)*2 -> -0.2083333333 | AD195: 0.185 | AE195: -0.03854166667 | AG195: Bottom Stile | AH195: =(Data!D867/12)*2 -> -0.2083333333 | AI195: 0.185 | AJ195: -0.03854166667 | AP195: =IF(AND(AO195=39,$AM$4>=29,$AM$4<=33.99),AO195&"-"&"5",0) ->  | AU195: =IF(AND(AT195=39,$AR$4>=29,$AR$4<=33.99),AT195&"-"&"5",0) ->  | BQ195: =IF(AND(BP195=34,$BN$4>=41,$BN$4<=43),BP195&"H",0) ->  | BV195: =IF(AND(BU195=34,$BS$4>=41,$BS$4<=43),BU195&"H",0) -> 
AB196: Left Rail Reinf. | AC196: =((AC193*12)-2.6875)/12 -> -0.4166666667 | AD196: 0.172 | AE196: -0.07166666667 | AG196: Bottom Rail Reinf. | AH196: =((AH193*12)-2.6875)/12 -> -0.453125 | AI196: 0.172 | AJ196: -0.0779375 | AP196: =IF(AND(AO196=39,$AM$4>=34,$AM$4<=37.99),AO196&"-"&"6",0) ->  | AU196: =IF(AND(AT196=39,$AR$4>=34,$AR$4<=37.99),AT196&"-"&"6",0) ->  | BQ196: =IF(AND(BP196=34,$BN$4>=44,$BN$4<=45),BP196&"I",0) ->  | BV196: =IF(AND(BU196=34,$BS$4>=44,$BS$4<=45),BU196&"I",0) -> 
AB197: Left Stile Reinf. | AG197: Bottom Stile Reinf. | AJ197: 0 | AP197: =IF(AND(AO197=39,$AM$4>=38,$AM$4<=39.99),AO197&"-"&"9",0) ->  | AU197: =IF(AND(AT197=39,$AR$4>=38,$AR$4<=39.99),AT197&"-"&"9",0) ->  | BO197: =IF(AND(BP197>0,BQ197>0),BP197,0) ->  | BQ197: =IF(AND(BP197=34,$BN$4>=46,$BN$4<=54),"Dbl."&BP197&"C",0) ->  | BT197: =IF(AND(BU197>0,BV197>0),BU197,0) ->  | BV197: =IF(AND(BU197=34,$BS$4>=46,$BS$4<=54),"Dbl."&BU197&"C",0) -> 
AB198: Left Glass | AC198: =(((AC193*12)-2.5625)*((AC195*12)-2.5625))/144 -> 0.1713867188 | AD198: =$H$10 -> 2.314 | AE198: 0.3965888672 | AG198: Bottom Glass | AH198: =(((AH193*12)-2.5625)*((AH195*12)-2.5))/144 -> 0.1844618056 | AI198: =$H$10 -> 2.314 | AJ198: 0.4268446181 | AP198: =IF(AND(AO198=39,$AM$4>=40,$AM$4<=42.99),AO198&"-"&"12",0) ->  | AU198: =IF(AND(AT198=39,$AR$4>=40,$AR$4<=42.99),AT198&"-"&"12",0) ->  | AV198: x | BQ198: =IF(AND(BP198=34,$BN$4>=55,$BN$4<=64),"Dbl."&BP198&"D",0) ->  | BV198: =IF(AND(BU198=34,$BS$4>=55,$BS$4<=64),"Dbl."&BU198&"D",0) -> 
AB199: Left Spacer | AC199: =(((AC193*12)*2)+((AC195*12)*2))/12 -> -0.8020833333 | AD199: 0.0536 | AE199: =AC199*AD199 -> -0.04299166667 | AG199: Bottom Spacer | AH199: =(((AH193*12)*2)+((AH195*12)*2))/12 -> -0.875 | AI199: 0.0536 | AJ199: =AH199*AI199 -> -0.0469 | AP199: =IF(AND(AO199=39,$AM$4>=43,$AM$4<=44.99),AO199&"-"&"13",0) ->  | AU199: =IF(AND(AT199=39,$AR$4>=43,$AR$4<=44.99),AT199&"-"&"13",0) ->  | BQ199: =IF(AND(BP199=34,$BN$4>=65,$BN$4<=68),"Dbl."&BP199&"E",0) ->  | BV199: =IF(AND(BU199=34,$BS$4>=65,$BS$4<=68),"Dbl."&BU199&"E",0) -> 
AB200: Left Hardware | AC200: 1 | AD200: 0.36 | AE200: =AC200*AD200 -> 0.36 | AG200: Bottom Hardware | AH200: 1 | AI200: 0.36 | AJ200: =AH200*AI200 -> 0.36 | AP200: =IF(AND(AO200=39,$AM$4>=45,$AM$4<=47.99),AO200&"-"&"14",0) ->  | AU200: =IF(AND(AT200=39,$AR$4>=45,$AR$4<=47.99),AT200&"-"&"14",0) ->  | BQ200: =IF(AND(BP200=34,$BN$4>=69,$BN$4<=74),"Dbl."&BP200&"F",0) ->  | BV200: =IF(AND(BU200=34,$BS$4>=69,$BS$4<=74),"Dbl."&BU200&"F",0) -> 
... 35 more rows

Sheet CMR (hidden)
C2: W | E2: A201 | J2: W | L2: A140, A144, A146 | O2: Frame Cut Leg | P2: =LEG+6 -> 6 | R2: W | T2: 3A01
C3: =IF(TYPE=1,C2,IF(TYPE= "",C2," ")) -> W | D3: 1 | E3: =Frame_Height/2 -> 0 | F3: =TRUNC(E3*16+0.5)/16 -> 0 | J3: =IF(TYPE=1,$J2,IF(TYPE= "",$J2," ")) -> W | K3: 1 | L3: =Frame_Height/2-CMRD -> 6 | M3: =TRUNC(L3*16+0.5)/16 -> 6 | O3: CMRD | P3: =Frame_Height-P2 -> -6 | R3: =IF(TYPE=1,R2,IF(TYPE= "",R2," ")) -> W | S3: 1 | T3: =Frame_Height/2 -> 0 | U3: =TRUNC(T3*16+0.5)/16 -> 0 | AA3: Model | AB3: TSW | AC3: TSH | AD3: TGW | AE3: TGH | AF3: TGSF | AG3: BSW | AH3: BSH | AI3: BGW | AJ3: BGH | AK3: BGSF
C4: =IF(TYPE=5,C2,IF(TYPE=2,IF(Frame_Height>=54.5,IF(Frame_Height<72.5,C2,""),""),"")) ->  | D4: 2 | E4: =INT((Frame_Height/5)*48+0.5)/16 -> 0 | F4: 0 | G4: 5 | J4: =IF(TYPE=5,$J2,IF(TYPE=2,IF(Frame_Height>=54.5,IF(Frame_Height<72.5,$J2,""),""),"")) ->  | K4: 2 | L4: =INT((Frame_Height/5)*48+0.5)/16-CMRD -> 6 | M4: 6 | N4: 5 | O4: Sash Cut back | R4: =IF(TYPE=5,R2,IF(TYPE=2,IF(Frame_Height>=54.5,IF(Frame_Height<72.5,R2,""),""),"")) ->  | S4: 2 | T4: =INT((Frame_Height/5)*48+0.5)/16 -> 0 | U4: 0 | V4: 5 | AA4: A201 | AB4: =Data!D2 -> -3.25 | AC4: =Data!D3 -> -1.5625 | AD4: =Data!D6 -> -4.875 | AE4: =Data!D7 -> -3.1875 | AF4: =(AD4*AE4)/144 -> 0.1079101562 | AG4: =Data!D4 -> -2.25 | AH4: =Data!D5 -> -0.5625 | AI4: =Data!D8 -> -3.875 | AJ4: =Data!D9 -> -2.1875 | AK4: =(AI4*AJ4)/144 -> 0.05886501736
C5: =IF(TYPE=6,C2,IF(AND(TYPE=2,OR(Frame_Height<54.5,Frame_Height>=72.5)),C2,"")) ->  | E5: =INT((Frame_Height/3-0.22)*32+0.5)/16 -> -0.4375 | F5: -0.375 | G5: 6 | J5: =IF(TYPE=6,$J2,IF(AND(TYPE=2,OR(Frame_Height<54.5,Frame_Height>=72.5)),$J2,"")) ->  | L5: =INT((Frame_Height/3-0.22)*32+0.5)/16-CMRD -> 5.5625 | M5: 5.5625 | N5: 6 | R5: =IF(TYPE=6,R2,IF(AND(TYPE=2,OR(Frame_Height<54.5,Frame_Height>=72.5)),R2,"")) ->  | T5: =INT((Frame_Height/3-0.22)*32+0.5)/16 -> -0.4375 | U5: -0.375 | V5: 6 | AA5: A571 | AG5: =Data!D156 -> -2.125 | AH5: =Data!D157 -> -0.875 | AI5: =Data!D158 -> -4.3125 | AJ5: =Data!D159 -> -3.0625 | AK5: 0.09171549479
C6: =IF(TYPE=7,C2,IF(TYPE=3,IF(Frame_Height>=54.5,IF(Frame_Height<72.5,C2,""),""),"")) ->  | D6: 3 | E6: =INT((Frame_Height/5+0.55)*32+0.5)/16 -> 1.125 | F6: 1.125 | G6: 7 | J6: =IF(TYPE=7,$J2,IF(TYPE=3,IF(Frame_Height>=54.5,IF(Frame_Height<72.5,$J2,""),""),"")) ->  | K6: 3 | L6: =INT((Frame_Height/5+0.55)*32+0.5)/16-CMRD -> 7.125 | M6: 7.125 | N6: 7 | R6: =IF(TYPE=7,R2,IF(TYPE=3,IF(Frame_Height>=54.5,IF(Frame_Height<72.5,R2,""),""),"")) ->  | S6: 3 | T6: =INT((Frame_Height/5+0.55)*32+0.5)/16 -> 1.125 | U6: 1.125 | V6: 7 | AA6: A581 | AG6: =Data!D174 -> -2.8125 | AH6: =Data!D175 -> -1.5 | AI6: =Data!D176 -> -5.375 | AJ6: =Data!D177 -> -4.0625 | AK6: 0.1516384549
C7: =IF(TYPE=8,C2,IF(AND(TYPE=3,OR(Frame_Height<54.5,Frame_Height>=72.5)),C2,"")) ->  | E7: =INT((Frame_Height/3+1.4)*16+0.5)/16 -> 1.375 | F7: 1.375 | G7: 8 | J7: =IF(TYPE=8,$J2,IF(AND(TYPE=3,OR(Frame_Height<54.5,Frame_Height>=72.5)),$J2,"")) ->  | L7: =INT((Frame_Height/3+1.4)*16+0.5)/16-CMRD -> 7.375 | M7: 7.375 | N7: 8 | R7: =IF(TYPE=8,R2,IF(AND(TYPE=3,OR(Frame_Height<54.5,Frame_Height>=72.5)),R2,"")) ->  | T7: =INT((Frame_Height/3+1.4)*16+0.5)/16 -> 1.375 | U7: 1.375 | V7: 8 | AA7: A991 | AG7: =Data!D274 -> -2.8125 | AH7: =Data!D275 -> -1.5 | AI7: =Data!D276 -> -5.375 | AJ7: =Data!D277 -> -4.0625 | AK7: 0.1516384549
C8: =IF(TYPE=4,C2,"") ->  | D8: 4 | E8: =Frame_Height-CMR -> 0 | F8: 0 | J8: =IF(TYPE=4,$J2,"") ->  | K8: 4 | L8: =CMR-CMRD -> 6 | M8: 6 | R8: =IF(TYPE=4,R2,"") ->  | S8: 4 | T8: =Frame_Height-CMR -> 0 | U8: 0 | AA8: A501 | AB8: =Data!D363 -> -4.875 | AC8: =Data!D364 -> -1.65625 | AD8: =Data!D367 -> -6.6875 | AE8: =Data!D368 -> -3.46875 | AF8: =(AD8*AE8)/144 -> 0.1610921224 | AG8: =Data!D365 -> -3.875 | AH8: =Data!D366 -> -0.65625 | AI8: =Data!D369 -> -6.6875 | AJ8: =Data!D370 -> -3.46875 | AK8: 0.1610921224
AA9: 02S0 | AG9: =Data!D460 -> -2.25 | AH9: =Data!D461 -> -0.75 | AI9: =Data!D462 -> -3.875 | AJ9: =Data!D463 -> -2.375 | AK9: 0.06391059028
B10: Dim.,"D" | D10: = | E10: =IF(C3=C2,F3,IF(C4=C2,F4,IF(C5=C2,F5,IF(C6=C2,F6,IF(C7=C2,F7,IF(C8=C2,F8,F3)))))) -> 0 | I10: Dim.,"D" | K10: = | L10: =IF(TYPE=2,Frame_Height-CDIMA140,Frame_Height/2-CMRD) -> 6 | M10: CMR Diff | N10: =Frame_Height-(LEG+6) -> -6 | Q10: Dim.,"D" | S10: = | T10: =IF(R3=R2,U3,IF(R4=R2,U4,IF(R5=R2,U5,IF(R6=R2,U6,IF(R7=R2,U7,IF(R8=R2,U8,U3)))))) -> 0 | AA10: 3A01 | AB10: =Data!D548 -> -4.125 | AC10: =Data!D549 -> -1.625 | AD10: =Data!D552 -> -5.75 | AE10: =Data!D553 -> -3.21875 | AF10: =(AD10*AE10)/144 -> 0.1285264757 | AG10: =Data!D550 -> -3.125 | AH10: =Data!D551 -> -0.625 | AI10: =Data!D554 -> -4.75 | AJ10: =Data!D555 -> -2.21875 | AK10: 0.07318793403
B11: Dim.,"C" | D11: = | E11: =Frame_Height-E10 -> 0 | I11: Dim.,"C" | K11: = | L11: =IF(TYPE=2,CMR,P2-DDIMA140) -> 0 | Q11: Dim.,"C" | S11: = | T11: =TRUNC((Frame_Height-T10)*32+0.5)/32 -> 0 | AA11: 03S0 | AG11: =Data!D607 -> -3.125 | AH11: =Data!D608 -> -1.125 | AI11: =Data!D609 -> -4.75 | AJ11: =Data!D610 -> -2.71875 | AK11: 0.08968098958
M12: Fraem R: | N12: =IF(ModelNo="A146",((Frame_Height-LEG)/2)+(((Frame_Width*2)^2)/(8*(Frame_Height-LEG))),((Frame_Height-LEG)/2)+((Frame_Width^2)/(8*(Frame_Height-LEG)))) ->  | AA12: A140 | AG12: =Data!D662 -> -3.125 | AH12: =Data!D663 -> -1.125 | AI12: =Data!D664 -> -4.8125 | AJ12: =Data!D665 -> -2.75 | AK12: 0.09190538194
B13: Top Glass Width | E13: =TRUNC((Frame_Width-4.90625)*32+0.5)/32 -> -4.875 | I13: Top Glass Width | L13: =TRUNC((Frame_Width-2*EXT)*16+0.5)/16 -> 0 | M13: Glass R: | N13: =N12-EXT ->  | O13: F | P13: =IF(Frame_Width>=(Frame_Height-LEG),2*(ASIN((EXT*2)/(2*N13))),2*(ASIN(((N13-(Frame_Width-2*EXT))*2)/(2*N13)))) ->  | Q13: Top Glass Width | T13: =TRUNC((Frame_Width-5.8125)*16+0.5)/16 -> -5.75 | AA13: A740
B14: Bottom Glass Width | E14: =TRUNC((Frame_Width-3.90625)*32+0.5)/32 -> -3.875 | I14: Bottom Glass Width | L14: =IF(OR(EXTSELECT=2,EXTSELECT=3),T30,0) -> 0 | M14: Glass h: | N14: =IF(ModelNo="A146",N13-(SQRT((4*N13^2)-(L13*2+(2*EXT))^2))/2,N13-(SQRT((4*N13^2)-(L13)^2)/2)) ->  | O14: d | P14: =N13*COS(P13/2) ->  | Q14: Bottom Glass Width | T14: =TRUNC((Frame_Width-4.8125)*16+0.5)/16 -> -4.75 | AA14: A840
B15: Top Glass Height | E15: =TRUNC((E10-3.21875)*32+0.5)/32 -> -3.1875 | I15: Top Glass Height | L15: =IF(ModelNo="A146",Frame_Height-($L$11+$N$15+EXT+P15),Frame_Height-($L$11+N15+EXT)) -> -0.264 | N15: 0.264 | O15: h | P15: =N13-P14 ->  | Q15: Top Glass Height | T15: =TRUNC((T10-3.25)*32+0.5)/32 -> -3.21875 | AA15: =ModelNo -> Select Model | AB15: =VLOOKUP(ModelNo,ORL_LIMIT,2,FALSE) ->  | AC15: =VLOOKUP(ModelNo,ORL_LIMIT,3,FALSE) ->  | AD15: =VLOOKUP(ModelNo,ORL_LIMIT,4,FALSE) ->  | AE15: =VLOOKUP(ModelNo,ORL_LIMIT,5,FALSE) ->  | AF15: =VLOOKUP(ModelNo,ORL_LIMIT,6,FALSE) ->  | AG15: =VLOOKUP(ModelNo,ORL_LIMIT,7,FALSE) ->  | AH15: =VLOOKUP(ModelNo,ORL_LIMIT,8,FALSE) ->  | AI15: =VLOOKUP(ModelNo,ORL_LIMIT,9,FALSE) ->  | AJ15: =VLOOKUP(ModelNo,ORL_LIMIT,10,FALSE) ->  | AK15: =VLOOKUP(ModelNo,ORL_LIMIT,11,FALSE) -> 
B16: Bottom Glass Height | E16: =TRUNC((E11-2.21875)*32+0.5)/32 -> -2.1875 | I16: Bottom Glass Height | L16: =IF(OR(EXTSELECT=2,EXTSELECT=3),T32,0) -> 0 | M16: Top Glass Leg: | N16: =IF(ModelNo="A146",L15-N14+P15,L15-N14) ->  | Q16: Bottom Glass Height | T16: =TRUNC((T11-2.25)*32+0.5)/32 -> -2.21875 | AA16: =IF(OR(TSH>50,BSH>50),"SH MUST BE < 50","") -> 
AA17: =IF(AND(OR(Glass<4,Glass>5),OR(TGSF>15,BGSF>15)),"GLASS MUST BE < 15 SF",IF(AND(OR(Glass=4,Glass=5),OR(TGSF>11,BGSF>11)),"GLASS MUST BE <11 SF","")) -> 
B18: =ModelNo -> Select Model | C18: =IF(ISERROR(VLOOKUP(ModelNo,B20:E57,4,FALSE)),"",VLOOKUP(ModelNo,B20:E57,4,FALSE)) ->  | J18: W | L18: 02A0 | R18: W | T18: 03S0
B19: Model | C19: CDIM | D19: DDIM | J19: =IF(TYPE=1,J18,IF(TYPE= "",J18," ")) -> W | K19: 1 | L19: =Frame_Height/2 -> 0 | M19: =TRUNC(L19*16+0.5)/16 -> 0 | R19: =IF(TYPE=1,R18,IF(TYPE= "",R18," ")) -> W | S19: 1 | T19: =Frame_Height/2 -> 0 | U19: =TRUNC(T19*16+0.5)/16 -> 0
B20: A201 | C20: =E11 -> 0 | D20: =E10 -> 0 | J20: =IF(TYPE=5,J18,IF(TYPE=2,IF(Frame_Height>=54.5,IF(Frame_Height<72.5,J18,""),""),"")) ->  | K20: 2 | L20: =INT((Frame_Height/5)*48+0.5)/16 -> 0 | M20: 0 | N20: 5 | R20: =IF(TYPE=5,R18,IF(TYPE=2,IF(Frame_Height>=54.5,IF(Frame_Height<72.5,R18,""),""),"")) ->  | S20: 2 | T20: =INT((Frame_Height/5)*48+0.5)/16 -> 0 | U20: 0 | V20: 5
B21: A272 | C21: =IF(TYPE=1,TRUNC(((Frame_Width/2))*16+0.5)/16,IF(TYPE=2,CMR-0.25)) -> 0 | D21: =Frame_Width-A272CDIM -> 0 | E21: =IF(AND(W>0,H>0,BTYPE="Custom",CMR=0),"<< Enter CMR Location",IF(AND(W>0,H>0,BTYPE="Custom"),"<< CMR, Left to Right","")) ->  | J21: =IF(TYPE=6,J18,IF(AND(TYPE=2,OR(Frame_Height<54.5,Frame_Height>=72.5)),J18,"")) ->  | L21: =INT((Frame_Height/3-0.22)*32+0.5)/16 -> -0.4375 | M21: -0.375 | N21: 6 | R21: =IF(TYPE=6,R18,IF(AND(TYPE=2,OR(Frame_Height<54.5,Frame_Height>=72.5)),R18,"")) ->  | T21: =INT((Frame_Height/3-0.22)*32+0.5)/16 -> -0.4375 | U21: -0.375 | V21: 6
B22: A273 | C22: =IF(TYPE=1,TRUNC(((W/4)-0.25)*16+0.5)/16,IF(TYPE=2,TRUNC(((W/3)-0.25)*16+0.5)/16,IF(TYPE=3,TRUNC((CMR-0.25)*16+0.5)/16,0))) -> -0.1875 | D22: =TRUNC((Frame_Width-(A273CDIM*2))*16+0.5)/16 -> 0.375 | E22: =IF(AND(W>0,H>0,BTYPE="Custom",CMR=0),"<< Enter CMR Location",IF(AND(W>0,H>0,BTYPE="Custom"),"<< CMR, Ends to M.R","")) ->  | J22: =IF(TYPE=7,J18,IF(TYPE=3,IF(Frame_Height>=54.5,IF(Frame_Height<72.5,J18,""),""),"")) ->  | K22: 3 | L22: =INT((Frame_Height/5+0.55)*32+0.5)/16 -> 1.125 | M22: 1.125 | N22: 7 | R22: =IF(TYPE=7,R18,IF(TYPE=3,IF(Frame_Height>=54.5,IF(Frame_Height<72.5,R18,""),""),"")) ->  | S22: 3 | T22: =INT((Frame_Height/5+0.55)*32+0.5)/16 -> 1.125 | U22: 1.125 | V22: 7
B23: A282 | C23: =IF(TYPE=1,TRUNC((Frame_Width/2)*16+0.5)/16,IF(TYPE=2,TRUNC((CMR-0.25)*32+0.5)/32,0)) -> 0 | D23: =Frame_Width-A282CDIM -> 0 | E23: =IF(AND(W>0,H>0,BTYPE="Custom",CMR=0),"<< Enter CMR Location",IF(AND(W>0,H>0,BTYPE="Custom"),"<< CMR, Left to Right","")) ->  | J23: =IF(TYPE=8,J18,IF(AND(TYPE=3,OR(Frame_Height<54.5,Frame_Height>=72.5)),J18,"")) ->  | L23: =INT((Frame_Height/3+1.4)*16+0.5)/16 -> 1.375 | M23: 1.375 | N23: 8 | R23: =IF(TYPE=8,R18,IF(AND(TYPE=3,OR(Frame_Height<54.5,Frame_Height>=72.5)),R18,"")) ->  | T23: =INT((Frame_Height/3+1.4)*16+0.5)/16 -> 1.375 | U23: 1.375 | V23: 8
B24: A283 | C24: =IF(TYPE=1,TRUNC(((W/4)-0.25)*16+0.5)/16,IF(TYPE=2,TRUNC(((W/3)-0.25)*16+0.5)/16,IF(TYPE=3,TRUNC((CMR-0.25)*16+0.5)/16,0))) -> -0.1875 | D24: =TRUNC((Frame_Width-(A283CDIM*2))*16+0.5)/16 -> 0.375 | E24: =IF(AND(W>0,H>0,BTYPE="Custom",CMR=0),"<< Enter CMR Location",IF(AND(W>0,H>0,BTYPE="Custom"),"<< CMR, Ends to M.R","")) ->  | J24: =IF(TYPE=4,J18,"") ->  | K24: 4 | L24: =Frame_Height-CMR -> 0 | M24: 0 | R24: =IF(TYPE=4,R18,"") ->  | S24: 4 | T24: =Frame_Height-CMR -> 0 | U24: 0
B25: A392 | C25: =IF(TYPE=1,TRUNC((Frame_Width/2)*16+0.5)/16,IF(TYPE=2,TRUNC((CMR-0.25)*32+0.5)/32,0)) -> 0 | D25: =Frame_Width-A392CDIM -> 0 | E25: =IF(AND(W>0,H>0,BTYPE="Custom",CMR=0),"<< Enter CMR Location",IF(AND(W>0,H>0,BTYPE="Custom"),"<< CMR, Left to Right","")) -> 
B26: A393 | C26: =IF(TYPE=1,TRUNC(((Frame_Width/4)-0.25)*16+0.5)/16,IF(TYPE=2,TRUNC(((Frame_Width/3)-0.25)*16+0.5)/16,IF(TYPE=3,TRUNC((CMR-0.25)*16+0.5)/16,0))) -> -0.1875 | D26: =TRUNC((Frame_Width-(A393CDIM*2))*16+0.5)/16 -> 0.375 | E26: =IF(AND(W>0,H>0,BTYPE="Custom",CMR=0),"<< Enter CMR Location",IF(AND(W>0,H>0,BTYPE="Custom"),"<< CMR, Ends to M.R","")) ->  | I26: Dim.,"D" | K26: = | L26: =IF(J19=J18,M19,IF(J20=J18,M20,IF(J21=J18,M21,IF(J22=J18,M22,IF(J23=J18,M23,IF(J24=J18,M24,M19)))))) -> 0 | Q26: Dim.,"D" | S26: = | T26: =IF(R19=R18,U19,IF(R20=R18,U20,IF(R21=R18,U21,IF(R22=R18,U22,IF(R23=R18,U23,IF(R24=R18,U24,U19)))))) -> 0
B27: A571 | C27: =IF(TYPE=1,TRUNC((Frame_Height/2)*16+0.5)/16,IF(TYPE=2,TRUNC((CMR-0.25)*16+0.5)/16,0)) -> 0 | D27: =Frame_Height-A571CDIM -> 0 | E27: =IF(AND(W>0,H>0,BTYPE="Custom",CMR=0),"<< Enter CMR Location",IF(AND(W>0,H>0,BTYPE="Custom"),"<< CMR, Bottom-Up","")) ->  | I27: Dim.,"C" | K27: = | L27: =Frame_Height-L26 -> 0 | Q27: Dim.,"C" | S27: = | T27: =TRUNC((Frame_Height-T26)*32+0.5)/32 -> 0
B28: A581 | C28: =IF(TYPE=1,TRUNC((Frame_Height/2)*16+0.5)/16,IF(TYPE=2,TRUNC((CMR-0.25)*16+0.5)/16,0)) -> 0 | D28: =Frame_Height-A581CDIM -> 0 | E28: =IF(AND(W>0,H>0,BTYPE="Custom",CMR=0),"<< Enter CMR Location",IF(AND(W>0,H>0,BTYPE="Custom"),"<< CMR, Bottom-Up","")) -> 
B29: A991 | C29: =IF(TYPE=1,TRUNC((Frame_Height/2)*16+0.5)/16,IF(TYPE=2,TRUNC((CMR-0.25)*16+0.5)/16,0)) -> 0 | D29: =Frame_Height-A991CDIM -> 0 | E29: =IF(AND(W>0,H>0,BTYPE="Custom",CMR=0),"<< Enter CMR Location",IF(AND(W>0,H>0,BTYPE="Custom"),"<< CMR, Bottom-Up","")) ->  | I29: Top Glass Width | L29: =TRUNC((Frame_Width-3.4375)*16+0.5)/16 -> -3.375 | Q29: Top Glass Width | T29: =TRUNC((Frame_Width-4.75)*16+0.5)/16 -> -4.6875
B30: A202 | C30: =IF(TYPE=1,TRUNC(((Frame_Width/2))*16+0.5)/16,IF(TYPE=2,CMR,0)) -> 0 | D30: =Frame_Width-A202CDIM -> 0 | I30: Bottom Glass Width | L30: =TRUNC((Frame_Width-3.90625)*32+0.5)/32 -> -3.875 | Q30: Bottom Glass Width | T30: =TRUNC((Frame_Width-4.8125)*16+0.5)/16 -> -4.75
B31: A203 | C31: =IF(TYPE=1,TRUNC(((Frame_Width/4)+0.6875)*16+0.5)/16,IF(TYPE=2,CMR,0)) -> 0.6875 | D31: =TRUNC((Frame_Width-(A203CDIM*2))*16+0.5)/16 -> -1.3125 | I31: Top Glass Height | L31: =TRUNC((L26-2.25)*16+0.5)/16 -> -2.1875 | Q31: Top Glass Height | T31: =TRUNC((T26-2.625)*32+0.5)/32 -> -2.59375
B32: A209 | C32: =TRUNC((Frame_Width/3+0.1875)*16+0.5)/16 -> 0.1875 | D32: =TRUNC((A209CDIM-0.5625)*16+0.5)/16 -> -0.3125 | I32: Bottom Glass Height | L32: =TRUNC((L27-2.40625)*32+0.5)/32 -> -2.375 | Q32: Bottom Glass Height | T32: =TRUNC((T27-2.75)*32+0.5)/32 -> -2.71875
B33: A172 | C33: =IF(TYPE=1,TRUNC(((Frame_Width/2))*16+0.5)/16,IF(TYPE=2,CMR)) -> 0 | D33: =Frame_Width-A172CDIM -> 0
B34: A173 | C34: =IF(TYPE=1,TRUNC(((Frame_Width/3)+0.333)*16+0.5)/16,IF(TYPE=2,CMR+0.1875)) -> 0.3125 | D34: =TRUNC((((Frame_Width-A173CDIM)/2)-0.25)*16+0.5)/16 -> -0.375 | J34: W | L34: 0501 | R34: W | T34: A740, A744, A746
B35: A175 | C35: =IF(TYPE=1,TRUNC(((Frame_Width/4)+0.3595)*16+0.5)/16,IF(TYPE=2,CMR-0.25)) -> 0.375 | D35: =TRUNC(((Frame_Width+0.5)/2-A175CDIM+0.469)*16+0.5)/16 -> 0.375 | J35: =IF(TYPE=1,J34,IF(TYPE= "",J34," ")) -> W | K35: 1 | L35: =Frame_Height/2 -> 0 | M35: =TRUNC(L35*16+0.5)/16 -> 0 | R35: =IF(TYPE=1,$R34,IF(TYPE= "",$R34," ")) -> W | S35: 1 | T35: =Frame_Height/2-CMRD -> 6 | U35: =TRUNC(T35*16+0.5)/16 -> 6
B36: A192 | C36: =IF(TYPE=1,TRUNC(((Frame_Width/2))*16+0.5)/16,IF(TYPE=2,CMR-0.25)) -> 0 | D36: =Frame_Width-A192CDIM -> 0 | J36: =IF(TYPE=5,J34,IF(TYPE=2,IF(Frame_Height>=54.5,IF(Frame_Height<72.5,J34,""),""),"")) ->  | K36: 2 | L36: =CEILING(((Frame_Height/5-0.24)*3-0.03125),0.0625) -> -0.75 | M36: -0.6875 | N36: 5 | S36: 2 | T36: =INT((Frame_Height/5)*48+0.5)/16-CMRD -> 6 | U36: 6 | V36: 5
B37: A193 | C37: =IF(TYPE=1,TRUNC(((Frame_Width/2))*16+0.5)/16,IF(TYPE=2,CMR-0.25)) -> 0 | D37: =Frame_Width-A193CDIM -> 0 | J37: =IF(TYPE=6,J34,IF(AND(TYPE=2,OR(Frame_Height<54.5,Frame_Height>=72.5)),J34,"")) ->  | L37: =TRUNC((Frame_Height/3-0.62)*32+0.5)/16 -> -1.1875 | M37: -1.125 | N37: 6 | T37: =INT((Frame_Height/3-0.22)*32+0.5)/16-CMRD -> 5.5625 | U37: 5.5625 | V37: 6
B38: A195 | C38: =IF(TYPE=1,TRUNC(((Frame_Width/2))*16+0.5)/16,IF(TYPE=2,CMR-0.25)) -> 0 | D38: =Frame_Width-A195CDIM -> 0 | J38: =IF(TYPE=7,J34,IF(TYPE=3,IF(Frame_Height>=54.5,IF(Frame_Height<72.5,J34,""),""),"")) ->  | K38: 3 | L38: =TRUNC((Frame_Height/5+0.38)*32+0.5)/16 -> 0.75 | M38: 0.75 | N38: 7 | S38: 3 | T38: =INT((Frame_Height/5+0.55)*32+0.5)/16-CMRD -> 7.125 | U38: 7.125 | V38: 7
B39: A501 | C39: =L75 -> 0 | D39: =L74 -> 0 | E39: =IF(AND(W>0,H>0,BTYPE="Custom",CMR=0),"<< Enter CMR Location",IF(AND(W>0,H>0,BTYPE="Custom"),"<< CMR, Bottom-Up","")) ->  | J39: =IF(TYPE=8,J34,IF(AND(TYPE=3,OR(Frame_Height<54.5,Frame_Height>=72.5)),J34,"")) ->  | L39: =TRUNC((Frame_Height/3+1.3)*16+0.5)/16 -> 1.3125 | M39: 1.3125 | N39: 8 | T39: =INT((Frame_Height/3+1.4)*16+0.5)/16-CMRD -> 7.375 | U39: 7.375 | V39: 8
B40: 02S0 | C40: =L27 -> 0 | D40: =L26 -> 0 | J40: =IF(TYPE=4,J34,"") ->  | K40: 4 | L40: =CMR -> 0 | M40: 0 | R40: =IF(TYPE=2,$J34,"") ->  | S40: 2 | T40: =CMR-CMRD -> 6 | U40: 6
B41: 02S2 | C41: =IF(TYPE=1,TRUNC(((Frame_Width/2))*16+0.5)/16,IF(TYPE=2,CMR,0)) -> 0 | D41: =Frame_Width-S2CDIM -> 0
B42: 02S3 | C42: =IF(TYPE=1,TRUNC(((Frame_Width/4)+0.908)*32+0.5)/32,IF(TYPE=2,CMR,0)) -> 0.90625 | D42: =TRUNC((Frame_Width-(S3CDIM*2))*32+0.5)/32 -> -1.78125 | I42: Dim.,"D" | K42: = | L42: =IF(J35=J34,M35,IF(J36=J34,M36,IF(J37=J34,M37,IF(J38=J34,M38,IF(J39=J34,M39,IF(J40=J34,M40,M35)))))) -> 0 | Q42: Dim.,"D" | S42: = | T42: =IF(TYPE=1,Frame_Height/2,Frame_Height-CDIMA740) -> 0
B43: 02S9 | C43: =TRUNC((Frame_Width/3+0.247)*32+0.5)/32 -> 0.25 | D43: =TRUNC((S9CDIM-0.741)*32+0.5)/32 -> -0.46875 | I43: Dim.,"C" | K43: = | L43: =Frame_Height-L42 -> 0 | Q43: Dim.,"C" | S43: = | T43: =IF(TYPE=2,CMR-0.25,Frame_Height-DDIMA740) -> 0
B44: 3A01 | C44: =T11 -> 0 | D44: =T10 -> 0 | U44: Fraem R: | V44: =((Frame_Height-LEG)/2)+(((Frame_Width*2)^2)/(8*(Frame_Height-LEG))) ->  | X44: =LEG-(Offset+((V44*COS((2*(ASIN((Frame_Width*2)/(2*V44))))/2))-(V45*COS((2*(ASIN(((Frame_Width*2)-(2*Offset))/(2*V45))))/2))))-1 -> 
B45: 03S0 | C45: =T27 -> 0 | D45: =T26 -> 0 | I45: Top Glass Width | L45: =TRUNC((Frame_Width-6.125)*16+0.5)/16 -> -6.0625 | Q45: Top Glass Width | T45: =TRUNC((Frame_Width-2*EXT)*16+0.5)/16 -> 0 | U45: Glass R: | V45: =V44-EXT ->  | W45: F | X45: =IF(Frame_Width>=(Frame_Height-LEG),2*(ASIN((EXT*2)/(2*V45))),2*(ASIN(((V45-(Frame_Width-2*EXT))*2)/(2*V45)))) -> 
B46: 7SH2 | C46: =IF(TYPE=1,Frame_Height/2,IF(TYPE=2,CMR-0.25,0)) -> 0 | D46: =Frame_Height-CDIM7SH2 -> 0 | E46: =IF(AND(W>0,H>0,BTYPE="Custom",CMR=0),"<< Enter CMR Location",IF(AND(W>0,H>0,BTYPE="Custom"),"<< CMR, Bottom-Up","")) ->  | I46: Bottom Glass Width | L46: =TRUNC((Frame_Width-6.125)*16+0.5)/16 -> -6.0625 | Q46: Bottom Glass Width | T46: =Data!D156-2.1875 -> -4.3125 | U46: Glass h: | V46: =IF(ModelNo="A746",V45-(SQRT((4*V45^2)-(T45*2+(2*EXT))^2))/2,V45-(SQRT((4*V45^2)-(T45)^2)/2)) ->  | W46: d | X46: =V45*COS(X45/2) -> 
B47: 7SH3 | C47: =IF(TYPE=1,Frame_Height/2,IF(TYPE=2,CMR-0.25,0)) -> 0 | D47: =Frame_Height-CDIM7SH3 -> 0 | E47: =IF(AND(W>0,H>0,BTYPE="Custom",CMR=0),"<< Enter CMR Location",IF(AND(W>0,H>0,BTYPE="Custom"),"<< CMR, Bottom-Up","")) ->  | I47: Top Glass Height | L47: =TRUNC((L42-4.1875)*16+0.5)/16 -> -4.125 | Q47: Top Glass Height | T47: =IF(ModelNo="A746",Frame_Height-($T$43+$V$47+EXT+X47),Frame_Height-($T$43+V47+EXT)) -> -0.6875 | V47: 0.6875 | W47: h | X47: =V45-X46 -> 
B48: 8SH2 | C48: =IF(TYPE=1,Frame_Height/2,IF(TYPE=2,CMR-0.25,0)) -> 0 | D48: =Frame_Height-CDIM8SH2 -> 0 | E48: =IF(AND(W>0,H>0,BTYPE="Custom",CMR=0),"<< Enter CMR Location",IF(AND(W>0,H>0,BTYPE="Custom"),"<< CMR, Bottom-Up","")) ->  | I48: Bottom Glass Height | L48: =TRUNC((L43-4.1875)*16+0.5)/16 -> -4.125 | Q48: Bottom Glass Height | T48: =Data!D157-2.1875 -> -3.0625 | U48: Top Glass Leg: | V48: =IF(ModelNo="A746",T47-V46+X47,T47-V46) -> 
B49: 8SH3 | C49: =IF(TYPE=1,Frame_Height/2,IF(TYPE=2,CMR-0.25,0)) -> 0 | D49: =Frame_Height-CDIM8SH3 -> 0 | E49: =IF(AND(W>0,H>0,BTYPE="Custom",CMR=0),"<< Enter CMR Location",IF(AND(W>0,H>0,BTYPE="Custom"),"<< CMR, Bottom-Up","")) -> 
B50: 72HP | E50: =IF(AND(W>0,H>0,BTYPE="Custom",CMR=0),"<< Enter CMR Location",IF(AND(W>0,H>0,BTYPE="Custom"),"<< CMR Bottom-Up","")) ->  | J50: W | L50: 0601 | R50: W | T50: A840, A844, A846
B51: 72WP | E51: =IF(AND(W>0,H>0,BTYPE="Custom",CMR=0),"<< Enter CMR Location",IF(AND(W>0,H>0,BTYPE="Custom"),"<< CMR, Left to Right","")) ->  | J51: =IF(TYPE=1,J50,IF(TYPE= "",J50," ")) -> W | K51: 1 | L51: =Frame_Height/2 -> 0 | M51: =TRUNC(L51*16+0.5)/16 -> 0 | R51: =IF(TYPE=1,$R50,IF(TYPE= "",$R50," ")) -> W | S51: 1 | T51: =Frame_Height/2-CMRD -> 6 | U51: =TRUNC(T51*16+0.5)/16 -> 6
B52: 73HP | C52: =TRUNC((IF(TYPE=1,Frame_Height/3,IF(TYPE=2,CMR,0))*16+0.5))/16 -> 0 | E52: =IF(AND(W>0,H>0,BTYPE="Custom",CMR=0),"<< Enter CMR Location",IF(AND(W>0,H>0,BTYPE="Custom"),"<< CMR, Ends to M.R","")) ->  | J52: =IF(TYPE=5,J50,IF(TYPE=2,IF(Frame_Height>=54.5,IF(Frame_Height<72.5,J50,""),""),"")) ->  | K52: 2 | L52: =CEILING(((Frame_Height/5-0.24)*3-0.03125),0.0625) -> -0.75 | M52: -0.6875 | N52: 5 | S52: 2 | T52: =INT((Frame_Height/5)*48+0.5)/16-CMRD -> 6 | U52: 6 | V52: 5
B53: 73WP | C53: =TRUNC((IF(TYPE=1,Frame_Width/3,IF(TYPE=2,CMR,0))*16+0.5))/16 -> 0 | E53: =IF(AND(W>0,H>0,BTYPE="Custom",CMR=0),"<< Enter CMR Location",IF(AND(W>0,H>0,BTYPE="Custom"),"<< CMR, Ends to M.R","")) ->  | J53: =IF(TYPE=6,J50,IF(AND(TYPE=2,OR(Frame_Height<54.5,Frame_Height>=72.5)),J50,"")) ->  | L53: =TRUNC((Frame_Height/3-0.62)*32+0.5)/16 -> -1.1875 | M53: -1.125 | N53: 6 | T53: =INT((Frame_Height/3-0.22)*32+0.5)/16-CMRD -> 5.5625 | U53: 5.5625 | V53: 6
B54: 82HP | E54: =IF(AND(W>0,H>0,BTYPE="Custom",CMR=0),"<< Enter CMR Location",IF(AND(W>0,H>0,BTYPE="Custom"),"<< CMR Bottom-Up","")) ->  | J54: =IF(TYPE=7,J50,IF(TYPE=3,IF(Frame_Height>=54.5,IF(Frame_Height<72.5,J50,""),""),"")) ->  | K54: 3 | L54: =TRUNC((Frame_Height/5+0.38)*32+0.5)/16 -> 0.75 | M54: 0.75 | N54: 7 | S54: 3 | T54: =INT((Frame_Height/5+0.55)*32+0.5)/16-CMRD -> 7.125 | U54: 7.125 | V54: 7
B55: 82WP | E55: =IF(AND(W>0,H>0,BTYPE="Custom",CMR=0),"<< Enter CMR Location",IF(AND(W>0,H>0,BTYPE="Custom"),"<< CMR, Left to Right","")) ->  | J55: =IF(TYPE=8,J50,IF(AND(TYPE=3,OR(Frame_Height<54.5,Frame_Height>=72.5)),J50,"")) ->  | L55: =TRUNC((Frame_Height/3+1.3)*16+0.5)/16 -> 1.3125 | M55: 1.3125 | N55: 8 | T55: =INT((Frame_Height/3+1.4)*16+0.5)/16-CMRD -> 7.375 | U55: 7.375 | V55: 8
B56: 83HP | C56: =TRUNC((IF(TYPE=1,Frame_Height/3,IF(TYPE=2,CMR,0))*16+0.5))/16 -> 0 | E56: =IF(AND(W>0,H>0,BTYPE="Custom",CMR=0),"<< Enter CMR Location",IF(AND(W>0,H>0,BTYPE="Custom"),"<< CMR, Ends to M.R","")) ->  | J56: =IF(TYPE=4,J50,"") ->  | K56: 4 | L56: =CMR -> 0 | M56: 0 | R56: =IF(TYPE=2,$J50,"") ->  | S56: 4 | T56: =CMR-CMRD -> 6 | U56: 6
B57: 83WP | C57: =TRUNC((IF(TYPE=1,Frame_Width/3,IF(TYPE=2,CMR,0))*16+0.5))/16 -> 0 | E57: =IF(AND(W>0,H>0,BTYPE="Custom",CMR=0),"<< Enter CMR Location",IF(AND(W>0,H>0,BTYPE="Custom"),"<< CMR, Ends to M.R","")) -> 
B58: 82SP | C58: =IF(TYPE=1,((Frame_Height/2)+0.25),IF(TYPE=2,CMR)) -> 0.25 | E58: =IF(AND(W>0,H>0,BTYPE="Custom",CMR=0),"<< Enter CMR Location",IF(AND(W>0,H>0,BTYPE="Custom"),"<< CMR, Ends to M.R","")) ->  | I58: Dim.,"D" | K58: = | L58: =IF(J51=J50,M51,IF(J52=J50,M52,IF(J53=J50,M53,IF(J54=J50,M54,IF(J55=J50,M55,IF(J56=J50,M56,M51)))))) -> 0 | Q58: Dim.,"D" | S58: = | T58: =IF(TYPE=1,Frame_Height/2,Frame_Height-CDIMA840) -> 0
B59: 8SPS | C59: =IF(TYPE=1,((Frame_Height/2)+0.25),IF(TYPE=2,CMR)) -> 0.25 | I59: Dim.,"C" | K59: = | L59: =Frame_Height-L58 -> 0 | Q59: Dim.,"C" | S59: = | T59: =IF(TYPE=2,CMR-0.25,Frame_Height-DDIMA840) -> 0
B60: 8SPP | C60: =IF(TYPE=1,(((Frame_Height-_DIM3+0.25)/2)-0.34375),IF(TYPE=2,CMR)) -> -0.21875 | U60: Fraem R: | V60: =((Frame_Height-LEG)/2)+(((Frame_Width*2)^2)/(8*(Frame_Height-LEG))) ->  | X60: =LEG-(Offset+((V60*COS((2*(ASIN((Frame_Width*2)/(2*V60))))/2))-(V61*COS((2*(ASIN(((Frame_Width*2)-(2*Offset))/(2*V61))))/2))))-1.375 -> 
B61: 8POS | C61: =IF(TYPE=1,(((_DIM3+0.25)/2)+0.34375),IF(TYPE=2,CMR)) -> 0.46875 | I61: Top Glass Width | L61: =TRUNC((Frame_Width-6.125)*16+0.5)/16 -> -6.0625 | Q61: Top Glass Width | T61: =TRUNC((Frame_Width-2*EXT)*16+0.5)/16 -> 0 | U61: Glass R: | V61: =V60-EXT ->  | W61: F | X61: =IF(Frame_Width>=(Frame_Height-LEG),2*(ASIN((EXT*2)/(2*V61))),2*(ASIN(((V61-(Frame_Width-2*EXT))*2)/(2*V61)))) -> 
B62: 8SOP | C62: =IF(TYPE=1,(((Frame_Height-_DIM3+0.25)/2)-0.34375),IF(TYPE=2,CMR)) -> -0.21875 | I62: Bottom Glass Width | L62: =TRUNC((Frame_Width-6.125)*16+0.5)/16 -> -6.0625 | Q62: Bottom Glass Width | T62: =Data!D174-2.5625 -> -5.375 | U62: Glass h: | V62: =IF(ModelNo="A846",V61-(SQRT((4*V61^2)-(T61*2+(2*EXT))^2))/2,V61-(SQRT((4*V61^2)-(T61)^2)/2)) ->  | W62: d | X62: =V61*COS(X61/2) -> 
B63: 8PS3 | C63: =IF(TYPE=1,(((_DIM3+0.25)/2)+0.34375),IF(TYPE=2,CMR)) -> 0.46875 | I63: Top Glass Height | L63: =TRUNC((L58-3.8125)*16+0.5)/16 -> -3.75 | Q63: Top Glass Height | T63: =IF(ModelNo="A846",Frame_Height-($T$59+$V$63+EXT+X63),Frame_Height-($T$59+V63+EXT)) -> -0.719 | V63: 0.719 | W63: h | X63: =V61-X62 -> 
B64: 8SP3 | C64: =IF(TYPE=1,(((Frame_Height-_DIM3+0.25)/2)-0.34375),IF(TYPE=2,CMR)) -> -0.21875 | I64: Bottom Glass Height | L64: =TRUNC((L59-3.8125)*16+0.5)/16 -> -3.75 | Q64: Bottom Glass Height | T64: =Data!D175-2.5625 -> -4.0625 | U64: Top Glass Leg: | V64: =IF(ModelNo="A846",T63-V62+X63,T63-V62) -> 
J66: W | L66: A501
J67: =IF(TYPE=1,J66,IF(TYPE= "",J66," ")) -> W | K67: 1 | L67: =Frame_Height/2 -> 0 | M67: =TRUNC(L67*16+0.5)/16 -> 0
J68: =IF(TYPE=5,J66,IF(TYPE=2,IF(Frame_Height>=54.5,IF(Frame_Height<72.5,J66,""),""),"")) ->  | K68: 2 | L68: =CEILING(((Frame_Height/5-0.24)*3-0.03125),0.0625) -> -0.75 | M68: -0.6875 | N68: 5
J69: =IF(TYPE=6,J66,IF(AND(TYPE=2,OR(Frame_Height<54.5,Frame_Height>=72.5)),J66,"")) ->  | L69: =TRUNC((Frame_Height/3-0.62)*32+0.5)/16 -> -1.1875 | M69: -1.125 | N69: 6
J70: =IF(TYPE=7,J66,IF(TYPE=3,IF(Frame_Height>=54.5,IF(Frame_Height<72.5,J66,""),""),"")) ->  | K70: 3 | L70: =TRUNC((Frame_Height/5+0.38)*32+0.5)/16 -> 0.75 | M70: 0.75 | N70: 7
J71: =IF(TYPE=8,J66,IF(AND(TYPE=3,OR(Frame_Height<54.5,Frame_Height>=72.5)),J66,"")) ->  | L71: =TRUNC((Frame_Height/3+1.3)*16+0.5)/16 -> 1.3125 | M71: 1.3125 | N71: 8
J72: =IF(TYPE=4,J66,"") ->  | K72: 4 | L72: =Frame_Height-CMR -> 0 | M72: 0
I74: Dim.,"D" | K74: = | L74: =IF(J67=J66,M67,IF(J68=J66,M68,IF(J69=J66,M69,IF(J70=J66,M70,IF(J71=J66,M71,IF(J72=J66,M72,M67)))))) -> 0
I75: Dim.,"C" | K75: = | L75: =Frame_Height-L74 -> 0
I77: Top Glass Width | L77: =TRUNC((Frame_Width-6.71875)*32+0.5)/32 -> -6.6875
I78: Bottom Glass Width | L78: =TRUNC((Frame_Width-6.71875)*32+0.5)/32 -> -6.6875
I79: Top Glass Height | L79: =TRUNC((L74-3.5)*32+0.5)/32 -> -3.46875
I80: Bottom Glass Height | L80: =TRUNC((L75-3.5)*32+0.5)/32 -> -3.46875
J82: W | L82: 9001
J83: =IF(TYPE=1,J82,IF(TYPE= "",J82," ")) -> W | K83: 1 | L83: =Frame_Height/2 -> 0 | M83: =TRUNC(L83*16+0.5)/16 -> 0
J84: =IF(TYPE=5,J82,IF(TYPE=2,IF(Frame_Height>=54.5,IF(Frame_Height<72.5,J82,""),""),"")) ->  | K84: 2 | L84: =CEILING(((Frame_Height/5-0.24)*3-0.03125),0.0625) -> -0.75 | M84: -0.6875 | N84: 5
J85: =IF(TYPE=6,J82,IF(AND(TYPE=2,OR(Frame_Height<54.5,Frame_Height>=72.5)),J82,"")) ->  | L85: =TRUNC((Frame_Height/3-0.62)*32+0.5)/16 -> -1.1875 | M85: -1.125 | N85: 6
J86: =IF(TYPE=7,J82,IF(TYPE=3,IF(Frame_Height>=54.5,IF(Frame_Height<72.5,J82,""),""),"")) ->  | K86: 3 | L86: =TRUNC((Frame_Height/5+0.38)*32+0.5)/16 -> 0.75 | M86: 0.75 | N86: 7
J87: =IF(TYPE=8,J82,IF(AND(TYPE=3,OR(Frame_Height<54.5,Frame_Height>=72.5)),J82,"")) ->  | L87: =TRUNC((Frame_Height/3+1.3)*16+0.5)/16 -> 1.3125 | M87: 1.3125 | N87: 8
J88: =IF(TYPE=4,J82,"") ->  | K88: 4 | L88: =CMR -> 0 | M88: 0
I90: Dim.,"D" | K90: = | L90: =IF(J83=J82,M83,IF(J84=J82,M84,IF(J85=J82,M85,IF(J86=J82,M86,IF(J87=J82,M87,IF(J88=J82,M88,M83)))))) -> 0
I91: Dim.,"C" | K91: = | L91: =Frame_Height-L90 -> 0
I93: Top Glass Width | L93: =TRUNC((Frame_Width-6.75)*16+0.5)/16 -> -6.6875
I94: Bottom Glass Width | L94: =TRUNC((Frame_Width-6.75)*16+0.5)/16 -> -6.6875
I95: Top Glass Height | L95: =TRUNC((L90-3.875)*16+0.5)/16 -> -3.8125
I96: Bottom Glass Height | L96: =TRUNC((L91-3.875)*16+0.5)/16 -> -3.8125

Sheet Data (hidden)
B1: Model | C1: Description | D1: Value
A2: =IF(ModelNo=B2,1,"") ->  | B2: A201 | C2: Top Sash Width | D2: =Frame_Width-3.25 -> -3.25 | F2: =Model_Select -> Select Model | G2: Models | H2: Description | I2: W cut-back | J2: H-cut-back | K2: Width | L2: Height | M2: Min W | N2: Min H | O2: Max W | P2: Max H | Q2: Max UI | R2: TYPE1 | S2: TYPE2 | T2: TYPE3 | U2: TYPE4 | V2: Dim3 | W2: Dim4 | X2: Screen1 | Y2: Screen2 | Z2: Screen3 | AA2: Ext./Reinf. | AB2: Ext./Reinf. | AC2: Ext./Reinf. | AD2: Ext./Reinf. | AE2: Ext./Reinf. | AF2: Offset | AG2: Opening
A3: =IF(ModelNo=B3,2,"") ->  | B3: A201 | C3: Top Sash Height | D3: =CMR!$E$10-1.5625 -> -1.5625 | F3: 1 | G3: Select Model | H3: 0 | I3: 0 | J3: 0 | K3: 0 | L3: 0 | M3: 0 | N3: 0 | O3: 0 | P3: 0 | Q3: 0 | R3: 0 | S3: 0 | T3: 0 | U3: 0 | X3: 0 | Y3: 0 | Z3: 0 | AA3: 0 | AB3: 0 | AC3: 0 | AD3: 0 | AE3: 0 | AF3: 0 | AG3: 0
A4: =IF(ModelNo=B4,3,"") ->  | B4: A201 | C4: Bottom Sash Width | D4: =Frame_Width-2.25 -> -2.25 | F4: 2 | G4: 3A01 | H4: Montrose Double Hung | M4: 12 | N4: 20 | O4: =IF(EXTSELECT=2,48,IF(EXTSELECT=3,52,"")) ->  | P4: =IF(EXTSELECT=2,84,IF(EXTSELECT=3,96,"")) ->  | Q4: =IF(EXTSELECT=2,126,IF(EXTSELECT=3,148,"")) ->  | R4: Standard | S4: Oriel (2/3 - 1/3) | T4: Cottage (1/3 - 2/3) | U4: Custom | X4: Half | Y4: Full | Z4: Locking | AA4: Select Reinforcement | AB4: Composite | AC4: Steel | AG4: =IF(RO=2,"<< Exact Size Only","") -> << Exact Size Only
A5: =IF(ModelNo=B5,4,"") ->  | B5: A201 | C5: Bottom Sash Height | D5: =CMR!$E$11-0.5625 -> -0.5625 | F5: 3 | G5: 3A02 | H5: Montrose Two Lite Slider | M5: 18.5 | N5: 11.25 | O5: =IF(EXTSELECT=2,72,IF(EXTSELECT=3,96,"")) ->  | P5: =IF(EXTSELECT=2,56,IF(EXTSELECT=3,72,"")) ->  | Q5: =IF(EXTSELECT=2,128,IF(EXTSELECT=3,156,"")) ->  | R5: Standard | X5: Half | Y5: Full | AA5: Select Reinforcement | AB5: Composite | AC5: Steel | AG5: << Exact Size Only
A6: =IF(ModelNo=B6,5,"") ->  | B6: A201 | C6: Top Glass Width | D6: =CMR!$E$13 -> -4.875 | F6: 4 | G6: 3A03 | H6: Montrose Three Lite Slider (1/4-1/2-1/4) | M6: 47.5 | N6: 11.25 | O6: =IF(EXTSELECT=2,108,IF(EXTSELECT=3,130,"")) ->  | P6: =IF(EXTSELECT=2,56,IF(EXTSELECT=3,72,"")) ->  | Q6: =IF(EXTSELECT=2,164,IF(EXTSELECT=3,192,"")) ->  | R6: Standard (1/4-1/2-1/4) | X6: Half | Y6: Full | AA6: Select Reinforcement | AB6: Composite | AC6: Steel | AG6: << Exact Size Only
A7: =IF(ModelNo=B7,6,"") ->  | B7: A201 | C7: Top Glass Height | D7: =CMR!$E$15 -> -3.1875 | F7: 5 | G7: 3A04 | H7: Montrose Picture Window | M7: 9.5 | N7: 9.5 | O7: 120 | P7: 120 | Q7: 180 | R7: Standard | AG7: << Exact Size Only
A8: =IF(ModelNo=B8,7,"") ->  | B8: A201 | C8: Bottom Glass Width | D8: =CMR!$E$14 -> -3.875 | F8: 6 | G8: 3A09 | H8: Montrose Three Lite Slider Equal Lite | M8: 37.25 | N8: 11.25 | O8: =IF(EXTSELECT=2,108,IF(EXTSELECT=3,130,"")) ->  | P8: =IF(EXTSELECT=2,56,IF(EXTSELECT=3,72,"")) ->  | Q8: =IF(EXTSELECT=2,164,IF(EXTSELECT=3,192,"")) ->  | R8: Standard (1/3-1/3-1/3) | X8: Half | Y8: Full | AA8: Select Reinforcement | AB8: Composite | AC8: Steel | AG8: << Exact Size Only
A9: =IF(ModelNo=B9,8,"") ->  | B9: A201 | C9: Bottom Glass Height | D9: =CMR!$E$16 -> -2.1875 | F9: 7 | G9: 03S0 | H9: Montrose Single Hung | M9: 12 | N9: 22 | O9: =IF(EXTSELECT=2,48,IF(EXTSELECT=3,52,"")) ->  | P9: =IF(EXTSELECT=2,78,IF(EXTSELECT=3,96,"")) ->  | Q9: =IF(EXTSELECT=2,126,IF(EXTSELECT=3,148,"")) ->  | R9: Standard | S9: Oriel (2/3 - 1/3) | T9: Cottage (1/3 - 2/3) | U9: Custom | X9: Half | Y9: Full | Z9: Locking | AA9: Select Reinforcement | AB9: Composite | AC9: Steel | AG9: << Exact Size Only
A10: =IF(ModelNo=B10,9,"") ->  | B10: A201 | C10: Screen Width | D10: =IF(Screen="L",Frame_Width-1.6875,Frame_Width-3.6875) -> -3.6875 | F10: 8 | G10: 03S2 | H10: Montrose Two Lite Single Slider | M10: 18.5 | N10: 12 | O10: =IF(EXTSELECT=2,72,IF(EXTSELECT=3,96,"")) ->  | P10: =IF(EXTSELECT=2,56,IF(EXTSELECT=3,72,"")) ->  | Q10: =IF(EXTSELECT=2,128,IF(EXTSELECT=3,156,"")) ->  | R10: Standard | X10: Half | Y10: Full | AA10: Select Reinforcement | AB10: Composite | AC10: Steel | AG10: << Exact Size Only
A11: =IF(ModelNo=B11,10,"") ->  | B11: A201 | C11: Screen Height | D11: =IF(Screen="L",TRUNC((CMR!$E$11-1.375)*16+0.5)/16,IF(Screen="F",TRUNC((Frame_Height-2.875)*16+0.5)/16,TRUNC((CMR!$E$11-0.3125)*16+0.5)/16)) -> -0.25 | F11: 9 | G11: 03S3 | H11: Montrose Three Lite Slider (1/4-1/2-1/4) | M11: 52 | N11: 12 | O11: =IF(EXTSELECT=2,108,IF(EXTSELECT=3,130,"")) ->  | P11: =IF(EXTSELECT=2,56,IF(EXTSELECT=3,72,"")) ->  | Q11: =IF(EXTSELECT=2,164,IF(EXTSELECT=3,182,"")) ->  | R11: Standard (1/4-1/2-1/4) | X11: Half | Y11: Full | AA11: Select Reinforcement | AB11: Composite | AC11: Steel | AG11: << Exact Size Only
A12: =IF(ModelNo=B12,11,"") ->  | B12: A201 | C12: Top Sash Weight (Plus 5 lb) | D12: =IF(ISERROR(TOP_WGT&" "&"lb"),"N/A",TOP_WGT&" "&"lb") -> N/A | F12: 10 | G12: 03S4 | H12: Montrose Picture Window | M12: 9.5 | N12: 9.5 | O12: 120 | P12: 120 | Q12: 180 | R12: Standard | AG12: << Exact Size Only
A13: =IF(ModelNo=B13,12,"") ->  | B13: A201 | C13: Top Balance Size (C.F) | D13: =IF(ISERROR((VLOOKUP(TOP_WGT,CFB,2,FALSE))&(VLOOKUP(TOP_WGT,CFB,3,FALSE))),"N/A",(VLOOKUP(TOP_WGT,CFB,2,FALSE))&(VLOOKUP(TOP_WGT,CFB,3,FALSE))) -> N/A | F13: 11 | G13: 03S9 | H13: Montrose Three Lite Slider Equal Lite | M13: 52 | N13: 12 | O13: =IF(EXTSELECT=2,108,IF(EXTSELECT=3,130,"")) ->  | P13: =IF(EXTSELECT=2,56,IF(EXTSELECT=3,72,"")) ->  | Q13: =IF(EXTSELECT=2,164,IF(EXTSELECT=3,192,"")) ->  | R13: Standard (1/3-1/3-1/3) | X13: Half | Y13: Full | AA13: Select Reinforcement | AB13: Composite | AC13: Steel | AG13: << Exact Size Only
A14: =IF(ModelNo=B14,13,"") ->  | B14: A201 | C14: Bottom Sash Weight | D14: =IF(ISERROR(BTM_WGT&" "&"lb"),"N/A",BTM_WGT&" "&"lb") -> N/A | F14: 12 | G14: A140 | H14: Arched Top Single Hung (Round-Top) | M14: =IF(EXTSELECT=2,25,IF(EXTSELECT=3,26,IF(EXTSELECT=4,27,0))) -> 0 | N14: =IF(EXTSELECT=2,40,IF(EXTSELECT=3,41,IF(EXTSELECT=4,42,0))) -> 0 | O14: 52 | P14: 96 | Q14: 148 | R14: Standard | S14: Custom | X14: Half | AA14: Select Extrusion | AB14: Mezzo | AC14: Mezzo/N.F | AD14: Mezzo w/Stucco | AF14: 2.40625 | AG14: << Exact Size Only
A15: =IF(ModelNo=B15,14,"") ->  | B15: A201 | C15: Bottom Balance Size (C.F) | D15: =IF(ISERROR((VLOOKUP(BTM_WGT,CFB,2,FALSE))&(VLOOKUP(BTM_WGT,CFB,3,FALSE))),"N/A",(VLOOKUP(BTM_WGT,CFB,2,FALSE))&(VLOOKUP(BTM_WGT,CFB,3,FALSE))) -> N/A | F15: 13 | G15: A144 | H15: Arched Top Single Hung (Eyebrow) | M15: 16 | N15: 43 | O15: 52 | P15: 96 | Q15: 148 | R15: Standard | S15: Custom | X15: Half | AA15: Select Extrusion | AB15: Mezzo | AC15: Mezzo/N.F | AD15: Mezzo w/Stucco | AF15: 2.40625 | AG15: << Exact Size Only
A16: =IF(ModelNo=B16,15,"") ->  | B16: A201 | C16: Egress Opening Width | D16: =IF(ISERROR(EW),"N/A",EW) -> N/A | F16: 14 | G16: A146 | H16: Arched Top Single Hung (1/2 Eyebrow) | M16: 16 | N16: 43 | O16: 52 | P16: 96 | Q16: 148 | R16: Standard | S16: Custom | X16: Half | AA16: Select Extrusion | AB16: Mezzo | AC16: Mezzo/N.F | AD16: Mezzo w/Stucco | AF16: 2.40625 | AG16: << Exact Size Only
A17: =IF(ModelNo=B17,16,"") ->  | B17: A201 | C17: Egress Opening Height | D17: =IF(ISERROR(EH),"N/A",EH) -> N/A | F17: 15 | G17: A580 | H17: 80 Series Picture Window | I17: 0.5 | J17: 0.5 | M17: 10.5 | N17: 10.5 | O17: 120 | P17: 120 | Q17: 180 | R17: Standard | AG17: << Select Opening
A18: =IF(ModelNo=B18,17,"") ->  | B18: A201 | C18: Egress Opening Area (sq.ft.) | D18: =IF(ISERROR(EO),"N/A",EO) -> N/A | F18: 16 | G18: A581 | H18: 80 Series Single Hung | I18: 0.5 | J18: 0.5 | M18: =IF(AND(W>0,H>0,Frame_Height>=30),10.5,15) -> 15 | N18: =IF(AND(W>0,H>0,Frame_Width>=15),24,30) -> 30 | O18: 54 | P18: 96 | Q18: 144 | R18: Standard | S18: Custom | X18: Half Only | AG18: << Select Opening
A19: =IF(ModelNo=B19,1,"") ->  | B19: A202 | C19: Inside Sash Width | D19: =A202CDIM-0.625 -> -0.625 | F19: 17 | G19: A280 | H19: 80 Series Picture Window | I19: 0.5 | J19: 0.5 | M19: 10.5 | N19: 10.5 | O19: 120 | P19: 120 | Q19: 180 | R19: Standard | AG19: << Select Opening
A20: =IF(ModelNo=B20,2,"") ->  | B20: A202 | C20: Outside Sash Width | D20: =A202DDIM-0.625 -> -0.625 | F20: 18 | G20: A282 | H20: 80 Series Single Slider | I20: 0.5 | J20: 0.5 | M20: =IF(AND(W>0,H>0,Frame_Height>=14.5),20,29.5) -> 29.5 | N20: =IF(AND(W>0,H>0,Frame_Width>=29.5),10.5,14.5) -> 14.5 | O20: 96 | P20: 72 | Q20: 168 | R20: Standard | S20: Custom | X20: Half | Y20: Full | AG20: << Select Opening
A21: =IF(ModelNo=B21,3,"") ->  | B21: A202 | C21: Sash Height | D21: =Frame_Height-3.25 -> -3.25 | F21: 19 | G21: A283 | H21: 80 Series Three Lite Slider | I21: 0.5 | J21: 0.5 | M21: 40 | N21: 10.5 | O21: 120 | P21: 72 | Q21: 192 | R21: 1/4-1/2-1/4 | S21: 1/3-1/3-1/3 | T21: Custom | X21: Half | Y21: Full | AG21: << Select Opening
A22: =IF(ModelNo=B22,4,"") ->  | B22: A202 | C22: Roller Track Length | D22: =Frame_Width-1.8125 -> -1.8125 | F22: 20 | G22: A780 | H22: 80 Series. Picture Window | I22: 0.5 | J22: 0.5 | M22: 10 | N22: 10 | O22: 120 | P22: 120 | Q22: 180 | R22: Standard | AG22: << Select Opening
A23: =IF(ModelNo=B23,5,"") ->  | B23: A202 | C23: Inside Glass Width | D23: =(A202CDIM-0.625)-1.71875 -> -2.34375 | F23: 21 | G23: 8SH2 | H23: 80 Series Twin Single Hung | I23: 0.5 | J23: 0.5 | M23: 30 | N23: 24 | O23: 72 | P23: 72 | Q23: 144 | R23: Standard | S23: Custom | X23: Half Only | AG23: << Select Opening
A24: =IF(ModelNo=B24,6,"") ->  | B24: A202 | C24: Outside Glass Width | D24: =(A202DDIM-0.625)-1.71875 -> -2.34375 | F24: 22 | G24: 8SH3 | H24: 80 Series Triple Single Hung | I24: 0.5 | J24: 0.5 | M24: 45 | N24: 24 | O24: 120 | P24: 96 | Q24: 194 | R24: Standard | S24: Custom | X24: Half Only | AG24: << Select Opening
A25: =IF(ModelNo=B25,7,"") ->  | B25: A202 | C25: Glass Height | D25: =Frame_Height-4.9375 -> -4.9375 | F25: 23 | G25: A840 | H25: Arched Top Single Hung (Round-Top) | I25: 0.5 | J25: 0.5 | M25: 23.5 | N25: 36.5 | O25: 54 | P25: 96 | Q25: 144 | R25: Standard | S25: Custom | X25: Half Only | AA25: Select Extrusion | AB25: 80 Series 1-3/8" NFS | AC25: 80 Series 1" NFS | AD25: 80 Series Flush Fin | AF25: 1.28125 | AG25: << Select Opening
A26: =IF(ModelNo=B26,8,"") ->  | B26: A202 | C26: Screen Width | D26: =IF(Screen="F",Frame_Width-4.125,IF(Screen="L","N/A",(A202CDIM-0.625)-0.875)) -> -1.5 | F26: 24 | G26: A844 | H26: Arched Top Single Hung (Eyebrow) | I26: 0.5 | J26: 0.5 | M26: 15 | N26: 30 | O26: 54 | P26: 96 | Q26: 144 | R26: Standard | S26: Custom | X26: Half Only | AA26: Select Extrusion | AB26: 80 Series 1-3/8" NFS | AC26: 80 Series 1" NFS | AD26: Flush Fin | AF26: 1.28125 | AG26: << Select Opening
A27: =IF(ModelNo=B27,9,"") ->  | B27: A202 | C27: Screen Height | D27: =IF(Screen="H",Frame_Height-3.6875,Frame_Height-3.75) -> -3.6875 | F27: 25 | G27: A846 | H27: Arched Top Single Hung (1/2 Eyebrow) | I27: 0.5 | J27: 0.5 | M27: 15 | N27: 30 | O27: 54 | P27: 96 | Q27: 144 | R27: Standard | S27: Custom | X27: Half Only | AA27: Select Extrusion | AB27: 80 Series 1-3/8" NFS | AC27: 80 Series 1" NFS | AD27: Flush Fin | AF27: 1.28125 | AG27: << Select Opening
A28: =IF(ModelNo=B28,10,"") ->  | B28: A202 | C28: Egress Opening Width | D28: =IF(ISERROR(EW),"N/A",EW) -> N/A | F28: 26 | G28: 82HP | H28: 80 Series Twin Stacked P.W | I28: 0.5 | J28: 0.5 | M28: 12 | N28: 24 | O28: 44 | P28: 84 | Q28: 120 | R28: Standard | S28: Custom | AA28: Select Extrusion | AB28: Slider Frame (280/580) | AC28: P.W Frame (A780) | AF28: =IF(EXTSELECT=3,2,2.125) -> 2.125 | AG28: << Select Opening
A29: =IF(ModelNo=B29,11,"") ->  | B29: A202 | C29: Egress Opening Height | D29: =IF(ISERROR(EH),"N/A",EH) -> N/A | F29: 27 | G29: 82WP | H29: 80 Series Twin Side by Side P.W | I29: 0.5 | J29: 0.5 | M29: 24 | N29: 12 | O29: 84 | P29: 44 | Q29: 120 | R29: Standard | S29: Custom | AA29: Select Extrusion | AB29: Slider Frame (280/580) | AC29: P.W Frame (A780) | AF29: =IF(EXTSELECT=3,2,2.125) -> 2.125 | AG29: << Select Opening
A30: =IF(ModelNo=B30,12,"") ->  | B30: A202 | C30: Egress Opening Area (sq.ft.) | D30: =IF(ISERROR(EO),"N/A",EO) -> N/A | F30: 28 | G30: 83HP | H30: 80 Series Triple Stacked P.W | I30: 0.5 | J30: 0.5 | M30: 12 | N30: 36 | O30: 84 | P30: 108 | Q30: 168 | R30: Standard | S30: Custom | AA30: Select Extrusion | AB30: Slider Frame (280/580) | AC30: P.W Frame (A780) | AF30: 2.5625 | AG30: << Select Opening
A31: =IF(ModelNo=B31,1,"") ->  | B31: A203 | C31: Operating Sash Width | D31: =A203CDIM-0.4375 -> 0.25 | F31: 29 | G31: 83WP | H31: 80 Series Triple Side by Side P.W | I31: 0.5 | J31: 0.5 | M31: 36 | N31: 12 | O31: 108 | P31: 84 | Q31: 168 | R31: Standard | S31: Custom | AA31: Select Extrusion | AB31: Slider Frame (280/580) | AC31: P.W Frame (A780) | AF31: 2.5625 | AG31: << Select Opening
A32: =IF(ModelNo=B32,2,"") ->  | B32: A203 | C32: Operating Sash Height | D32: =Frame_Height-3.25 -> -3.25 | F32: 30 | G32: 82SP | H32: 80 Series SH next to PW | I32: 0.5 | J32: 0.5 | M32: 25.5 | N32: 30 | O32: 96 | P32: 72 | Q32: 168 | R32: Standard | S32: Custom | W32: 1 | X32: Half Only | AA32: Operator Position | AB32: Operator Left | AC32: Operator Right | AG32: << Select Opening
A33: =IF(ModelNo=B33,3,"") ->  | B33: A203 | C33: Fixed Sash Width | D33: =A203DDIM+0.125 -> -1.1875 | F33: 31 | G33: 8SPS | H33: 80 Series SH - PW - SH | I33: 0.5 | J33: 0.5 | M33: 40.5 | N33: 30 | O33: 96 | P33: 72 | Q33: 168 | R33: Standard | S33: Custom | W33: 1 | X33: Half Only | AG33: << Select Opening
A34: =IF(ModelNo=B34,4,"") ->  | B34: A203 | C34: Fixed Sash Height | D34: =Frame_Height-3.25 -> -3.25 | F34: 32 | G34: 8SPP | H34: 80 Series SH over PW next to PW | I34: 0.5 | J34: 0.5 | M34: 25.5 | N34: 40.5 | O34: 72 | P34: 96 | Q34: 168 | R34: Standard | S34: Custom | V34: 1 | W34: 1 | X34: Half Only | AG34: << Select Opening
A35: =IF(ModelNo=B35,5,"") ->  | B35: A203 | C35: Roller Track Length | D35: =Frame_Width-2.3125 -> -2.3125 | F35: 33 | G35: 8POS | H35: 80 Series PW over SH | I35: 0.5 | J35: 0.5 | M35: 15 | N35: 40.5 | O35: 48 | P35: 96 | Q35: 144 | R35: Standard | S35: Custom | V35: 1 | X35: Half Only | AG35: << Select Opening
A36: =IF(ModelNo=B36,6,"") ->  | B36: A203 | C36: Operating Sash Glass Width | D36: =A203CDIM-2.125 -> -1.4375 | F36: 34 | G36: 8SOP | H36: 80 Series SH over PW | I36: 0.5 | J36: 0.5 | M36: 15 | N36: 40.5 | O36: 48 | P36: 96 | Q36: 144 | R36: Standard | S36: Custom | V36: 1 | X36: Half Only | AG36: << Select Opening
A37: =IF(ModelNo=B37,7,"") ->  | B37: A203 | C37: Operating Sash Glass Height | D37: =Frame_Height-4.9375 -> -4.9375 | F37: 35 | G37: 8PS3 | H37: 80 Series Twin SH under Single PW | I37: 0.5 | J37: 0.5 | M37: 30 | N37: 40.5 | O37: 72 | P37: 96 | Q37: 168 | R37: Standard | S37: Custom | V37: 1 | W37: 1 | X37: Half Only | AG37: << Select Opening
A38: =IF(ModelNo=B38,8,"") ->  | B38: A203 | C38: Fixed Sash Glass Width | D38: =A203DDIM-1.5625 -> -2.875 | F38: 36 | G38: 8SP3 | H38: 80 Series Twin SH over Single PW | I38: 0.5 | J38: 0.5 | M38: 30 | N38: 40.5 | O38: 72 | P38: 96 | Q38: 168 | R38: Standard | S38: Custom | V38: 1 | W38: 1 | X38: Half Only | AG38: << Select Opening
A39: =IF(ModelNo=B39,9,"") ->  | B39: A203 | C39: Fixed Sash Glass Height | D39: =Frame_Height-4.9375 -> -4.9375 | F39: 37 | G39: A570 | H39: 70 Series Picture Window | I39: 0.5 | J39: 0.5 | M39: 8.5 | N39: 8.5 | O39: 79 | P39: 79 | Q39: 158 | R39: Standard | AG39: << Select Opening
A40: =IF(ModelNo=B40,10,"") ->  | B40: A203 | C40: Screen Width | D40: =IF(Screen="F",Frame_Width-4.125,IF(Screen="L","N/A",A203CDIM-1.1875)) -> -0.5 | F40: 38 | G40: A571 | H40: 70 Series Single Hung | I40: 0.5 | J40: 0.5 | M40: =IF(AND(W>0,H>0,Frame_Height>=29.5),10,14.5) -> 14.5 | N40: =IF(AND(W>0,H>0,Frame_Width>=14.5),23.5,29.5) -> 29.5 | O40: 48 | P40: 96 | Q40: 144 | R40: Standard | S40: Custom | X40: Half Only | AG40: << Select Opening
A41: =IF(ModelNo=B41,11,"") ->  | B41: A203 | C41: Screen Height | D41: =Frame_Height-3.6875 -> -3.6875 | F41: 39 | G41: A270 | H41: 70 Series Picture Window | I41: 0.5 | J41: 0.5 | M41: 8.5 | N41: 8.5 | O41: 79 | P41: 79 | Q41: 158 | R41: Standard | AG41: << Select Opening
A42: =IF(ModelNo=B42,12,"") ->  | B42: A203 | C42: Egress Opening Width | D42: =IF(ISERROR(EW),"N/A",EW) -> N/A | F42: 40 | G42: A272 | H42: 70 Series Single Slider | I42: 0.5 | J42: 0.5 | M42: 18 | N42: 8.5 | O42: 72 | P42: 72 | Q42: 144 | R42: Standard | S42: Custom | X42: Half | Y42: Full | AG42: << Select Opening
A43: =IF(ModelNo=B43,13,"") ->  | B43: A203 | C43: Egress Opening Height | D43: =IF(ISERROR(EH),"N/A",EH) -> N/A | F43: 41 | G43: A273 | H43: 70 Series Three Lite Slider | I43: 0.5 | J43: 0.5 | M43: =IF(AND(W>0,H>0,Frame_Height>=14.5),47.5,71.5) -> 71.5 | N43: =IF(AND(W>0,H>0,Frame_Width>=71.5),9.5,14.5) -> 14.5 | O43: 120 | P43: 72 | Q43: 192 | R43: 1/4-1/2-1/4 | S43: 1/3-1/3-1/3 | T43: Custom | X43: Half | Y43: Full | AG43: << Select Opening
A44: =IF(ModelNo=B44,14,"") ->  | B44: A203 | C44: Egress Opening Area (sq.ft.) | D44: =IF(ISERROR(EO),"N/A",EO) -> N/A | F44: 42 | G44: A770 | H44: 70 Series Picture Window | I44: 0.5 | J44: 0.5 | M44: 8.5 | N44: 8.5 | O44: 120 | P44: 120 | Q44: 180 | R44: Standard | AG44: << Select Opening
A45: =IF(OR(ModelNo="A204",ModelNo="02S4"),1,"") ->  | B45: A204 | C45: Glass Width | D45: =Frame_Width-3.4375 -> -3.4375 | F45: 43 | G45: 7SH2 | H45: 70 Series Twin Single Hung | I45: 0.5 | J45: 0.5 | M45: 30 | N45: 24 | O45: 84 | P45: 72 | Q45: 156 | R45: Standard | S45: Custom | X45: Half Only | AG45: << Select Opening
A46: =IF(OR(ModelNo="A204",ModelNo="02S4"),2,"") ->  | B46: A204 | C46: Glass Height | D46: =Frame_Height-3.4375 -> -3.4375 | F46: 44 | G46: 7SH3 | H46: 70 Series Triple Single Hung | I46: 0.5 | J46: 0.5 | M46: 45 | N46: 24 | O46: 108 | P46: 84 | Q46: 168 | R46: Standard | S46: Custom | X46: Half Only | AG46: << Select Opening
A47: =IF(OR(ModelNo="A204",ModelNo="02S4"),3,"") ->  | B47: A204 | C47: Glass Area (sq.ft.) | D47: =(D45*D46)/144 -> 0.08205837674 | F47: 45 | G47: A740 | H47: Arched Top Single Hung (Round-Top) | I47: 0.5 | J47: 0.5 | M47: 23.5 | N47: 37.5 | O47: 48 | P47: 96 | Q47: 144 | R47: Standard | S47: Custom | X47: Half Only | AA47: Select Extrusion | AB47: 70 Series 1-3/8" NFS | AC47: 70 Seires 7/8" NFS | AD47: J-Channel | AE47: 70 Series Flush Fin | AF47: 1.15625 | AG47: << Select Opening
A48: =IF(ModelNo=B48,1,"") ->  | B48: A209 | C48: Operating Sash Width | D48: =A209CDIM-0.4375 -> -0.25 | F48: 46 | G48: A744 | H48: Arched Top Single Hung (Eyebrow) | I48: 0.5 | J48: 0.5 | M48: 14.5 | N48: 29.5 | O48: 48 | P48: 96 | Q48: 144 | R48: Standard | S48: Custom | X48: Half Only | AA48: Select Extrusion | AB48: 70 Series 1-3/8" NFS | AC48: 70 Seires 7/8" NFS | AD48: J-Channel | AE48: 70 Series Flush Fin | AF48: 1.15625 | AG48: << Select Opening
A49: =IF(ModelNo=B49,2,"") ->  | B49: A209 | C49: Operating Sash Height | D49: =Frame_Height-3.25 -> -3.25 | F49: 47 | G49: A746 | H49: Arched Top Single Hung (1/2 Eyebrow) | I49: 0.5 | J49: 0.5 | M49: 14.5 | N49: 29.5 | O49: 48 | P49: 96 | Q49: 144 | R49: Standard | S49: Custom | X49: Half Only | AA49: Select Extrusion | AB49: 70 Series 1-3/8" NFS | AC49: 70 Seires 7/8" NFS | AD49: J-Channel | AE49: 70 Series Flush Fin | AF49: 1.15625 | AG49: << Select Opening
A50: =IF(ModelNo=B50,3,"") ->  | B50: A209 | C50: Fixed Sash Width | D50: =A209DDIM+0.125 -> -0.1875 | F50: 48 | G50: 72HP | H50: 70 Series Twin Stacked P.W | I50: 0.5 | J50: 0.5 | M50: 12 | N50: 24 | O50: 72 | P50: =IF(Frame_Width>44,72,84) -> 84 | Q50: 144 | R50: Standard | S50: Custom | AA50: Select Extrusion | AB50: Slider Frame (270/570) | AC50: P.W Frame (A770) | AF50: =IF(EXTSELECT=3,1.875,2) -> 2 | AG50: << Select Opening
A51: =IF(ModelNo=B51,4,"") ->  | B51: A209 | C51: Fixed Sash Height | D51: =Frame_Height-3.25 -> -3.25 | F51: 49 | G51: 72WP | H51: 70 Series Twin Side by Side P.W | I51: 0.5 | J51: 0.5 | M51: 24 | N51: 12 | O51: =IF(Frame_Height>44,72,84) -> 84 | P51: 72 | Q51: 144 | R51: Standard | S51: Custom | AA51: Select Extrusion | AB51: Slider Frame (270/570) | AC51: P.W Frame (A770) | AF51: =IF(EXTSELECT=3,1.875,2) -> 2 | AG51: << Select Opening
A52: =IF(ModelNo=B52,5,"") ->  | B52: A209 | C52: Roller Track Length | D52: =Frame_Width-2.3125 -> -2.3125 | F52: 50 | G52: 73HP | H52: 70 Series Triple Stacked P.W | I52: 0.5 | J52: 0.5 | M52: 12 | N52: 36 | O52: 84 | P52: 108 | Q52: 168 | R52: Standard | S52: Custom | AA52: Select Extrusion | AB52: Slider Frame (270/570) | AC52: P.W Frame (A770) | AF52: 2.3125 | AG52: << Select Opening
A53: =IF(ModelNo=B53,6,"") ->  | B53: A209 | C53: Operating Sash Glass Width | D53: =A209CDIM-2.125 -> -1.9375 | F53: 51 | G53: 73WP | H53: 70 Series Triple Side by Side P.W | I53: 0.5 | J53: 0.5 | M53: 36 | N53: 12 | O53: 108 | P53: 84 | Q53: 168 | R53: Standard | S53: Custom | AA53: Select Extrusion | AB53: Slider Frame (270/570) | AC53: P.W Frame (A770) | AF53: 2.3125 | AG53: << Select Opening
A54: =IF(ModelNo=B54,7,"") ->  | B54: A209 | C54: Operating Sash Glass Height | D54: =Frame_Height-4.9375 -> -4.9375 | F54: 52 | G54: A680 | H54: Casement Picture Window | I54: 0.5 | J54: 0.5 | M54: 11.5 | N54: 11.5 | O54: 120 | P54: 120 | Q54: 180 | R54: Standard | AG54: << Select Opening
A55: =IF(ModelNo=B55,8,"") ->  | B55: A209 | C55: Fixed Sash Glass Width | D55: =A209DDIM-1.5625 -> -1.875 | F55: 53 | G55: A681 | H55: Single Vent Awning | I55: 0.5 | J55: 0.5 | M55: =IF(AND(W>0,H>0,Frame_Height>=18),16,20) -> 20 | N55: =IF(AND(W>0,H>0,Frame_Width>=20),11.5,18) -> 18 | O55: 48 | P55: 48 | Q55: 96 | R55: Standard | X55: Full | AG55: << Select Opening
A56: =IF(ModelNo=B56,9,"") ->  | B56: A209 | C56: Fixed Sash Glass Height | D56: =Frame_Height-4.9375 -> -4.9375 | F56: 54 | G56: A682 | H56: Single Vent Casement | I56: 0.5 | J56: 0.5 | M56: 15.75 | N56: 17.5 | O56: 36 | P56: 78 | Q56: 114 | R56: Standard | X56: Full | AG56: << Select Opening
A57: =IF(ModelNo=B57,10,"") ->  | B57: A209 | C57: Screen Width | D57: =IF(Screen="F",Frame_Width-4.125,IF(Screen="L","N/A",A209CDIM-1.1875)) -> -1 | F57: 55 | G57: 6COP | H57: Operating Casement over PW | I57: 0.5 | J57: 0.5 | M57: 15.75 | N57: 29 | O57: 42 | P57: 96 | Q57: 138 | R57: Standard | V57: 1 | X57: Full | AG57: << Select Opening
A58: =IF(ModelNo=B58,11,"") ->  | B58: A209 | C58: Screen Height | D58: =Frame_Height-3.6875 -> -3.6875 | F58: 56 | G58: 6POA | H58: Picture Window over Awning | I58: 0.5 | J58: 0.5 | M58: 20 | N58: 29.5 | O58: 48 | P58: 96 | Q58: 144 | R58: Standard | V58: 1 | X58: Full | AG58: << Select Opening
A59: =IF(ModelNo=B59,12,"") ->  | B59: A209 | C59: Egress Opening Width | D59: =IF(ISERROR(EW),"N/A",EW) -> N/A | F59: 57 | G59: 62WC | H59: Twin Operating Casement | I59: 0.5 | J59: 0.5 | M59: 31.5 | N59: 17.5 | O59: 72 | P59: 72 | Q59: 144 | R59: Standard | W59: 1 | X59: Full | AG59: << Select Opening
A60: =IF(ModelNo=B60,13,"") ->  | B60: A209 | C60: Egress Opening Height | D60: =IF(ISERROR(EH),"N/A",EH) -> N/A | F60: 58 | G60: 62CP | H60: Twin Casement over Picture Window | I60: 0.5 | J60: 0.5 | M60: 31.5 | N60: 29 | O60: 72 | P60: 93 | Q60: 168 | R60: Standard | V60: 1 | W60: 1 | X60: Full | AG60: << Select Opening
A61: =IF(ModelNo=B61,14,"") ->  | B61: A209 | C61: Egress Opening Area (sq.ft.) | D61: =IF(ISERROR(EO),"N/A",EO) -> N/A | F61: 59 | G61: 6P2C | H61: Twin Casement under Picture Window | I61: 0.5 | J61: 0.5 | M61: 31.5 | N61: 29 | O61: 72 | P61: 93 | Q61: 168 | R61: Standard | V61: 1 | W61: 1 | X61: Full | AG61: << Select Opening
A62: =IF(ModelNo=B62,1,"") ->  | B62: A270 | C62: Glass Width | D62: =Frame_Width-2.3125 -> -2.3125 | F62: 60 | G62: 68CP | H62: Casement next to Picture Window | I62: 0.5 | J62: 0.5 | M62: 31.5 | N62: 29 | O62: 72 | P62: 93 | Q62: 168 | R62: Standard | W62: 1 | X62: Full | AA62: Operator Position | AB62: Operator Left | AC62: Operator Right | AG62: << Select Opening
A63: =IF(ModelNo=B63,2,"") ->  | B63: A270 | C63: Glass Height | D63: =Frame_Height-2.3125 -> -2.3125 | F63: 61 | G63: 6CPX | H63: Operating Casement Next to PW Over PW | I63: 0.5 | J63: 0.5 | M63: 27.5 | N63: 29 | O63: 72 | P63: 96 | Q63: 168 | R63: Standard | V63: 1 | W63: 1 | X63: Full | AA63: Operator Position | AB63: Operator Left | AC63: Operator Right | AG63: << Select Opening
A64: =IF(ModelNo=B64,3,"") ->  | B64: A270 | C64: Glass Area (sq.ft.) | D64: =(D62*D63)/144 -> 0.03713650174 | F64: 62 | G64: 6CPC | H64: Casement / Picture Window / Casement | I64: 0.5 | J64: 0.5 | M64: 43 | N64: 17.5 | O64: 96 | P64: 72 | Q64: 168 | R64: Standard | W64: 1 | X64: Full | AG64: << Select Opening
A65: =IF(ModelNo=B65,4,"") ->  | B65: A270 | C65: =IF(MAX_SHORT=1,"Max Short Glass Must be Less Than "&MAX_SG,"") ->  | F65: 63 | G65: 6CSP | H65: Casement / Picture Window / Casement Over PW | I65: 0.5 | J65: 0.5 | M65: 43 | N65: 29 | O65: 96 | P65: 72 | Q65: 168 | R65: Standard | V65: 1 | W65: 1 | X65: Full | AG65: << Select Opening
A66: =IF(ModelNo=B66,1,"") ->  | B66: A272 | C66: Sash Width | D66: =A272CDIM-0.875 -> -0.875 | F66: 64 | G66: 62HP | H66: Double Stacked Casement P.W | I66: 0.5 | J66: 0.5 | M66: 11.5 | N66: 23 | O66: 42 | P66: 96 | Q66: 138 | R66: Standard | V66: 1 | AG66: << Select Opening
A67: =IF(ModelNo=B67,2,"") ->  | B67: A272 | C67: Sash Height | D67: =Frame_Height-2.125 -> -2.125 | F67: 65 | G67: 62HX | H67: Double Stacked Casement P.W | I67: 0.5 | J67: 0.5 | M67: 11.5 | N67: 23 | O67: 72 | P67: 96 | Q67: 168 | R67: Standard | V67: 1 | AG67: << Select Opening
A68: =IF(ModelNo=B68,3,"") ->  | B68: A272 | C68: Sash Glass Width | D68: =D66-2.1875 -> -3.0625 | F68: 66 | G68: 62WP | H68: Twin Side by Side Casement P.W | I68: 0.5 | J68: 0.5 | M68: 23 | N68: 11.5 | O68: 96 | P68: 60 | Q68: 156 | R68: Standard | W68: 1 | AG68: << Select Opening
A69: =IF(ModelNo=B69,4,"") ->  | B69: A272 | C69: Sash Glass Height | D69: =D67-2.1875 -> -4.3125 | F69: 67 | G69: 63WP | H69: Triple Side by Side Casement P.W | I69: 0.5 | J69: 0.5 | M69: 34.5 | N69: 11.5 | O69: 108 | P69: 60 | Q69: 168 | R69: Standard | W69: 1 | AG69: << Select Opening
A70: =IF(ModelNo=B70,5,"") ->  | B70: A272 | C70: Fixed Glass Width | D70: =A272DDIM-1.8125 -> -1.8125 | F70: 67 | G70: 63HP | H70: Triple Stacked Casement P.W | I70: 0.5 | J70: 0.5 | M70: 11.5 | N70: 34.5 | O70: 60 | P70: 96 | Q70: 156 | R70: Standard | V70: 1 | AG70: << Select Opening
A71: =IF(ModelNo=B71,6,"") ->  | B71: A272 | C71: Fixed Glass Height | D71: =Frame_Height-2.3125 -> -2.3125 | F71: 68 | G71: 6502 | H71: 6500 Series Custom 2 Lite Patio Door | I71: 0 | J71: 0 | M71: 48 | N71: 72 | O71: 96 | P71: 96 | Q71: 192 | R71: 3" Sash | S71: 5" Sash | T71: French | X71: Full | AG71: =IF(RO=2,"<< Exact Size Only","") -> << Exact Size Only
A72: =IF(ModelNo=B72,7,"") ->  | B72: A272 | C72: Astragal Length | D72: =Frame_Height-1.8125 -> -1.8125 | F72: 69 | G72: 6503 | H72: 6500 Series Custom 3 Lite Patio Door | I72: 0 | J72: 0 | M72: 84 | N72: 72 | O72: 144 | P72: 96 | Q72: 240 | R72: 3" Sash | S72: 5" Sash | T72: French | X72: Full | AG72: =IF(RO=2,"<< Exact Size Only","") -> << Exact Size Only
A73: =IF(ModelNo=B73,8,"") ->  | B73: A272 | C73: Roller Track Length | D73: =Frame_Width-1.6875 -> -1.6875 | F73: 70 | G73: 6504 | H73: 6500 Series Custom 4 Lite Patio Door | I73: 0 | J73: 0 | M73: 96 | N73: 72 | O73: 144 | P73: 96 | Q73: 240 | R73: 3" Sash | S73: 5" Sash | T73: French | X73: Full | AG73: =IF(RO=2,"<< Exact Size Only","") -> << Exact Size Only
A74: =IF(ModelNo=B74,9,"") ->  | B74: A272 | C74: Screen Width | D74: =A272CDIM-1.8125 -> -1.8125 | F74: 71 | G74: 6505 | H74: 6500 Series Five Foot 2 Lite Patio Door | I74: 1.375 | J74: 0.5 | K74: 60 | L74: 80 | M74: 58.625 | N74: 79.5 | O74: 58.625 | P74: 95.5 | Q74: 156 | R74: 3" Sash | S74: 5" Sash | T74: French | X74: Full | AG74: =IF(RO=1,"<< Rough Opening Only","") -> 
A75: =IF(ModelNo=B75,10,"") ->  | B75: A272 | C75: Screen Height | D75: =Frame_Height-2.125 -> -2.125 | F75: 72 | G75: 6506 | H75: 6500 Series Six Foot 2 Lite Patio Door | I75: 1.375 | J75: 0.5 | K75: 72 | L75: 80 | M75: 70.625 | N75: 79.5 | O75: 70.625 | P75: 95.5 | Q75: 168 | R75: 3" Sash | S75: 5" Sash | T75: French | X75: Full
A76: =IF(ModelNo=B76,11,"") ->  | B76: A272 | C76: Egress Opening Width | D76: =IF(ISERROR(EW),"N/A",EW) -> N/A | F76: 73 | G76: 6508 | H76: 6500 Series Eight Foot 2 Lite Patio Door | I76: 1.75 | J76: 0.5 | K76: 96 | L76: 80 | M76: 94.25 | N76: 79.5 | O76: 94.25 | P76: 95.5 | Q76: 192 | R76: 3" Sash | S76: 5" Sash | T76: French | X76: Full
A77: =IF(ModelNo=B77,12,"") ->  | B77: A272 | C77: Egress Opening Height | D77: =IF(ISERROR(EH),"N/A",EH) -> N/A | F77: 74 | G77: 6509 | H77: 6500 Series Nine Foot 3 Lite Patio Door | I77: 2.5 | J77: 0.5 | K77: 108 | L77: 80 | M77: 105.5 | N77: 79.5 | O77: 105.5 | P77: 95.5 | Q77: 204 | R77: 3" Sash | S77: 5" Sash | T77: French | X77: Full
A78: =IF(ModelNo=B78,13,"") ->  | B78: A272 | C78: Egress Opening Area (sq.ft.) | D78: =IF(ISERROR(EO),"N/A",EO) -> N/A | F78: 75 | G78: 6512 | H78: 6500 Series Twelve Foot 4 Lite Patio Door | I78: 4.5 | J78: 0.5 | K78: 144 | L78: 80 | M78: 139.5 | N78: 79.5 | O78: 139.5 | P78: 95.5 | Q78: 240 | R78: 3" Sash | S78: 5" Sash | T78: French | X78: Full
A79: =IF(ModelNo=B79,1,"") ->  | B79: A273 | C79: Operating Sash Width | D79: =A273CDIM-0.875 -> -1.0625 | F79: 76 | G79: 6522 | H79: 6500 Series Twelve Foot 3 Lite Patio Door | I79: 3.125 | J79: 0.5 | K79: 144 | L79: 80 | M79: 140.875 | N79: 79.5 | O79: 140.875 | P79: 95.5 | Q79: 240 | R79: 3" Sash | S79: 5" Sash | T79: French | X79: Full
A80: =IF(ModelNo=B80,2,"") ->  | B80: A273 | C80: Operating Sash Height | D80: =Frame_Height-2.125 -> -2.125 | F80: 77 | G80: A17A | H80: 170 Series Patio Door Sidelite | I80: 0.5 | J80: 0.5 | M80: 11.5 | N80: 47.5 | O80: 84 | P80: 96 | Q80: 180 | R80: Standard | AG80: << Select Opening
A81: =IF(ModelNo=B81,3,"") ->  | B81: A273 | C81: Astragal Length | D81: =Frame_Height-1.8125 -> -1.8125 | F81: 78 | G81: A171 | H81: 170 Series Patio Door Transom | I81: 0.5 | J81: 0.5 | M81: 47.5 | N81: 11.5 | O81: 108 | P81: 49 | Q81: 156 | R81: Standard | AG81: << Select Opening
A82: =IF(ModelNo=B82,4,"") ->  | B82: A273 | C82: Roller Track Length | D82: =Frame_Width-1.6875 -> -1.6875 | F82: 79 | G82: A172 | H82: Two Lite Sliding Patio Door | I82: 0.5 | J82: 0.5 | M82: 47.5 | N82: 47.5 | O82: 96 | P82: 96 | Q82: 192 | R82: Standard | S82: Custom | X82: Full | Y82: Premium | AG82: << Select Opening
A83: =IF(ModelNo=B83,5,"") ->  | B83: A273 | C83: Operating Sash Glass Width | D83: =D79-2.1875 -> -3.25 | F83: 80 | G83: A173 | H83: Three Lite Sliding Patio Door | I83: 0.5 | J83: 0.5 | M83: 71.5 | N83: 47.5 | O83: 108 | P83: 96 | Q83: 204 | R83: Standard | S83: Custom | X83: Full | Y83: Premium | AG83: << Select Opening
A84: =IF(ModelNo=B84,6,"") ->  | B84: A273 | C84: Operating Sash Glass Height | D84: =D80-2.1875 -> -4.3125 | F84: 81 | G84: A175 | H84: Four Lite Sliding Patio Door | I84: 0.5 | J84: 0.5 | M84: 95.5 | N84: 47.5 | O84: 142 | P84: 96 | Q84: 238 | R84: Standard | S84: Custom | X84: Full | Y84: Premium | AG84: << Select Opening
A85: =IF(ModelNo=B85,7,"") ->  | B85: A273 | C85: Fixed Glass Width | D85: =A273DDIM-1.4375 -> -1.0625 | F85: 82 | G85: 02S0 | H85: Westbridge Elite Single Hung | I85: 0 | J85: 0 | M85: 11 | N85: 20 | O85: 52 | P85: 84 | Q85: 132 | R85: Standard | S85: Oriel (2/3-1/3) | T85: Cottage (1/3-2/3) | U85: Custom | X85: Half | Y85: Full | Z85: Locking | AG85: =IF(RO=2,"<< Exact Size Only","") -> << Exact Size Only
A86: =IF(ModelNo=B86,8,"") ->  | B86: A273 | C86: Fixed Glass Height | D86: =Frame_Height-2.3125 -> -2.3125 | F86: 83 | G86: 02S2 | H86: Westbridge Elite Single Slider | I86: 0 | J86: 0 | M86: 18 | N86: 12 | O86: 84 | P86: 66 | Q86: 148 | R86: Standard | S86: Custom | X86: Half | Y86: Full | AG86: << Exact Size Only
A87: =IF(ModelNo=B87,9,"") ->  | B87: A273 | C87: Screen Width | D87: =A273CDIM-1.8125 -> -2 | F87: 84 | G87: 02S3 | H87: Westbridge Elite Three Lite Slider (1/4-1/2-1/4) | I87: 0 | J87: 0 | M87: 46 | N87: 12 | O87: 130 | P87: 66 | Q87: 182 | R87: 1/4-1/2-1/4 | S87: Custom | X87: Half | Y87: Full | AG87: << Exact Size Only
A88: =IF(ModelNo=B88,10,"") ->  | B88: A273 | C88: Screen Height | D88: =Frame_Height-2.125 -> -2.125 | F88: 85 | G88: 02S4 | H88: Westbridge Elite Picture Window | I88: 0 | J88: 0 | M88: 9 | N88: 9 | O88: 120 | P88: 96 | Q88: 180 | R88: Standard | AG88: << Exact Size Only
A89: =IF(ModelNo=B89,11,"") ->  | B89: A273 | C89: Egress Opening Width | D89: =IF(ISERROR(EW),"N/A",EW) -> N/A | F89: 86 | G89: 02S9 | H89: Westbridge Elite Three Lite Slider Equal Lite | I89: 0 | J89: 0 | M89: 37.25 | N89: 12 | O89: 120 | P89: 66 | Q89: 182 | R89: 1/3-1/3-1/3 | X89: Half | Y89: Full | AG89: << Exact Size Only
A90: =IF(ModelNo=B90,12,"") ->  | B90: A273 | C90: Egress Opening Height | D90: =IF(ISERROR(EH),"N/A",EH) -> N/A | F90: 87 | G90: A201 | H90: Westbridge Elite Double Hung | I90: 0 | J90: 0 | M90: 11 | N90: 20 | O90: 52 | P90: 84 | Q90: 132 | R90: Standard | S90: Oriel (2/3-1/3) | T90: Cottage (1/3-2/3) | U90: Custom | X90: Half | Y90: Full | Z90: Locking | AG90: << Exact Size Only
A91: =IF(ModelNo=B91,13,"") ->  | B91: A273 | C91: Egress Opening Area (sq.ft.) | D91: =IF(ISERROR(EO),"N/A",EO) -> N/A | F91: 88 | G91: A202 | H91: Westbridge Elite Two Lite Slider | I91: 0 | J91: 0 | M91: 18 | N91: 9 | O91: 84 | P91: 72 | Q91: 148 | R91: Standard | S91: Custom | X91: Half | Y91: Full | AG91: << Exact Size Only
A92: =IF(ModelNo=B92,1,"") ->  | B92: A280 | C92: Glass Width | D92: =Frame_Width-2.5625 -> -2.5625 | F92: 89 | G92: A203 | H92: Westbridge Elite 3 Lite Slider (1/4-1/2-1/4) | I92: 0 | J92: 0 | M92: 47.5 | N92: 9 | O92: 130 | P92: 72 | Q92: 192 | R92: 1/4-1/2-1/4 | S92: Custom | X92: Half | Y92: Full | AG92: << Exact Size Only
A93: =IF(ModelNo=B93,2,"") ->  | B93: A280 | C93: Glass Height | D93: =Frame_Height-2.5625 -> -2.5625 | F93: 90 | G93: A204 | H93: Westbridge Elite Picture Window | I93: 0 | J93: 0 | M93: 9 | N93: 9 | O93: 120 | P93: 96 | Q93: 180 | R93: Standard | AG93: << Exact Size Only
A94: =IF(ModelNo=B94,3,"") ->  | B94: A280 | C94: Glass Area (sq.ft.) | D94: =(D92*D93)/144 -> 0.0456000434 | F94: 91 | G94: A209 | H94: Westbridge Elite 3 Lite Slider Equal Lite | I94: 0 | J94: 0 | M94: 37.25 | N94: 9 | O94: 130 | P94: 72 | Q94: 192 | R94: 1/3-1/3-1/3 | X94: Half | Y94: Full | AG94: << Exact Size Only
A95: =IF(ModelNo=B95,4,"") ->  | B95: A280 | C95: =IF(MAX_SHORT=1,"Max Short Glass Must be Less Than "&MAX_SG,"") ->  | F95: 92 | G95: A501 | H95: Westbridge Platinum Double Hung | I95: 0 | J95: 0 | M95: 15.25 | N95: 26.75 | O95: 52 | P95: 84 | Q95: 136 | R95: Standard | S95: Oriel (2/3-1/3) | T95: Cottage (1/3-2/3) | U95: Custom | X95: Half | Y95: Full | Z95: Locking | AG95: << Exact Size Only
A96: =IF(ModelNo=B96,1,"") ->  | B96: A282 | C96: Sash Width | D96: =A282CDIM-1.5 -> -1.5 | F96: 93 | G96: A502 | H96: Westbridge Platinum Two Lite Slider | M96: 25.25 | N96: 16.625 | O96: 84 | P96: 72 | Q96: 152 | R96: Standard | X96: Half | Y96: Full | AG96: << Exact Size Only
A97: =IF(ModelNo=B97,2,"") ->  | B97: A282 | C97: Sash Height | D97: =Frame_Height-2.8125 -> -2.8125 | F97: 94 | G97: A503 | H97: Westbridge Platinum 3 Lite Slider (1/4-1/2-1/4) | M97: 44.5 | N97: 16.625 | O97: 120 | P97: 68 | Q97: 184 | R97: 1/4-1/2-1/4 | X97: Half | Y97: Full | AG97: << Exact Size Only
A98: =IF(ModelNo=B98,3,"") ->  | B98: A282 | C98: Sash Glass Width | D98: =D96-2.5625 -> -4.0625 | F98: 95 | G98: A504 | H98: Westbridge Platinum Picture Window | M98: 11 | N98: 11 | O98: 120 | P98: 120 | Q98: 180 | R98: Standard | AG98: << Exact Size Only
A99: =IF(ModelNo=B99,4,"") ->  | B99: A282 | C99: Sash Glass Height | D99: =D97-2.5625 -> -5.375 | F99: 96 | G99: A509 | H99: Westbridge Platinum 3 Lite Slider Equal Lite | M99: 35.5 | N99: 16.625 | O99: 120 | P99: 72 | Q99: 184 | R99: 1/3-1/3-1/3 | X99: Half | Y99: Full | AG99: << Exact Size Only
A100: =IF(ModelNo=B100,5,"") ->  | B100: A282 | C100: Fixed Glass Width | D100: =A282DDIM-2 -> -2 | F100: 97 | G100: A890 | H100: 90 Series Picture Window | M100: 10 | N100: 10 | O100: 120 | P100: 120 | Q100: 180 | R100: Standard | AG100: << Exact Size Only
A101: =IF(ModelNo=B101,6,"") ->  | B101: A282 | C101: Fixed Glass Height | D101: =Frame_Height-2.5625 -> -2.5625 | F101: 98 | G101: A990 | H101: 90 Series Picture Window | M101: 10.5 | N101: 10.5 | O101: 120 | P101: 120 | Q101: 180 | R101: Standard | AG101: << Exact Size Only
A102: =IF(ModelNo=B102,7,"") ->  | B102: A282 | C102: Astragal Length | D102: =Frame_Height-2.0625 -> -2.0625 | F102: 99 | G102: A991 | H102: 90 Series Single Hung | M102: =IF(AND(W>0,H>0,Frame_Height>=30),10.5,15) -> 15 | N102: =IF(AND(W>0,H>0,Frame_Width>=15),24,30) -> 30 | O102: 54 | P102: 96 | Q102: 144 | R102: Standard | S102: Custom | X102: Half | Y102: Full | AG102: << Exact Size Only
A103: =IF(ModelNo=B103,8,"") ->  | B103: A282 | C103: Roller Track Length | D103: =Frame_Width-2.125 -> -2.125 | F103: 100 | G103: A390 | H103: 90 Series Picture Window | M103: 10.5 | N103: 10.5 | O103: 120 | P103: 120 | Q103: 180 | R103: Standard | AG103: << Exact Size Only
A104: =IF(ModelNo=B104,9,"") ->  | B104: A282 | C104: Screen Width | D104: =A282CDIM-2 -> -2 | F104: 101 | G104: A392 | H104: 90 Series Single Slider | M104: =IF(AND(W>0,H>0,Frame_Height>=14.5),20,29.5) -> 29.5 | N104: =IF(AND(W>0,H>0,Frame_Width>=29.5),10.5,14.5) -> 14.5 | O104: 96 | P104: 72 | Q104: 144 | R104: Standard | S104: Custom | X104: Half | Y104: Full | AG104: << Exact Size Only
A105: =IF(ModelNo=B105,10,"") ->  | B105: A282 | C105: Screen Height | D105: =Frame_Height-2.375 -> -2.375 | F105: 102 | G105: A393 | H105: 90 Series Three Lite Slider | M105: 40 | N105: 10.5 | O105: 96 | P105: 72 | Q105: 192 | R105: 1/4-1/2-1/4 | S105: 1/3-1/3-1/3 | T105: Custom | X105: Half | Y105: Full | AG105: << Exact Size Only
A106: =IF(ModelNo=B106,11,"") ->  | B106: A282 | C106: Egress Opening Width | D106: =IF(ISERROR(EW),"N/A",EW) -> N/A | F106: 103 | G106: A690 | H106: Replacement Casement Picture Window | M106: 11.5 | N106: 11.5 | O106: 120 | P106: 120 | Q106: 180 | R106: Standard | AG106: << Select Opening
A107: =IF(ModelNo=B107,12,"") ->  | B107: A282 | C107: Egress Opening Height | D107: =IF(ISERROR(EH),"N/A",EH) -> N/A | F107: 104 | G107: A691 | H107: Replacement Single Vent Awning | M107: =IF(AND(W>0,H>0,Frame_Height>=18),16,20) -> 20 | N107: =IF(AND(W>0,H>0,Frame_Width>=20),11.5,18) -> 18 | O107: 48 | P107: 48 | Q107: 96 | R107: Standard | X107: Full | AG107: << Select Opening
A108: =IF(ModelNo=B108,13,"") ->  | B108: A282 | C108: Egress Opening Area (sq.ft.) | D108: =IF(ISERROR(EO),"N/A",EO) -> N/A | F108: 105 | G108: A692 | H108: Replacement Single Vent Casement | M108: 15.75 | N108: 17.5 | O108: 36 | P108: 78 | Q108: 114 | R108: Standard | X108: Full | AG108: << Select Opening
A109: =IF(ModelNo=B109,1,"") ->  | B109: A283 | C109: Operating Sash Width | D109: =A283CDIM-1.5 -> -1.6875 | F109: 106 | G109: A191 | H109: Single Lite Inswing Door | I109: 0.5 | J109: 0.5 | M109: 30.5 | N109: 79.5 | O109: 37 | P109: 95.5 | Q109: 133 | R109: Standard | X109: Full | AG109: << Select Opening
A110: =IF(ModelNo=B110,2,"") ->  | B110: A283 | C110: Operating Sash Height | D110: =Frame_Height-2.8125 -> -2.8125 | F110: 107 | G110: A192 | H110: Two Lite Inswing Door XO / OX | I110: 0.5 | J110: 0.5 | M110: 59.5 | N110: 79.5 | O110: 71.5 | P110: 95.5 | Q110: 168 | R110: Standard | S110: Custom | X110: Full | AG110: << Select Opening
A111: =IF(ModelNo=B111,3,"") ->  | B111: A283 | C111: Astragal Length | D111: =Frame_Height-2.0625 -> -2.0625 | F111: 108 | G111: A193 | H111: Three Lite Inswing Door XX | I111: 0.5 | J111: 0.5 | M111: 59.5 | N111: 79.5 | O111: 71.5 | P111: 95.5 | Q111: 168 | R111: Standard | S111: Custom | X111: Full | AG111: << Select Opening
A112: =IF(ModelNo=B112,4,"") ->  | B112: A283 | C112: Roller Track Length | D112: =Frame_Width-2.125 -> -2.125 | F112: 109 | G112: A194 | H112: 190 Series Patio Door Transom | I112: 0.5 | J112: 0.5 | M112: 15 | N112: 79.5 | O112: 37 | P112: 95.5 | Q112: 133 | R112: Standard | X112: Full | AG112: << Select Opening
A113: =IF(ModelNo=B113,5,"") ->  | B113: A283 | C113: Operating Sash Glass Width | D113: =D109-2.5625 -> -4.25 | F113: 110 | G113: A195 | H113: 190 Series Double Transom | I113: 0.5 | J113: 0.5 | M113: 59.5 | N113: 79.5 | O113: 71.5 | P113: 95.5 | Q113: 168 | R113: Standard | X113: Full | AG113: << Select Opening
A114: =IF(ModelNo=B114,6,"") ->  | B114: A283 | C114: Operating Sash Glass Height | D114: =D110-2.5625 -> -5.375 | F114: 111 | G114: B191 | H114: Single Lite Outswing Door | I114: 0.5 | J114: 0.5 | M114: 30.5 | N114: 79.5 | O114: 37 | P114: 95.5 | Q114: 133 | R114: Standard | X114: Full | AG114: << Select Opening
A115: =IF(ModelNo=B115,7,"") ->  | B115: A283 | C115: Fixed Glass Width | D115: =A283DDIM-1.5 -> -1.125 | F115: 112 | G115: B192 | H115: Two Lite Outswing Door XO / OX | I115: 0.5 | J115: 0.5 | M115: 59.5 | N115: 79.5 | O115: 71.5 | P115: 95.5 | Q115: 168 | R115: Standard | S115: Custom | X115: Full | AG115: << Select Opening
A116: =IF(ModelNo=B116,8,"") ->  | B116: A283 | C116: Fixed Glass Height | D116: =Frame_Height-2.5625 -> -2.5625 | F116: 113 | G116: B193 | H116: Three Lite Outswing Door XX | I116: 0.5 | J116: 0.5 | M116: 59.5 | N116: 79.5 | O116: 71.5 | P116: 95.5 | Q116: 168 | R116: Standard | S116: Custom | X116: Full | AG116: << Select Opening
A117: =IF(ModelNo=B117,9,"") ->  | B117: A283 | C117: Screen Width | D117: =A283CDIM-1.9375 -> -2.125 | F117: 114 | G117: B194 | H117: 190 Series Patio Door Transom | I117: 0.5 | J117: 0.5 | M117: 15 | N117: 79.5 | O117: 37 | P117: 95.5 | Q117: 133 | R117: Standard | X117: Full | AG117: << Select Opening
A118: =IF(ModelNo=B118,10,"") ->  | B118: A283 | C118: Screen Height | D118: =Frame_Height-2.375 -> -2.375 | F118: 115 | G118: B195 | H118: 190 Series Double Transom | I118: 0.5 | J118: 0.5 | M118: 59.5 | N118: 79.5 | O118: 71.5 | P118: 95.5 | Q118: 168 | R118: Standard | X118: Full | AG118: << Select Opening
A119: =IF(ModelNo=B119,11,"") ->  | B119: A283 | C119: Egress Opening Width | D119: =IF(ISERROR(EW),"N/A",EW) -> N/A | F119: =VLOOKUP(Cell_Link,F3:G106,2,FALSE) -> Select Model | G119: =Model_Select -> Select Model | H119: =VLOOKUP(Model_Select,Data,2,FALSE) -> 0 | I119: =VLOOKUP(Model_Select,Data,3,FALSE) -> 0 | J119: =VLOOKUP(Model_Select,Data,4,FALSE) -> 0 | K119: =VLOOKUP(Model_Select,Data,5,FALSE) -> 0 | L119: =VLOOKUP(Model_Select,Data,6,FALSE) -> 0 | M119: =VLOOKUP(Model_Select,Data,7,FALSE) -> 0 | N119: =VLOOKUP(Model_Select,Data,8,FALSE) -> 0 | O119: =VLOOKUP(Model_Select,Data,9,FALSE) -> 0 | P119: =VLOOKUP(Model_Select,Data,10,FALSE) -> 0 | Q119: =VLOOKUP(Model_Select,Data,11,FALSE) -> 0 | R119: =VLOOKUP(Model_Select,Data,12,FALSE) -> 0 | S119: =VLOOKUP(Model_Select,Data,13,FALSE) -> 0 | T119: =VLOOKUP(Model_Select,Data,14,FALSE) -> 0 | U119: =VLOOKUP(Model_Select,Data,15,FALSE) -> 0 | V119: =VLOOKUP(Model_Select,Data,16,FALSE) -> 0 | W119: =VLOOKUP(Model_Select,Data,17,FALSE) -> 0 | X119: =VLOOKUP(Model_Select,Data,18,FALSE) -> 0 | Y119: =VLOOKUP(Model_Select,Data,19,FALSE) -> 0 | Z119: =VLOOKUP(Model_Select,Data,20,FALSE) -> 0 | AA119: =VLOOKUP(Model_Select,Data,21,FALSE) -> 0 | AB119: =VLOOKUP(Model_Select,Data,22,FALSE) -> 0 | AC119: =VLOOKUP(Model_Select,Data,23,FALSE) -> 0 | AD119: =VLOOKUP(Model_Select,Data,24,FALSE) -> 0 | AE119: =VLOOKUP(Model_Select,Data,25,FALSE) -> 0 | AF119: =VLOOKUP(Model_Select,Data,26,FALSE) -> 0 | AG119: =VLOOKUP(Model_Select,Data,27,FALSE) -> 0
A120: =IF(ModelNo=B120,12,"") ->  | B120: A283 | C120: Egress Opening Height | D120: =IF(ISERROR(EH),"N/A",EH) -> N/A | F120: 1 | G120: =IF(OR(Model_Select="A140",Model_Select="A144",Model_Select="A146",Model_Select="A740",Model_Select="A744",Model_Select="A746",Model_Select="A840",Model_Select="A844",Model_Select="A846"),1,0) -> 0
A121: =IF(ModelNo=B121,13,"") ->  | B121: A283 | C121: Egress Opening Area (sq.ft.) | D121: =IF(ISERROR(EO),"N/A",EO) -> N/A | L121: =IF(OR(ModelNo="6505",ModelNo="6506",ModelNo="6508",ModelNo="6509",ModelNo="6512",ModelNo="6522"),1,0) -> 0
A122: =IF(ModelNo=B122,1,"") ->  | B122: A390 | C122: Glass Width | D122: =Frame_Width-2.5625 -> -2.5625 | L122: =IF(HCONTROL=1,81,"") -> 
A123: =IF(ModelNo=B123,2,"") ->  | B123: A390 | C123: Glass Height | D123: =Frame_Height-2.5625 -> -2.5625 | L123: =IF(HCONTROL=1,82,"") -> 
A124: =IF(ModelNo=B124,3,"") ->  | B124: A390 | C124: Glass Area (sq.ft.) | D124: =(D122*D123)/144 -> 0.0456000434 | L124: =IF(HCONTROL=1,96,"") -> 
A125: =IF(ModelNo=B125,4,"") ->  | B125: A390 | C125: =IF(MAX_SHORT=1,"Max Short Glass Must be Less Than "&MAX_SG,"") -> 
A126: =IF(ModelNo=B126,1,"") ->  | B126: A392 | C126: Sash Width | D126: =A392CDIM-1.5 -> -1.5
A127: =IF(ModelNo=B127,2,"") ->  | B127: A392 | C127: Sash Height | D127: =Frame_Height-2.8125 -> -2.8125
A128: =IF(ModelNo=B128,3,"") ->  | B128: A392 | C128: Sash Glass Width | D128: =D126-2.5625 -> -4.0625
A129: =IF(ModelNo=B129,4,"") ->  | B129: A392 | C129: Sash Glass Height | D129: =D127-2.5625 -> -5.375
A130: =IF(ModelNo=B130,5,"") ->  | B130: A392 | C130: Fixed Glass Width | D130: =A392DDIM-2 -> -2
A131: =IF(ModelNo=B131,6,"") ->  | B131: A392 | C131: Fixed Glass Height | D131: =Frame_Height-2.5625 -> -2.5625
A132: =IF(ModelNo=B132,7,"") ->  | B132: A392 | C132: Astragal Length | D132: =Frame_Height-2.0625 -> -2.0625
A133: =IF(ModelNo=B133,8,"") ->  | B133: A392 | C133: Roller Track Length | D133: =Frame_Width-2.125 -> -2.125
A134: =IF(ModelNo=B134,9,"") ->  | B134: A392 | C134: Screen Width | D134: =A392CDIM-2 -> -2
A135: =IF(ModelNo=B135,10,"") ->  | B135: A392 | C135: Screen Height | D135: =Frame_Height-2.375 -> -2.375
A136: =IF(ModelNo=B136,11,"") ->  | B136: A392 | C136: Egress Opening Width | D136: =IF(ISERROR(EW),"N/A",EW) -> N/A
A137: =IF(ModelNo=B137,12,"") ->  | B137: A392 | C137: Egress Opening Height | D137: =IF(ISERROR(EH),"N/A",EH) -> N/A
A138: =IF(ModelNo=B138,13,"") ->  | B138: A392 | C138: Egress Opening Area (sq.ft.) | D138: =IF(ISERROR(EO),"N/A",EO) -> N/A
A139: =IF(ModelNo=B139,1,"") ->  | B139: A393 | C139: Operating Sash Width | D139: =A393CDIM-1.5 -> -1.6875
A140: =IF(ModelNo=B140,2,"") ->  | B140: A393 | C140: Operating Sash Height | D140: =Frame_Height-2.8125 -> -2.8125
A141: =IF(ModelNo=B141,3,"") ->  | B141: A393 | C141: Astragal Length | D141: =Frame_Height-2.0625 -> -2.0625
A142: =IF(ModelNo=B142,4,"") ->  | B142: A393 | C142: Roller Track Length | D142: =Frame_Width-2.125 -> -2.125
A143: =IF(ModelNo=B143,5,"") ->  | B143: A393 | C143: Operating Sash Glass Width | D143: =D139-2.5625 -> -4.25
A144: =IF(ModelNo=B144,6,"") ->  | B144: A393 | C144: Operating Sash Glass Height | D144: =D140-2.5625 -> -5.375
A145: =IF(ModelNo=B145,7,"") ->  | B145: A393 | C145: Fixed Glass Width | D145: =A393DDIM-1.5 -> -1.125
A146: =IF(ModelNo=B146,8,"") ->  | B146: A393 | C146: Fixed Glass Height | D146: =Frame_Height-2.5625 -> -2.5625
A147: =IF(ModelNo=B147,9,"") ->  | B147: A393 | C147: Screen Width | D147: =A393CDIM-1.9375 -> -2.125
A148: =IF(ModelNo=B148,10,"") ->  | B148: A393 | C148: Screen Height | D148: =Frame_Height-2.375 -> -2.375
A149: =IF(ModelNo=B149,11,"") ->  | B149: A393 | C149: Egress Opening Width | D149: =IF(ISERROR(EW),"N/A",EW) -> N/A
A150: =IF(ModelNo=B150,12,"") ->  | B150: A393 | C150: Egress Opening Height | D150: =IF(ISERROR(EH),"N/A",EH) -> N/A
A151: =IF(ModelNo=B151,13,"") ->  | B151: A393 | C151: Egress Opening Area (sq.ft.) | D151: =IF(ISERROR(EO),"N/A",EO) -> N/A
A152: =IF(ModelNo=B152,1,"") ->  | B152: A570 | C152: Glass Width | D152: =Frame_Width-2.3125 -> -2.3125
A153: =IF(ModelNo=B153,2,"") ->  | B153: A570 | C153: Glass Height | D153: =Frame_Height-2.3125 -> -2.3125
A154: =IF(ModelNo=B154,3,"") ->  | B154: A570 | C154: Glass Area (sq.ft.) | D154: =(D152*D153)/144 -> 0.03713650174
A155: =IF(ModelNo=B155,4,"") ->  | B155: A570 | C155: =IF(MAX_SHORT=1,"Max Short Glass Must be Less Than "&MAX_SG,"") -> 
A156: =IF(ModelNo=B156,1,"") ->  | B156: A571 | C156: Bottom Sash Width | D156: =Frame_Width-2.125 -> -2.125
A157: =IF(ModelNo=B157,2,"") ->  | B157: A571 | C157: Bottom Sash Height | D157: =A571CDIM-0.875 -> -0.875
A158: =IF(ModelNo=B158,3,"") ->  | B158: A571 | C158: Bottom Glass Width | D158: =D156-2.1875 -> -4.3125
A159: =IF(ModelNo=B159,4,"") ->  | B159: A571 | C159: Bottom Glass Height | D159: =D157-2.1875 -> -3.0625
A160: =IF(ModelNo=B160,5,"") ->  | B160: A571 | C160: Top Glass Width | D160: =Frame_Width-2.3125 -> -2.3125
A161: =IF(ModelNo=B161,6,"") ->  | B161: A571 | C161: Top Glass Height | D161: =A571DDIM-1.8125 -> -1.8125
A162: =IF(ModelNo=B162,7,"") ->  | B162: A571 | C162: Astragal Length | D162: =Frame_Width-1.8125 -> -1.8125
A163: =IF(ModelNo=B163,8,"") ->  | B163: A571 | C163: Screen Width | D163: =Frame_Width-2.125 -> -2.125
A164: =IF(ModelNo=B164,9,"") ->  | B164: A571 | C164: Screen Height | D164: =A571CDIM-1.8125 -> -1.8125
A165: =IF(ModelNo=B165,10,"") ->  | B165: A571 | C165: Bottom Sash Weight | D165: =IF(ISERROR(BTM_WGT&" "&"lb"),"N/A",BTM_WGT&" "&"lb") -> N/A
A166: =IF(ModelNo=B166,11,"") ->  | B166: A571 | C166: Balance Size (B&T) | D166: =IF(ISERROR(BTM_TUBE),"N/A",BTM_TUBE) -> N/A
A167: =IF(ModelNo=B167,12,"") ->  | B167: A571 | C167: Egress Opening Width | D167: =IF(ISERROR(EW),"N/A",EW) -> N/A
A168: =IF(ModelNo=B168,13,"") ->  | B168: A571 | C168: Egress Opening Height | D168: =IF(ISERROR(EH),"N/A",EH) -> N/A
A169: =IF(ModelNo=B169,14,"") ->  | B169: A571 | C169: Egress Opening Area (sq.ft.) | D169: =IF(ISERROR(EO),"N/A",EO) -> N/A
A170: =IF(ModelNo=B170,1,"") ->  | B170: A580 | C170: Glass Width | D170: =Frame_Width-2.5625 -> -2.5625
A171: =IF(ModelNo=B171,2,"") ->  | B171: A580 | C171: Glass Height | D171: =Frame_Height-2.5625 -> -2.5625
A172: =IF(ModelNo=B172,3,"") ->  | B172: A580 | C172: Glass Area (sq.ft.) | D172: =(D170*D171)/144 -> 0.0456000434
A173: =IF(ModelNo=B173,4,"") ->  | B173: A580 | C173: =IF(MAX_SHORT=1,"Max Short Glass Must be Less Than "&MAX_SG,"") -> 
A174: =IF(ModelNo=B174,1,"") ->  | B174: A581 | C174: Bottom Sash Width | D174: =Frame_Width-2.8125 -> -2.8125
A175: =IF(ModelNo=B175,2,"") ->  | B175: A581 | C175: Bottom Sash Height | D175: =A581CDIM-1.5 -> -1.5
A176: =IF(ModelNo=B176,3,"") ->  | B176: A581 | C176: Bottom Glass Width | D176: =D174-2.5625 -> -5.375
A177: =IF(ModelNo=B177,4,"") ->  | B177: A581 | C177: Bottom Glass Height | D177: =D175-2.5625 -> -4.0625
A178: =IF(ModelNo=B178,5,"") ->  | B178: A581 | C178: Top Glass Width | D178: =Frame_Width-2.5625 -> -2.5625
A179: =IF(ModelNo=B179,6,"") ->  | B179: A581 | C179: Top Glass Height | D179: =A581DDIM-2 -> -2
A180: =IF(ModelNo=B180,7,"") ->  | B180: A581 | C180: Astragal Length | D180: =Frame_Width-2.0625 -> -2.0625
A181: =IF(ModelNo=B181,8,"") ->  | B181: A581 | C181: Screen Width | D181: =Frame_Width-2.375 -> -2.375
A182: =IF(ModelNo=B182,9,"") ->  | B182: A581 | C182: Screen Height | D182: =A581CDIM-2 -> -2
A183: =IF(ModelNo=B183,10,"") ->  | B183: A581 | C183: Bottom Sash Weight | D183: =IF(ISERROR(BTM_WGT&" "&"lb"),"N/A",BTM_WGT&" "&"lb") -> N/A
A184: =IF(ModelNo=B184,11,"") ->  | B184: A581 | C184: Balance Size (B&T) | D184: =IF(ISERROR(BTM_TUBE),"N/A",BTM_TUBE) -> N/A
A185: =IF(ModelNo=B185,12,"") ->  | B185: A581 | C185: Egress Opening Width | D185: =IF(ISERROR(EW),"N/A",EW) -> N/A
A186: =IF(ModelNo=B186,13,"") ->  | B186: A581 | C186: Egress Opening Height | D186: =IF(ISERROR(EH),"N/A",EH) -> N/A
A187: =IF(ModelNo=B187,14,"") ->  | B187: A581 | C187: Egress Opening Area (sq.ft.) | D187: =IF(ISERROR(EO),"N/A",EO) -> N/A
A188: =IF(ModelNo=B188,1,"") ->  | B188: A680 | C188: Fixed Glass Width | D188: =Frame_Width-4.125 -> -4.125
A189: =IF(ModelNo=B189,2,"") ->  | B189: A680 | C189: Standard Bead Width (BC6410XX) | D189: =Frame_Width-1.3125 -> -1.3125
A190: =IF(ModelNo=B190,3,"") ->  | B190: A680 | C190: Fixed Glass Height | D190: =Frame_Height-4.125 -> -4.125
A191: =IF(ModelNo=B191,4,"") ->  | B191: A680 | C191: Standard Bead Height (BC6410XX) | D191: =Frame_Height-3.5 -> -3.5
A192: =IF(ModelNo=B192,5,"") ->  | B192: A680 | C192: Sash Width for Ventilator or Vent Wrap Option | D192: =Frame_Width-1.625 -> -1.625
A193: =IF(ModelNo=B193,6,"") ->  | B193: A680 | C193: Sash Height for Ventilator or Vent Wrap Option | D193: =Frame_Height-1.625 -> -1.625
A194: =IF(ModelNo=B194,7,"") ->  | B194: A680 | C194: Glass Width for Ventilator or Vent Wrap Option | D194: =D192-3.9375 -> -5.5625
A195: =IF(ModelNo=B195,8,"") ->  | B195: A680 | C195: V.W/Ventilator Bead Width (BC61774XX) | D195: =D192-3.625 -> -5.25
A196: =IF(ModelNo=B196,9,"") ->  | B196: A680 | C196: V.W Painted Bead Width (BC2105XX) | D196: =D192-1.84375 -> -3.46875
A197: =IF(ModelNo=B197,10,"") ->  | B197: A680 | C197: V.W Painted Bead TG2 Width (BC2106XX) | D197: =D192-1.84375 -> -3.46875
A198: =IF(ModelNo=B198,11,"") ->  | B198: A680 | C198: Glass Height for Ventilator or Vent Wrap Option | D198: =D193-5.8125 -> -7.4375
A199: =IF(ModelNo=B199,12,"") ->  | B199: A680 | C199: V.W/Ventilator Bead Height (BC61774XX) | D199: =D193-5.5 -> -7.125
A200: =IF(ModelNo=B200,13,"") ->  | B200: A680 | C200: V.W Painted Bead Height (BC2105XX) | D200: =D193-4.84375 -> -6.46875
... 959 more rows
